Transaction Number,Service - Fund ,Service  - Function ,Service - Cost Centre,Expense Type ,Expense Description,Supplier Name,Supplier Post Code (first 4 digits),Payment Date,Amount �
116357233,"Volutary Sector, Equipment and Carers",Adults,Carers Short Term Breaks - Adults,3rd Party Payments,Carers,247 HOME CARE LTD,SN5 ,06/12/2023,65.28
116357233,"Volutary Sector, Equipment and Carers",Adults,Carers Short Term Breaks - Adults,3rd Party Payments,Carers,247 HOME CARE LTD,SN5 ,06/12/2023,552.96
116357233,"Volutary Sector, Equipment and Carers",Adults,Carers Short Term Breaks - Adults,3rd Party Payments,Carers,247 HOME CARE LTD,SN5 ,06/12/2023,618.24
116358233,Physical Support,Adults,Physical Support 65 and over,3rd Party Payments,Personal Budget - Domiciliary care,247 HOME CARE LTD,SN5 ,06/12/2023,"-12,910.80"
116358233,Physical Support,Adults,Physical Support 65 and over,3rd Party Payments,Personal Budget - Domiciliary care,247 HOME CARE LTD,SN5 ,06/12/2023,"17,310.72"
116756233,Streetsmart,Streetsmart,Waste - Processing,Transport Costs,Vehicle Hire / Contract,911 STAFFING LTD,SN2 ,13/12/2023,605.44
116758233,Streetsmart,Streetsmart,Waste - Processing,Transport Costs,Vehicle Hire / Contract,911 STAFFING LTD,SN2 ,13/12/2023,605.44
116719233,Streetsmart,Streetsmart,Waste - Processing,Transport Costs,Vehicle Hire / Contract,911 STAFFING LTD,SN2 ,13/12/2023,756.80
116757233,Streetsmart,Streetsmart,Waste - Processing,Transport Costs,Vehicle Hire / Contract,911 STAFFING LTD,SN2 ,13/12/2023,605.44
117944235,Streetsmart,Streetsmart,Waste - Processing,Premises Costs,Maintenance - Buildings,A PLUS SAFETY & TRAINING SERVICES LTD,SN3 ,20/12/2023,"2,530.00"
117344309,Homelessness and Travellers,Housing Services,Private Sector Landlords,Transfer Payments,Payment of Costs,REDACTED PERSONAL DATA,SN3 ,20/12/2023,800.00
118743233,Other Repairs,Repairs,Unallocated job costs from OPEN system,Premises Costs,Maintenance - Buildings,ABBEY ELECTRICAL (SWINDON) LTD T/A ABBEY ELECTRICAL UK,SN6 ,22/12/2023,429.76
116132233,Responsive Repairs,Repairs,Responsive Repairs,3rd Party Payments,Contract Payments,ABBEY ELECTRICAL (SWINDON) LTD T/A ABBEY ELECTRICAL UK,SN6 ,04/12/2023,551.70
118742233,Other Repairs,Repairs,Cyclical Maintenance,Supplies and Services,Testing / Inspection,ABBEY ELECTRICAL (SWINDON) LTD T/A ABBEY ELECTRICAL UK,SN6 ,22/12/2023,970.27
115852234,Other Repairs,Repairs,Cyclical Maintenance,Supplies and Services,Testing / Inspection,ABBEY ELECTRICAL (SWINDON) LTD T/A ABBEY ELECTRICAL UK,SN6 ,01/12/2023,"1,110.78"
117003234,Early Years Block,Dedicated Schools Grant (DSG),Free Nursery Education Commissioning - three & four  year olds,3rd Party Payments,Contracts - Child Care,ABBEY FARM EDUCATE TOGETHER PRIMARY,SN25,13/12/2023,"5,289.84"
117201364,High Needs Block,Dedicated Schools Grant (DSG),SEN Resourcing Assessment Panel,3rd Party Payments,Top up funding - Academies and Free Schools Pre 16,ABBEY FARM EDUCATE TOGETHER PRIMARY,SN25,15/12/2023,"2,761.67"
117003233,Early Years Block,Dedicated Schools Grant (DSG),Free Nursery Education Commissioning - three & four  year olds,3rd Party Payments,Contracts - Child Care,ABBEY FARM EDUCATE TOGETHER PRIMARY,SN25,13/12/2023,631.80
117998233,Early Years Block,Dedicated Schools Grant (DSG),Free Nursery Education Commissioning - three & four  year olds,3rd Party Payments,Contracts - Child Care,ABBEY MEADS COMMUNITY PRIMARY SCHOOL,SN25,20/12/2023,858.92
117003236,Early Years Block,Dedicated Schools Grant (DSG),Free Nursery Education Commissioning - three & four  year olds,3rd Party Payments,Contracts - Child Care,ABBEY MEADS COMMUNITY PRIMARY SCHOOL,SN25,13/12/2023,"9,547.38"
117201302,High Needs Block,Dedicated Schools Grant (DSG),SEN Resourcing Assessment Panel,3rd Party Payments,Top up funding - Academies and Free Schools Pre 16,ABBEY MEADS COMMUNITY PRIMARY SCHOOL,SN25,15/12/2023,"6,785.84"
117003235,Early Years Block,Dedicated Schools Grant (DSG),Free Nursery Education Commissioning - three & four  year olds,3rd Party Payments,Contracts - Child Care,ABBEY MEADS COMMUNITY PRIMARY SCHOOL,SN25,13/12/2023,929.88
119088233,Public Health,Public Health,Sexual Health & Health Protection Budget,3rd Party Payments,Contract Payments,ABBEY MEADS MEDICAL GROUP,SN25,28/12/2023,926.00
116421233,Physical Support,Adults,Physical Support 18 - 64,3rd Party Payments,Personal Budget - Domiciliary care,ABICARE SERVICES LTD,BS32,06/12/2023,-437.84
116421233,Mental Health,Adults,Mental Health 65 and over,3rd Party Payments,Personal Budget - Domiciliary care,ABICARE SERVICES LTD,BS32,06/12/2023,"1,290.24"
116421233,Physical Support,Adults,Physical Support 18 - 64,3rd Party Payments,Personal Budget - Domiciliary care,ABICARE SERVICES LTD,BS32,06/12/2023,69.12
116421233,Mental Health,Adults,Mental Health 65 and over,3rd Party Payments,Personal Budget - Domiciliary care,ABICARE SERVICES LTD,BS32,06/12/2023,-101.14
116421233,Physical Support,Adults,Physical Support 18 - 64,3rd Party Payments,Personal Budget - Domiciliary care,ABICARE SERVICES LTD,BS32,06/12/2023,-13.46
116421233,Physical Support,Adults,Physical Support 18 - 64,3rd Party Payments,Personal Budget - Domiciliary care,ABICARE SERVICES LTD,BS32,06/12/2023,"2,603.52"
116423233,Physical Support,Adults,Physical Support 65 and over,3rd Party Payments,Personal Budget - Domiciliary care,ABICARE SERVICES LTD (LIVE IN),SP2 ,06/12/2023,"5,575.68"
116423233,Physical Support,Adults,Physical Support 18 - 64,3rd Party Payments,Personal Budget - Domiciliary care,ABICARE SERVICES LTD (LIVE IN),SP2 ,06/12/2023,"14,192.64"
116423233,Physical Support,Adults,Physical Support 18 - 64,3rd Party Payments,Personal Budget - Domiciliary care,ABICARE SERVICES LTD (LIVE IN),SP2 ,06/12/2023,"-10,682.88"
116423233,Physical Support,Adults,Physical Support 65 and over,3rd Party Payments,Personal Budget - Domiciliary care,ABICARE SERVICES LTD (LIVE IN),SP2 ,06/12/2023,-775.68
116423233,Mental Health,Adults,Mental Health 65 and over,3rd Party Payments,Personal Budget - Domiciliary care,ABICARE SERVICES LTD (LIVE IN),SP2 ,06/12/2023,"14,192.64"
116423233,Physical Support,Adults,Physical Support 18 - 64,3rd Party Payments,Personal Budget - Domiciliary care,ABICARE SERVICES LTD (LIVE IN),SP2 ,06/12/2023,"15,482.88"
116423233,Physical Support,Adults,Physical Support 18 - 64,3rd Party Payments,Personal Budget - Domiciliary care,ABICARE SERVICES LTD (LIVE IN),SP2 ,06/12/2023,"-9,768.64"
116423233,Mental Health,Adults,Mental Health 65 and over,3rd Party Payments,Personal Budget - Domiciliary care,ABICARE SERVICES LTD (LIVE IN),SP2 ,06/12/2023,"-9,768.64"
117003238,Early Years Block,Dedicated Schools Grant (DSG),Free Nursery Education Commissioning - three & four  year olds,3rd Party Payments,Contracts - Child Care,REDACTED PERSONAL DATA,SN2 ,13/12/2023,514.50
117990233,Heritage,Culture,SMAG relocation,Capital,Contractor Payments,ACCESS DISPLAYS LTD,SN4 ,20/12/2023,"9,345.00"
117172235,Highways Inspections & Maintenance,Highway Operations and Car Parking,Streetlighting,Transport Costs,Repairs & Maintenance - Vehicles,ACCESS HIRE NATIONWIDE,WF6 ,15/12/2023,"1,617.86"
117220233,"Children, Families & Community Health Services","Children, Familities & Community Health Services",Children's ICS Project,Capital,Contractor Payments,ACCESS UK LTD,LE11,15/12/2023,"10,500.00"
115888233,Schools Maintenance,Skills & Attainment,Capita One education,Capital,Contractor Payments,ACCESS UK LTD,LE11,01/12/2023,"55,832.00"
117344329,Homelessness and Travellers,Housing Services,Private Sector Landlords,Transfer Payments,Payment of Costs,REDACTED PERSONAL DATA,SN8 ,20/12/2023,700.00
117344367,Homelessness and Travellers,Housing Services,Private Sector Landlords,Transfer Payments,Payment of Costs,REDACTED PERSONAL DATA,SN8 ,20/12/2023,650.00
117201359,High Needs Block,Dedicated Schools Grant (DSG),SEN Resourcing Assessment Panel,3rd Party Payments,Top up funding - Academies and Free Schools Post 16,ACTIVATE LEARNING EDUCATION TRUST,OX1 ,15/12/2023,"1,114.25"
118716233,Town Centre,"Economy, Growth and Place",Economic Development,Supplies and Services,Publicity,ACTIVATE LEARNING EDUCATION TRUST,OX1 ,22/12/2023,540.00
117201335,High Needs Block,Dedicated Schools Grant (DSG),SEN Resourcing Assessment Panel,3rd Party Payments,Top up funding - Academies and Free Schools Pre 16,ACTIVATE LEARNING EDUCATION TRUST,OX1 ,15/12/2023,"4,592.92"
116638258,Social Care,Children & Families,Children's Resource and Home Finding Team,3rd Party Payments,Independent Fostering Agency Placements,ACTIVE CARE SOLUTIONS LTD,B60 ,13/12/2023,"4,205.40"
116638261,Social Care,Children & Families,Children's Resource and Home Finding Team,3rd Party Payments,Independent Fostering Agency Placements,ACTIVE CARE SOLUTIONS LTD,B60 ,13/12/2023,"3,516.33"
116638263,Social Care,Children & Families,Children's Resource and Home Finding Team,3rd Party Payments,Independent Fostering Agency Placements,ACTIVE CARE SOLUTIONS LTD,B60 ,13/12/2023,"3,610.88"
116638259,Social Care,Children & Families,Children's Resource and Home Finding Team,3rd Party Payments,Independent Fostering Agency Placements,ACTIVE CARE SOLUTIONS LTD,B60 ,13/12/2023,"4,345.58"
116638262,Social Care,Children & Families,Children's Resource and Home Finding Team,3rd Party Payments,Independent Fostering Agency Placements,ACTIVE CARE SOLUTIONS LTD,B60 ,13/12/2023,"3,494.40"
116638257,Social Care,Children & Families,Children's Resource and Home Finding Team,3rd Party Payments,Independent Fostering Agency Placements,ACTIVE CARE SOLUTIONS LTD,B60 ,13/12/2023,"6,394.68"
116638260,Social Care,Children & Families,Children's Resource and Home Finding Team,3rd Party Payments,Independent Fostering Agency Placements,ACTIVE CARE SOLUTIONS LTD,B60 ,13/12/2023,"3,402.90"
116638256,Social Care,Children & Families,Children's Resource and Home Finding Team,3rd Party Payments,Independent Fostering Agency Placements,ACTIVE CARE SOLUTIONS LTD,B60 ,13/12/2023,"6,188.40"
118089300,Learning Disabilities,Adults,Learning Disability 18 - 64,Income,Client Contribution - Personal Budget - DP,REDACTED PERSONAL DATA,SN4 ,20/12/2023,-49.00
118089300,Learning Disabilities,Adults,Learning Disability 18 - 64,Transfer Payments,Personal Budget - Direct Payments - Domiciliary Care,REDACTED PERSONAL DATA,SN4 ,20/12/2023,"1,237.28"
118089288,Learning Disabilities,Adults,Learning Disability 18 - 64,Transfer Payments,Personal Budget - Direct Payments - Domiciliary Care,REDACTED PERSONAL DATA,SN3 ,20/12/2023,410.88
118089288,Learning Disabilities,Adults,Learning Disability 18 - 64,Transfer Payments,Personal Budget - Direct Payments - Domiciliary Care,REDACTED PERSONAL DATA,SN3 ,20/12/2023,"1,823.36"
118089288,Learning Disabilities,Adults,Learning Disability 18 - 64,Income,Client Contribution - Personal Budget - DP,REDACTED PERSONAL DATA,SN3 ,20/12/2023,-35.16
118089288,Learning Disabilities,Adults,Learning Disability 18 - 64,Income,Client Contribution - Personal Budget - DP,REDACTED PERSONAL DATA,SN3 ,20/12/2023,-156.00
117344328,Homelessness and Travellers,Housing Services,Private Sector Landlords,Transfer Payments,Payment of Costs,ADVANCE HOUSING & SUPPORT LTD,OX28,20/12/2023,"1,074.00"
118381233,Public Health,Public Health,Disabled Facilities Grants,Capital,Grant Payments,AE CAMPBELL LTD,SN3 ,22/12/2023,"15,063.00"
116364233,Social Care,Children & Families,Children's Resource and Home Finding Team,3rd Party Payments,Independent Fostering Agency Placements,AFFINITY FOSTERING SERVICES LTD,CM4 ,06/12/2023,"5,646.34"
116361233,Social Care,Children & Families,Children's Resource and Home Finding Team,3rd Party Payments,Independent Fostering Agency Placements,AFFINITY FOSTERING SERVICES LTD,CM4 ,06/12/2023,"3,690.00"
116362233,Social Care,Children & Families,Children's Resource and Home Finding Team,3rd Party Payments,Independent Fostering Agency Placements,AFFINITY FOSTERING SERVICES LTD,CM4 ,06/12/2023,"3,813.00"
116365233,Social Care,Children & Families,Children's Resource and Home Finding Team,3rd Party Payments,Independent Fostering Agency Placements,AFFINITY FOSTERING SERVICES LTD,CM4 ,06/12/2023,"5,464.20"
116360233,Social Care,Children & Families,Children's Resource and Home Finding Team,3rd Party Payments,Independent Fostering Agency Placements,AFFINITY FOSTERING SERVICES LTD,CM4 ,06/12/2023,"3,813.00"
116363233,Social Care,Children & Families,Children's Resource and Home Finding Team,3rd Party Payments,Independent Fostering Agency Placements,AFFINITY FOSTERING SERVICES LTD,CM4 ,06/12/2023,"3,690.00"
Corporate Card Transaction,Homelessness and Travellers,Housing Services,Homelessness Prevention,Transfer Payments,Payment of Costs,Afan Valley Es Booking,,11/12/2023,660
118404234,Landscaping & Open Space,Culture & Heritage & Art,Moredon Recreation - Multi Sports Hub,Capital,Contractor Payments,AGGREGATE INDUSTRIES UK LTD T/A SPADEOAK,HP10,22/12/2023,"95,412.85"
117777240,Physical Support,Adults,Physical Support 65 and over,3rd Party Payments,Personal Budget - Respite Care,AGINCARE ENABLE LTD,DT5 ,20/12/2023,"2,189.75"
117226240,Physical Support,Adults,Physical Support 65 and over,3rd Party Payments,Personal Budget - Respite Care,AGINCARE ENABLE LTD,DT5 ,15/12/2023,"2,300.90"
118038233,Learning Disabilities,Adults,Learning Disability 65 and over,Income,Client Contribution - Supported Living,AGINCARE ENABLE LTD,DT5 ,20/12/2023,-141.44
118038233,Learning Disabilities,Adults,Learning Disability 65 and over,3rd Party Payments,Supported Lodgings (Childrens)/Supported Living (Adults),AGINCARE ENABLE LTD,DT5 ,20/12/2023,"6,099.00"
118038233,Learning Disabilities,Adults,Learning Disability 65 and over,3rd Party Payments,Supported Lodgings (Childrens)/Supported Living (Adults),AGINCARE ENABLE LTD,DT5 ,20/12/2023,"2,573.48"
118038233,Learning Disabilities,Adults,Learning Disability 65 and over,Income,Client Contribution - Supported Living,AGINCARE ENABLE LTD,DT5 ,20/12/2023,-335.16
117508285,Physical Support,Adults,Physical Support 65 and over,Income,Client Contribution - Residential,AGINCARE LTD,DT5 ,18/12/2023,"-1,231.12"
117508285,Physical Support,Adults,Physical Support 65 and over,3rd Party Payments,Residential Care,AGINCARE LTD,DT5 ,18/12/2023,"3,780.00"
117003239,Early Years Block,Dedicated Schools Grant (DSG),Free Nursery Education Commissioning - two year olds,3rd Party Payments,Contracts - Child Care,REDACTED PERSONAL DATA,SN3 ,13/12/2023,926.40
115939233,Travel,Highways & Transport,Public Transport,3rd Party Payments,Contract Payments,AKCESS CIC,SN2 ,01/12/2023,"15,023.18"
115749233,Supported Employment,Housing Services,EW - Timber,Supplies and Services,Equipment,ALAN CLARK ENGINEERING 1991 LTD,SN3 ,01/12/2023,510.00
116631233,Senior Management Team,Children & Families,Family Safeguarding Model,Supplies and Services,Services,ALASDAIR CANT & ASSOCIATES LIMITED,CB2 ,11/12/2023,"4,052.85"
117248233,Learning Disabilities,Adults,Learning Disability 18 - 64,3rd Party Payments,Supported Accommodation Scheme,REDACTED PERSONAL DATA,SN2 ,20/12/2023,660.00
117229234,Learning Disabilities,Adults,Learning Disability 18 - 64,3rd Party Payments,Supported Accommodation Scheme,REDACTED PERSONAL DATA,SN2 ,20/12/2023,"2,850.00"
115995233,Disabled Children,Children & Families,DCT Daytime Short Breaks,Transfer Payments,Personal Budget - Direct Payments - Other,REDACTED PERSONAL DATA,SN1 ,01/12/2023,661.50
118089312,Learning Disabilities,Adults,Learning Disability 18 - 64,Transfer Payments,Personal Budget - Direct Payments - Domiciliary Care,REDACTED PERSONAL DATA,SN25,20/12/2023,68.48
118089312,Learning Disabilities,Adults,Learning Disability 18 - 64,Transfer Payments,Personal Budget - Direct Payments - Domiciliary Care,REDACTED PERSONAL DATA,SN25,20/12/2023,"1,400.08"
118089312,Learning Disabilities,Adults,Learning Disability 18 - 64,Income,Client Contribution - Personal Budget - DP,REDACTED PERSONAL DATA,SN25,20/12/2023,-464.48
118089312,Learning Disabilities,Adults,Learning Disability 18 - 64,Income,Client Contribution - Personal Budget - DP,REDACTED PERSONAL DATA,SN25,20/12/2023,-22.72
118089312,Learning Disabilities,Adults,Learning Disability 18 - 64,Income,Client Contribution - Personal Budget - DP,REDACTED PERSONAL DATA,SN25,20/12/2023,-31.90
118089432,Learning Disabilities,Adults,Learning Disability 18 - 64,Transfer Payments,Personal Budget - Direct Payments - Other,REDACTED PERSONAL DATA,GL53,20/12/2023,"16,800.00"
118089432,Learning Disabilities,Adults,Learning Disability 18 - 64,Transfer Payments,Personal Budget - Direct Payments - Domiciliary Care,REDACTED PERSONAL DATA,GL53,20/12/2023,"3,007.76"
117003241,Early Years Block,Dedicated Schools Grant (DSG),Free Nursery Education Commissioning - three & four  year olds,3rd Party Payments,Contracts - Child Care,ALFRESCO CHILDCARE,SN6 ,13/12/2023,"6,232.80"
117003240,Early Years Block,Dedicated Schools Grant (DSG),Free Nursery Education Commissioning - two year olds,3rd Party Payments,Contracts - Child Care,ALFRESCO CHILDCARE,SN6 ,13/12/2023,648.48
117242233,Learning Disabilities,Adults,Learning Disability 18 - 64,3rd Party Payments,Supported Accommodation Scheme,REDACTED PERSONAL DATA,SN1 ,20/12/2023,"3,332.50"
118089418,Learning Disabilities,Adults,Learning Disability 18 - 64,Transfer Payments,Personal Budget - Direct Payments - Other,REDACTED PERSONAL DATA,SN4 ,20/12/2023,151.20
118089418,Learning Disabilities,Adults,Learning Disability 18 - 64,Transfer Payments,Personal Budget - Direct Payments - Domiciliary Care,REDACTED PERSONAL DATA,SN4 ,20/12/2023,"1,448.48"
118089418,Learning Disabilities,Adults,Learning Disability 18 - 64,Transfer Payments,Personal Budget - Direct Payments - Other,REDACTED PERSONAL DATA,SN4 ,20/12/2023,157.92
118089418,Learning Disabilities,Adults,Learning Disability 18 - 64,Transfer Payments,Personal Budget - Direct Payments - Domiciliary Care,REDACTED PERSONAL DATA,SN4 ,20/12/2023,197.52
118089418,Learning Disabilities,Adults,Learning Disability 18 - 64,Transfer Payments,Personal Budget - Direct Payments - Domiciliary Care,REDACTED PERSONAL DATA,SN4 ,20/12/2023,"2,817.60"
118089418,Learning Disabilities,Adults,Learning Disability 18 - 64,Transfer Payments,Personal Budget - Direct Payments - Other,REDACTED PERSONAL DATA,SN4 ,20/12/2023,118.80
118089418,Learning Disabilities,Adults,Learning Disability 18 - 64,Transfer Payments,Personal Budget - Direct Payments - Domiciliary Care,REDACTED PERSONAL DATA,SN4 ,20/12/2023,469.50
118089418,Learning Disabilities,Adults,Learning Disability 18 - 64,Transfer Payments,Personal Budget - Direct Payments - Domiciliary Care,REDACTED PERSONAL DATA,SN4 ,20/12/2023,"2,378.80"
117207233,Streetsmart,Streetsmart,Refuse Collection,Employees,Temporary / Agency - by Accounts Payable,ALIGRA PERSONNEL LTD,SN25,15/12/2023,"1,624.00"
116186233,School Transport,"Education, Inclusion and Skills",Special Educational Needs Transport,Transport Costs,Home to School Transport,REDACTED PERSONAL DATA,SN5 ,04/12/2023,"1,450.92"
117907233,School Transport,"Education, Inclusion and Skills",Special Educational Needs Transport,Transport Costs,Home to School Transport,REDACTED PERSONAL DATA,SN5 ,20/12/2023,518.18
117241233,Learning Disabilities,Adults,Learning Disability 18 - 64,3rd Party Payments,Supported Accommodation Scheme,REDACTED PERSONAL DATA,SN2 ,20/12/2023,"2,300.00"
117241233,Learning Disabilities,Adults,Learning Disability 18 - 64,3rd Party Payments,Supported Accommodation Scheme,REDACTED PERSONAL DATA,SN2 ,20/12/2023,"2,332.50"
117241233,Learning Disabilities,Adults,Learning Disability 18 - 64,3rd Party Payments,Supported Accommodation Scheme,REDACTED PERSONAL DATA,SN2 ,20/12/2023,"2,782.50"
118089257,Learning Disabilities,Adults,Learning Disability 18 - 64,Income,Client Contribution - Personal Budget - DP,REDACTED PERSONAL DATA,SN5 ,20/12/2023,-130.08
118089257,Learning Disabilities,Adults,Learning Disability 18 - 64,Income,Client Contribution - Personal Budget - DP,REDACTED PERSONAL DATA,SN5 ,20/12/2023,-169.04
118089257,Learning Disabilities,Adults,Learning Disability 18 - 64,Income,Client Contribution - Personal Budget - DP,REDACTED PERSONAL DATA,SN5 ,20/12/2023,-142.20
118089257,Learning Disabilities,Adults,Learning Disability 18 - 64,Transfer Payments,Personal Budget - Direct Payments - Domiciliary Care,REDACTED PERSONAL DATA,SN5 ,20/12/2023,"3,660.00"
118089257,Learning Disabilities,Adults,Learning Disability 18 - 64,Transfer Payments,Personal Budget - Direct Payments - Domiciliary Care,REDACTED PERSONAL DATA,SN5 ,20/12/2023,"3,079.68"
118089257,Learning Disabilities,Adults,Learning Disability 18 - 64,Transfer Payments,Personal Budget - Direct Payments - Domiciliary Care,REDACTED PERSONAL DATA,SN5 ,20/12/2023,"2,817.36"
118089257,Learning Disabilities,Adults,Learning Disability 18 - 64,Income,Client Contribution - Personal Budget - DP,REDACTED PERSONAL DATA,SN5 ,20/12/2023,-1.08
118089257,Learning Disabilities,Adults,Learning Disability 18 - 64,Transfer Payments,Personal Budget - Direct Payments - Other,REDACTED PERSONAL DATA,SN5 ,20/12/2023,23.80
117003246,Early Years Block,Dedicated Schools Grant (DSG),Free Nursery Education Commissioning - three & four  year olds,3rd Party Payments,Contracts - Child Care,REDACTED PERSONAL DATA,SN25,13/12/2023,"1,883.70"
117003243,Early Years Block,Dedicated Schools Grant (DSG),Free Nursery Education Commissioning - three & four  year olds,3rd Party Payments,Contracts - Child Care,REDACTED PERSONAL DATA,SN1 ,13/12/2023,911.40
118089287,Learning Disabilities,Adults,Learning Disability 18 - 64,Transfer Payments,Personal Budget - Direct Payments - Domiciliary Care,REDACTED PERSONAL DATA,SN5 ,20/12/2023,"3,628.80"
118089287,Learning Disabilities,Adults,Learning Disability 18 - 64,Income,Client Contribution - Personal Budget - DP,REDACTED PERSONAL DATA,SN5 ,20/12/2023,-1.36
118089287,Learning Disabilities,Adults,Learning Disability 18 - 64,Income,Client Contribution - Personal Budget - DP,REDACTED PERSONAL DATA,SN5 ,20/12/2023,-127.04
118089287,Learning Disabilities,Adults,Learning Disability 18 - 64,Transfer Payments,Personal Budget - Direct Payments - Domiciliary Care,REDACTED PERSONAL DATA,SN5 ,20/12/2023,39.20
117269233,Schools Maintenance,Skills & Attainment,Condition Works,Capital,Contractor Payments,ALL PUMP SOLUTIONS LLP,SY1 ,15/12/2023,"3,039.95"
116954233,Streetsmart,Streetsmart,Waterside Fleet Workshops,Supplies and Services,Equipment,ALLIANCE AUTOMOTIVE UK T/A BRAYMARC,BD4 ,13/12/2023,815.00
115929233,Streetsmart,Streetsmart,Waterside Fleet Workshops,Supplies and Services,Materials,ALLIANCE AUTOMOTIVE UK T/A BRAYMARC,BD4 ,01/12/2023,815.00
117809235,Town Centre,"Economy, Growth and Place",Carriage Works Phase 3,Capital,Professional Fees,ALLIUM ENVIRONMENTAL LTD,TR3 ,20/12/2023,"2,950.00"
117999233,Early Years Block,Dedicated Schools Grant (DSG),Free Nursery Education Commissioning - three & four  year olds,3rd Party Payments,Contracts - Child Care,ALPHA PRE-SCHOOL,SN5 ,20/12/2023,858.92
117003248,Early Years Block,Dedicated Schools Grant (DSG),Free Nursery Education Commissioning - three & four  year olds,3rd Party Payments,Contracts - Child Care,ALPHA PRE-SCHOOL,SN5 ,13/12/2023,635.04
117003249,Early Years Block,Dedicated Schools Grant (DSG),Free Nursery Education Commissioning - three & four  year olds,3rd Party Payments,Contracts - Child Care,ALPHA PRE-SCHOOL,SN5 ,13/12/2023,"1,718.64"
117003247,Early Years Block,Dedicated Schools Grant (DSG),Free Nursery Education Commissioning - two year olds,3rd Party Payments,Contracts - Child Care,ALPHA PRE-SCHOOL,SN5 ,13/12/2023,"2,593.92"
117126233,Disabled Children,Children & Families,DCT Daytime Short Breaks,3rd Party Payments,Respite Care,ALPHA24 HEALTHCARE LTD,EC3A,15/12/2023,978.75
118160233,Disabled Children,Children & Families,DCT Daytime Short Breaks,3rd Party Payments,Respite Care,ALPHA24 HEALTHCARE LTD,EC3A,20/12/2023,"1,305.00"
118541234,Disabled Children,Children & Families,DCT Daytime Short Breaks,3rd Party Payments,Respite Care,ALPHA24 HEALTHCARE LTD,EC3A,22/12/2023,652.50
118545233,Disabled Children,Children & Families,DCT Daytime Short Breaks,3rd Party Payments,Respite Care,ALPHA24 HEALTHCARE LTD,EC3A,22/12/2023,978.75
118546233,Disabled Children,Children & Families,DCT Daytime Short Breaks,3rd Party Payments,Respite Care,ALPHA24 HEALTHCARE LTD,EC3A,22/12/2023,978.75
118538233,Disabled Children,Children & Families,DCT Daytime Short Breaks,3rd Party Payments,Respite Care,ALPHA24 HEALTHCARE LTD,EC3A,22/12/2023,978.75
118841234,Disabled Children,Children & Families,DCT Daytime Short Breaks,3rd Party Payments,Respite Care,ALPHA24 HEALTHCARE LTD,EC3A,28/12/2023,978.75
118542233,Disabled Children,Children & Families,DCT Daytime Short Breaks,3rd Party Payments,Respite Care,ALPHA24 HEALTHCARE LTD,EC3A,22/12/2023,978.75
117128233,Disabled Children,Children & Families,DCT Daytime Short Breaks,3rd Party Payments,Respite Care,ALPHA24 HEALTHCARE LTD,EC3A,15/12/2023,652.50
118844233,Disabled Children,Children & Families,DCT Daytime Short Breaks,3rd Party Payments,Respite Care,ALPHA24 HEALTHCARE LTD,EC3A,28/12/2023,978.75
116976234,Disabled Children,Children & Families,DCT Daytime Short Breaks,3rd Party Payments,Respite Care,ALPHA24 HEALTHCARE LTD,EC3A,13/12/2023,978.75
116973233,Disabled Children,Children & Families,DCT Daytime Short Breaks,3rd Party Payments,Respite Care,ALPHA24 HEALTHCARE LTD,EC3A,13/12/2023,978.75
117135233,Disabled Children,Children & Families,DCT Daytime Short Breaks,3rd Party Payments,Respite Care,ALPHA24 HEALTHCARE LTD,EC3A,15/12/2023,652.50
118544233,Disabled Children,Children & Families,DCT Daytime Short Breaks,3rd Party Payments,Respite Care,ALPHA24 HEALTHCARE LTD,EC3A,22/12/2023,"1,631.25"
116484233,Social Care,Children & Families,Legal Fees,Supplies and Services,Fees,ALPHABIOLABS,WA5 ,08/12/2023,439.00
116489233,Social Care,Children & Families,Legal Fees,Supplies and Services,Fees,ALPHABIOLABS,WA5 ,08/12/2023,510.00
117513260,Physical Support,Adults,Physical Support 65 and over,3rd Party Payments,Nursing Care,ALTOGETHER CARE WEYMOUTH CARE HOME,DT4 ,18/12/2023,"4,023.28"
117513260,Physical Support,Adults,Physical Support 65 and over,Income,Client Contribution - Nursing,ALTOGETHER CARE WEYMOUTH CARE HOME,DT4 ,18/12/2023,-691.20
118723233,Town Centre,"Economy, Growth and Place",Uk shared Properity Fund,Supplies and Services,Services,ALZHEIMERS SOCIETY,PL6 ,22/12/2023,"5,833.33"
116480233,Town Centre,"Economy, Growth and Place",Uk shared Properity Fund,Supplies and Services,Services,ALZHEIMERS SOCIETY,PL6 ,08/12/2023,"5,833.33"
119014233,"Volutary Sector, Equipment and Carers",Adults,Voluntary Sector Adults,3rd Party Payments,Contracts - Social Care,ALZHEIMERS SOCIETY,PL6 ,28/12/2023,"2,433.00"
118089259,Learning Disabilities,Adults,Learning Disability 18 - 64,Transfer Payments,Personal Budget - Direct Payments - Domiciliary Care,REDACTED PERSONAL DATA,SN3 ,20/12/2023,81.40
118089259,Learning Disabilities,Adults,Learning Disability 18 - 64,Transfer Payments,Personal Budget - Direct Payments - Domiciliary Care,REDACTED PERSONAL DATA,SN3 ,20/12/2023,"1,782.66"
115722233,"Volutary Sector, Equipment and Carers",Adults,Carers Short Term Breaks - Adults,3rd Party Payments,Carers,REDACTED PERSONAL DATA,SN4 ,01/12/2023,500.00
Corporate Card Transaction,Social Care,"Children, Families and Community Health Services",Placement - Care Leaver Team,3rd Party Payments,Christmas Payment,Amazon* 204-1452306-64,,30/11/2023,3400
Corporate Card Transaction,Social Care,"Children, Families and Community Health Services",Unaccompanied Asylum Seeking Children (UASC),3rd Party Payments,Christmas Payment,Amazon* 204-1452306-64,,30/11/2023,2200
Corporate Card Transaction,Social Care,"Children, Families and Community Health Services",Placement - Care Leaver Team,3rd Party Payments,Christmas Payment,Amazon* 204-1452306-64,,30/11/2023,7100
Corporate Card Transaction,Social Care,"Children, Families and Community Health Services",Placement - Care Leaver Team,3rd Party Payments,Christmas Payment,Amazon.Co.Uk*jv0a396j5,,14/12/2023,500
Corporate Card Transaction,Social Care,"Children, Families and Community Health Services",Placement - Care Leaver Team,Supplies and Services,Materials,Amznmktplace,,01/12/2023,669.99
Corporate Card Transaction,Homelessness and Travellers,Housing Services,Bed and Breakfast Accommodation,Transfer Payments,Payment of Costs,Amznmktplace,,28/11/2023,1962.79
117132233,Routes to Employment,"Education, Inclusion and Skills",Multiply,Supplies and Services,Materials,AMENA HANMAN (DYSLEXIA ASSESSOR),SN3 ,15/12/2023,570.00
116697233,Highways & Transport,Highways & Transport,Project Delivery,Supplies and Services,Services,AMEY OW LTD,L19 ,11/12/2023,"105,579.99"
117823233,Highways & Transport,Highways & Transport,Project Delivery,Supplies and Services,Services,AMEY OW LTD,L19 ,20/12/2023,"52,857.30"
116046273,Social Care,Children & Families,Children's Resource and Home Finding Team,3rd Party Payments,Independent Fostering Agency Placements,AMICUS FOSTER CARE,BS2 ,04/12/2023,"5,086.50"
115995243,Disabled Children,Children & Families,DCT Daytime Short Breaks,Transfer Payments,Personal Budget - Direct Payments - Other,REDACTED PERSONAL DATA,SN2 ,01/12/2023,"1,385.06"
118115233,Mental Health,Adults,Mental Health 18-64,Transfer Payments,Personal Budget - Direct Payments - Domiciliary Care,REDACTED PERSONAL DATA,SN25,20/12/2023,1.84
118115233,Mental Health,Adults,Mental Health 18-64,Transfer Payments,Personal Budget - Direct Payments - Other,REDACTED PERSONAL DATA,SN25,20/12/2023,24.00
118115233,Mental Health,Adults,Mental Health 18-64,Transfer Payments,Personal Budget - Direct Payments - Domiciliary Care,REDACTED PERSONAL DATA,SN25,20/12/2023,544.32
117003251,Early Years Block,Dedicated Schools Grant (DSG),Free Nursery Education Commissioning - three & four  year olds,3rd Party Payments,Contracts - Child Care,REDACTED PERSONAL DATA,SN25,13/12/2023,882.00
118053233,Early Years Block,Dedicated Schools Grant (DSG),Free Nursery Education Commissioning - two year olds,3rd Party Payments,Contracts - Child Care,REDACTED PERSONAL DATA,SN5 ,20/12/2023,"1,621.20"
117003518,Early Years Block,Dedicated Schools Grant (DSG),Free Nursery Education Commissioning - two year olds,3rd Party Payments,Contracts - Child Care,REDACTED PERSONAL DATA,SN5 ,13/12/2023,"4,539.36"
117003520,Early Years Block,Dedicated Schools Grant (DSG),Free Nursery Education Commissioning - three & four  year olds,3rd Party Payments,Contracts - Child Care,REDACTED PERSONAL DATA,SN5 ,13/12/2023,"25,477.20"
117003519,Early Years Block,Dedicated Schools Grant (DSG),Free Nursery Education Commissioning - three & four  year olds,3rd Party Payments,Contracts - Child Care,REDACTED PERSONAL DATA,SN5 ,13/12/2023,"1,360.80"
118052233,Early Years Block,Dedicated Schools Grant (DSG),Free Nursery Education Commissioning - three & four  year olds,3rd Party Payments,Contracts - Child Care,REDACTED PERSONAL DATA,SN5 ,20/12/2023,787.50
117972251,Early Years Block,Dedicated Schools Grant (DSG),Free Nursery Education Commissioning - three & four  year olds,3rd Party Payments,Contracts - Child Care,REDACTED PERSONAL DATA,SN5 ,20/12/2023,"2,280.00"
117344320,Homelessness and Travellers,Housing Services,Private Sector Landlords,Transfer Payments,Payment of Costs,ANGELVIEW PROPERTIES LTD,ALBO,20/12/2023,590.00
117578233,Social Care,Children & Families,Placement Adoption Service,3rd Party Payments,Adoption Allowances,REDACTED PERSONAL DATA,TR8 ,18/12/2023,604.60
118089311,Physical Support,Adults,Physical Support 18 - 64,Transfer Payments,Personal Budget - Direct Payments - Domiciliary Care,REDACTED PERSONAL DATA,SN25,20/12/2023,171.20
118089311,Physical Support,Adults,Physical Support 18 - 64,Transfer Payments,Personal Budget - Direct Payments - Domiciliary Care,REDACTED PERSONAL DATA,SN25,20/12/2023,376.00
118089311,Physical Support,Adults,Physical Support 18 - 64,Transfer Payments,Personal Budget - Direct Payments - Domiciliary Care,REDACTED PERSONAL DATA,SN25,20/12/2023,"1,172.16"
118089311,Physical Support,Adults,Physical Support 18 - 64,Transfer Payments,Personal Budget - Direct Payments - Domiciliary Care,REDACTED PERSONAL DATA,SN25,20/12/2023,24.80
118089311,Physical Support,Adults,Physical Support 18 - 64,Transfer Payments,Personal Budget - Direct Payments - Domiciliary Care,REDACTED PERSONAL DATA,SN25,20/12/2023,732.60
116627233,Early Help,Early Intervention & Prevention,On Trak Youth Counselling Service,3rd Party Payments,Contract Payments,REDACTED PERSONAL DATA,SN2 ,11/12/2023,585.00
116626233,Early Help,Early Intervention & Prevention,On Trak Youth Counselling Service,3rd Party Payments,Contract Payments,REDACTED PERSONAL DATA,SN2 ,11/12/2023,810.00
115911233,HRA Overheads,Supervision & Management,Admin / Management General,Premises Costs,Insurance - Premises,AON UK LIMITED,EC3V,01/12/2023,"4,068.49"
115751233,Supported Employment,Housing Services,Community Meals,Supplies and Services,Food,APETITO LIMITED,BA14,01/12/2023,940.80
118996233,Supported Employment,Housing Services,Community Meals,Supplies and Services,Food,APETITO LIMITED,BA14,28/12/2023,740.81
118995233,Supported Employment,Housing Services,Community Meals,Supplies and Services,Food,APETITO LIMITED,BA14,28/12/2023,897.55
118997233,Supported Employment,Housing Services,Community Meals,Supplies and Services,Food,APETITO LIMITED,BA14,28/12/2023,673.77
117056233,Supported Employment,Housing Services,Community Meals,Supplies and Services,Food,APETITO LIMITED,BA14,15/12/2023,645.58
117149249,Responsive Repairs,Repairs,Responsive Repairs,3rd Party Payments,Contract Payments,APEX SCAFFOLDING SERVICES,SN2 ,15/12/2023,525.00
115862233,Responsive Repairs,Repairs,Responsive Repairs,3rd Party Payments,Contract Payments,APEX SCAFFOLDING SERVICES,SN2 ,01/12/2023,650.00
116742246,Responsive Repairs,Repairs,Responsive Repairs,3rd Party Payments,Contract Payments,APEX SCAFFOLDING SERVICES,SN2 ,13/12/2023,792.00
118932233,,,Balance Sheet,Balance Sheet & Recharge,Resources Recharges,APOGEE CORPORATION LIMITED,ME16,28/12/2023,"4,132.93"
116259233,,,Balance Sheet,Balance Sheet & Recharge,Resources Recharges,APOGEE CORPORATION LIMITED,ME16,28/12/2023,"2,394.45"
118930233,,,Balance Sheet,Balance Sheet & Recharge,Resources Recharges,APOGEE CORPORATION LIMITED,ME16,28/12/2023,"10,603.68"
116178233,,,Balance Sheet,Balance Sheet & Recharge,Resources Recharges,APOGEE CORPORATION LIMITED,ME16,28/12/2023,"-15,095.86"
115890233,,,Balance Sheet,Balance Sheet & Recharge,Resources Recharges,APOGEE CORPORATION LIMITED,ME16,01/12/2023,"5,707.18"
117508296,Learning Disabilities,Adults,Learning Disability 18 - 64,3rd Party Payments,Residential Care,APPLEFORD LTD T/A DANESWOOD,BS25,18/12/2023,"22,008.12"
117508296,Learning Disabilities,Adults,Learning Disability 18 - 64,Income,Client Contribution - Residential,APPLEFORD LTD T/A DANESWOOD,BS25,18/12/2023,-438.80
117944234,Adults - Staffing and Supporting People,Adults,Blue Badges,Supplies and Services,Materials,APS GROUP,SK3 ,20/12/2023,"1,850.00"
117972257,Early Years Block,Dedicated Schools Grant (DSG),Free Nursery Education Commissioning - three & four  year olds,3rd Party Payments,Contracts - Child Care,REDACTED PERSONAL DATA,SN2 ,20/12/2023,"7,980.00"
117003254,Early Years Block,Dedicated Schools Grant (DSG),Free Nursery Education Commissioning - three & four  year olds,3rd Party Payments,Contracts - Child Care,REDACTED PERSONAL DATA,SN2 ,13/12/2023,680.40
117950233,High Needs Block,Dedicated Schools Grant (DSG),SEN Resourcing Assessment Panel,3rd Party Payments,Top up funding - Maintained providers Pre 16,REDACTED PERSONAL DATA,SN2 ,20/12/2023,"7,980.00"
117003255,Early Years Block,Dedicated Schools Grant (DSG),Free Nursery Education Commissioning - three & four  year olds,3rd Party Payments,Contracts - Child Care,REDACTED PERSONAL DATA,SN2 ,13/12/2023,"4,733.11"
118000233,Early Years Block,Dedicated Schools Grant (DSG),Free Nursery Education Commissioning - three & four  year olds,3rd Party Payments,Contracts - Child Care,REDACTED PERSONAL DATA,SN2 ,20/12/2023,"2,576.76"
105685233,Human Resources and Organisational Development,"People, Culture and Organisational Resilience",Organisational Development,Employees,Training,ARCA LIMITED,DE13,06/12/2023,-614.00
111075233,Other Repairs,Repairs,Asbestos Services,Supplies and Services,Materials,ARCA LIMITED,DE13,06/12/2023,"3,800.00"
112246233,Human Resources and Organisational Development,"People, Culture and Organisational Resilience",Organisational Development,Employees,Training,ARCA LIMITED,DE13,06/12/2023,520.00
116771234,Planned Maintenance Programme,HRA Capital Financing,Exceptional Extensive,Capital,Contractor Payments,ARCADIS CONSULTING (UK) LTD,EC3M,13/12/2023,"27,900.00"
116771234,Planned Maintenance Programme,HRA Capital Financing,Exceptional Extensive,Capital,Contractor Payments,ARCADIS CONSULTING (UK) LTD,EC3M,13/12/2023,"3,894.37"
116771234,Planned Maintenance Programme,HRA Capital Financing,Exceptional Extensive,Capital,Contractor Payments,ARCADIS CONSULTING (UK) LTD,EC3M,13/12/2023,"11,189.06"
116771234,Planned Maintenance Programme,HRA Capital Financing,Exceptional Extensive,Capital,Contractor Payments,ARCADIS CONSULTING (UK) LTD,EC3M,13/12/2023,"10,251.79"
116046268,Social Care,Children & Families,Children's Resource and Home Finding Team,3rd Party Payments,Residential Care,AREA CAMDEN GROUP,N8 0,04/12/2023,"22,950.00"
116046267,Social Care,Children & Families,Children's Resource and Home Finding Team,3rd Party Payments,Residential Care,AREA CAMDEN GROUP,N8 0,04/12/2023,"3,351.56"
118613233,Human Resources and Organisational Development,"People, Culture and Organisational Resilience",Pay & Reward,Employees,Temporary / Agency - by Accounts Payable,ARGONAUT MANAGEMENT SERVICES LIMITED,N11 ,22/12/2023,"7,800.00"
117513266,Mental Health,Adults,Mental Health 65 and over,3rd Party Payments,Nursing Care,ARIA HEALTHCARE GROUP LTD,CO4 ,18/12/2023,"6,000.00"
115946234,Lydiard Park,Culture & Heritage,Lydiard : Hotel Operations,Supplies and Services,Liquid,ARKELLS BREWERY LTD,SN2 ,01/12/2023,492.22
116959233,Streetsmart,Streetsmart,Waterside Fleet Hires,Transport Costs,Vehicle Hire / Contract,ARNOLD PLANT HIRE LIMITED,SK6 ,13/12/2023,"1,540.00"
116960233,Streetsmart,Streetsmart,Waterside Fleet Hires,Transport Costs,Vehicle Hire / Contract,ARNOLD PLANT HIRE LIMITED,SK6 ,13/12/2023,"1,166.00"
116958233,Streetsmart,Streetsmart,Waterside Fleet Hires,Transport Costs,Vehicle Hire / Contract,ARNOLD PLANT HIRE LIMITED,SK6 ,13/12/2023,"1,738.00"
117513264,Mental Health,Adults,Mental Health 65 and over,3rd Party Payments,Residential Care,ARTI CARE HOMES (GLOUCESTER) LIMITED,WD7 ,18/12/2023,"4,800.00"
117508297,Mental Health,Adults,Mental Health 18-64,Income,Client Contribution - Residential,ASH VIEW HOUSE,BS15,18/12/2023,-418.80
117508297,Mental Health,Adults,Mental Health 18-64,3rd Party Payments,Residential Care,ASH VIEW HOUSE,BS15,18/12/2023,"7,993.72"
117508238,Physical Support,Adults,Physical Support 65 and over,3rd Party Payments,Residential Care,ASHBURY LODGE,SN3 ,18/12/2023,"2,867.32"
117508238,Physical Support,Adults,Physical Support 65 and over,Income,Client Contribution - Residential,ASHBURY LODGE,SN3 ,18/12/2023,-730.76
117508238,Physical Support,Adults,Physical Support 65 and over,Income,Client Contribution - Residential,ASHBURY LODGE,SN3 ,18/12/2023,"-1,125.72"
117508238,Physical Support,Adults,Physical Support 65 and over,Income,Client Contribution - Residential,ASHBURY LODGE,SN3 ,18/12/2023,-886.60
117508238,Physical Support,Adults,Physical Support 65 and over,3rd Party Payments,Residential Care,ASHBURY LODGE,SN3 ,18/12/2023,"3,481.75"
117508238,Physical Support,Adults,Physical Support 65 and over,Income,Client Contribution - Residential,ASHBURY LODGE,SN3 ,18/12/2023,-296.22
117508238,Mental Health,Adults,Mental Health 65 and over,3rd Party Payments,Residential Care,ASHBURY LODGE,SN3 ,18/12/2023,"2,988.96"
117508238,Mental Health,Adults,Mental Health 65 and over,3rd Party Payments,Residential Care,ASHBURY LODGE,SN3 ,18/12/2023,"2,867.32"
117508238,Memory & Cognition,Adults,Support for Memory and Cognition 65 and over,3rd Party Payments,Residential Care,ASHBURY LODGE,SN3 ,18/12/2023,716.83
117508238,Physical Support,Adults,Physical Support 65 and over,Income,Client Contribution - Residential,ASHBURY LODGE,SN3 ,18/12/2023,"1,084.96"
117508238,Mental Health,Adults,Mental Health 65 and over,Income,Client Contribution - Residential,ASHBURY LODGE,SN3 ,18/12/2023,-691.20
117508238,Physical Support,Adults,Physical Support 65 and over,3rd Party Payments,Residential Care,ASHBURY LODGE,SN3 ,18/12/2023,-572.90
117508238,Physical Support,Adults,Physical Support 65 and over,3rd Party Payments,Residential Care,ASHBURY LODGE,SN3 ,18/12/2023,"1,228.85"
117508238,Memory & Cognition,Adults,Support for Memory and Cognition 65 and over,Income,Client Contribution - Residential,ASHBURY LODGE,SN3 ,18/12/2023,-691.20
117508238,Physical Support,Adults,Physical Support 65 and over,3rd Party Payments,Residential Care,ASHBURY LODGE,SN3 ,18/12/2023,"4,032.00"
117508238,Physical Support,Adults,Physical Support 65 and over,Income,Client Contribution - Residential,ASHBURY LODGE,SN3 ,18/12/2023,-764.80
117508238,Physical Support,Adults,Physical Support 65 and over,Income,Client Contribution - Residential,ASHBURY LODGE,SN3 ,18/12/2023,-801.80
117508238,Mental Health,Adults,Mental Health 65 and over,3rd Party Payments,Residential Care,ASHBURY LODGE,SN3 ,18/12/2023,"4,000.00"
117508238,Physical Support,Adults,Physical Support 65 and over,Income,Client Contribution - Residential,ASHBURY LODGE,SN3 ,18/12/2023,"-1,308.16"
117508238,Memory & Cognition,Adults,Support for Memory and Cognition 65 and over,3rd Party Payments,Residential Care,ASHBURY LODGE,SN3 ,18/12/2023,"2,867.32"
117508238,Memory & Cognition,Adults,Support for Memory and Cognition 65 and over,3rd Party Payments,Residential Care,ASHBURY LODGE,SN3 ,18/12/2023,512.02
117508238,Physical Support,Adults,Physical Support 65 and over,Income,Client Contribution - Residential,ASHBURY LODGE,SN3 ,18/12/2023,-657.68
117508238,Physical Support,Adults,Physical Support 65 and over,Income,Client Contribution - Residential,ASHBURY LODGE,SN3 ,18/12/2023,-691.20
117508238,Mental Health,Adults,Mental Health 65 and over,Income,Client Contribution - Residential,ASHBURY LODGE,SN3 ,18/12/2023,-881.64
117508238,Physical Support,Adults,Physical Support 65 and over,3rd Party Payments,Residential Care,ASHBURY LODGE,SN3 ,18/12/2023,"-2,867.32"
117508237,Physical Support,Adults,Physical Support 65 and over,3rd Party Payments,Nursing Care,ASHGROVE HOUSE NURSING HOME,SN5 ,18/12/2023,"6,080.00"
117508237,Physical Support,Adults,Physical Support 65 and over,Income,Client Contribution - Nursing,ASHGROVE HOUSE NURSING HOME,SN5 ,18/12/2023,-655.04
118096234,Physical Support,Adults,Physical Support 18 - 64,Transfer Payments,Personal Budget - Direct Payments - Other,REDACTED PERSONAL DATA,SN25,20/12/2023,24.00
118096234,Physical Support,Adults,Physical Support 18 - 64,Transfer Payments,Personal Budget - Direct Payments - Domiciliary Care,REDACTED PERSONAL DATA,SN25,20/12/2023,12.24
118096234,Physical Support,Adults,Physical Support 18 - 64,Transfer Payments,Personal Budget - Direct Payments - Domiciliary Care,REDACTED PERSONAL DATA,SN25,20/12/2023,"1,519.56"
118727233,Libraries,"Education, Inclusion and Skills",Library Delivery,Supplies and Services,Materials,ASKEWS AND HOLTS LIBRARY SERVICES LIMITED,PR1 ,22/12/2023,"1,212.94"
117797233,Libraries,"Education, Inclusion and Skills",Library Delivery,Supplies and Services,Materials,ASKEWS AND HOLTS LIBRARY SERVICES LIMITED,PR1 ,20/12/2023,"2,357.40"
117508267,Learning Disabilities,Adults,Learning Disability 18 - 64,3rd Party Payments,Residential Care,ASPECTS & MILESTONES TRUST,BS16,18/12/2023,"6,964.88"
117508267,Learning Disabilities,Adults,Learning Disability 18 - 64,Income,Client Contribution - Residential,ASPECTS & MILESTONES TRUST,BS16,18/12/2023,-463.20
117508304,Learning Disabilities,Adults,Learning Disability 18 - 64,Income,Client Contribution - Residential,ASPECTS 2 LTD,B70 ,18/12/2023,-438.80
117508304,Learning Disabilities,Adults,Learning Disability 18 - 64,3rd Party Payments,Residential Care,ASPECTS 2 LTD,B70 ,18/12/2023,"9,278.64"
116498233,High Needs Block,Dedicated Schools Grant (DSG),Out of Borough School Fees,3rd Party Payments,Independent Special School- Pre 16,ASPRIS CHILDREN'S SERVICES,DL1 ,08/12/2023,"35,095.24"
117513238,Learning Disabilities,Adults,Learning Disability 18 - 64,Income,Client Contribution - Residential,ASTON CARE LIMITED,RG30,18/12/2023,-410.80
117513238,Learning Disabilities,Adults,Learning Disability 18 - 64,3rd Party Payments,Residential Care,ASTON CARE LIMITED,RG30,18/12/2023,"8,288.00"
117513238,Learning Disabilities,Adults,Learning Disability 18 - 64,3rd Party Payments,Residential Care,ASTON CARE LIMITED,RG30,18/12/2023,"8,008.00"
117513238,Learning Disabilities,Adults,Learning Disability 18 - 64,Income,Client Contribution - Residential,ASTON CARE LIMITED,RG30,18/12/2023,-587.40
117513238,Learning Disabilities,Adults,Learning Disability 18 - 64,Income,Client Contribution - Residential,ASTON CARE LIMITED,RG30,18/12/2023,-655.44
117513238,Learning Disabilities,Adults,Learning Disability 18 - 64,Income,Client Contribution - Residential,ASTON CARE LIMITED,RG30,18/12/2023,-676.40
117513238,Learning Disabilities,Adults,Learning Disability 18 - 64,3rd Party Payments,Residential Care,ASTON CARE LIMITED,RG30,18/12/2023,"7,288.00"
117513237,Learning Disabilities,Adults,Learning Disability 18 - 64,Income,Client Contribution - Residential,ASTON CARE LIMITED,RG30,18/12/2023,-788.80
117513237,Learning Disabilities,Adults,Learning Disability 18 - 64,3rd Party Payments,Residential Care,ASTON CARE LIMITED,RG30,18/12/2023,"9,733.80"
118189233,Social Care,Children & Families,CP & CIN Social Work - South,Employees,DBS checks,ATTENTI LTD,EC2R,22/12/2023,"25,375.81"
117528233,Senior Management Team,Children & Families,Senior Management Team - Staffing,Employees,Temporary / Agency - by Accounts Payable,ATTENTI LTD,EC2R,18/12/2023,"3,540.00"
117992233,Safeguarding and Quality Assurance,Children & Families,Quality Assurance Team,Employees,Temporary / Agency - by Accounts Payable,ATTENTI LTD,EC2R,20/12/2023,"2,360.00"
117712234,Safeguarding and Quality Assurance,Children & Families,Quality Assurance Team,Employees,Temporary / Agency - by Accounts Payable,ATTENTI LTD,EC2R,18/12/2023,"2,360.00"
117454233,Social Care,Children & Families,CP & CIN Social Work - South,Employees,DBS checks,ATTENTI LTD,EC2R,18/12/2023,"25,375.81"
117702233,Social Care,Children & Families,Practise Development,Employees,Temporary / Agency - by Accounts Payable,ATTENTI LTD,EC2R,18/12/2023,"1,416.00"
119013233,Safeguarding and Quality Assurance,Children & Families,Quality Assurance Team,Employees,Temporary / Agency - by Accounts Payable,ATTENTI LTD,EC2R,28/12/2023,"2,360.00"
117711234,Safeguarding and Quality Assurance,Children & Families,Quality Assurance Team,Employees,Temporary / Agency - by Accounts Payable,ATTENTI LTD,EC2R,18/12/2023,"2,360.00"
117505233,Safeguarding and Quality Assurance,Children & Families,Quality Assurance Team,Employees,Temporary / Agency - by Accounts Payable,ATTENTI LTD,EC2R,18/12/2023,"2,360.00"
117494234,Safeguarding and Quality Assurance,Children & Families,Quality Assurance Team,Employees,Temporary / Agency - by Accounts Payable,ATTENTI LTD,EC2R,18/12/2023,"2,360.00"
117714233,Senior Management Team,Children & Families,Family Safeguarding Model,Employees,Temporary / Agency - by Accounts Payable,ATTENTI LTD,EC2R,18/12/2023,"1,888.00"
117714237,Senior Management Team,Children & Families,Family Safeguarding Model,Employees,Temporary / Agency - by Accounts Payable,ATTENTI LTD,EC2R,18/12/2023,"2,950.00"
117146233,Social Care,Children & Families,Practise Development,Employees,Temporary / Agency - by Accounts Payable,ATTENTI LTD,EC2R,15/12/2023,"2,360.00"
117710234,Senior Management Team,Children & Families,Family Safeguarding Model,Employees,Temporary / Agency - by Accounts Payable,ATTENTI LTD,EC2R,18/12/2023,"2,124.00"
117704233,Senior Management Team,Children & Families,Family Safeguarding Model,Employees,Temporary / Agency - by Accounts Payable,ATTENTI LTD,EC2R,18/12/2023,"2,950.00"
117506236,Senior Management Team,Children & Families,Family Safeguarding Model,Employees,Temporary / Agency - by Accounts Payable,ATTENTI LTD,EC2R,18/12/2023,"2,950.00"
117514233,Social Care,Children & Families,Practise Development,Employees,Temporary / Agency - by Accounts Payable,ATTENTI LTD,EC2R,18/12/2023,"1,416.00"
117714236,Senior Management Team,Children & Families,Senior Management Team - Staffing,Employees,Temporary / Agency - by Accounts Payable,ATTENTI LTD,EC2R,18/12/2023,"3,540.00"
117523234,Senior Management Team,Children & Families,Senior Management Team - Staffing,Employees,Temporary / Agency - by Accounts Payable,ATTENTI LTD,EC2R,18/12/2023,"3,980.00"
117713234,Senior Management Team,Children & Families,Senior Management Team - Staffing,Employees,Temporary / Agency - by Accounts Payable,ATTENTI LTD,EC2R,18/12/2023,"3,980.00"
117515233,Social Care,Children & Families,Practise Development,Employees,Temporary / Agency - by Accounts Payable,ATTENTI LTD,EC2R,18/12/2023,"2,400.00"
119015233,Safeguarding and Quality Assurance,Children & Families,Quality Assurance Team,Employees,Temporary / Agency - by Accounts Payable,ATTENTI LTD,EC2R,28/12/2023,944.00
118226233,Social Care,Children & Families,CP & CIN Social Work - South,Employees,DBS checks,ATTENTI LTD,EC2R,22/12/2023,"25,375.81"
117145233,Social Care,Children & Families,Practise Development,Employees,Temporary / Agency - by Accounts Payable,ATTENTI LTD,EC2R,15/12/2023,"1,416.00"
117507233,Senior Management Team,Children & Families,Family Safeguarding Model,Employees,Temporary / Agency - by Accounts Payable,ATTENTI LTD,EC2R,18/12/2023,"2,360.00"
118225233,Social Care,Children & Families,CP & CIN Social Work - South,Employees,DBS checks,ATTENTI LTD,EC2R,22/12/2023,"25,375.81"
118667233,Senior Management Team,Children & Families,Senior Management Team - Staffing,Employees,Temporary / Agency - by Accounts Payable,ATTENTI LTD,EC2R,22/12/2023,"3,540.00"
117517233,Social Care,Children & Families,Practise Development,Employees,Temporary / Agency - by Accounts Payable,ATTENTI LTD,EC2R,18/12/2023,"1,888.00"
118958233,Safeguarding and Quality Assurance,Children & Families,Quality Assurance Team,Employees,Temporary / Agency - by Accounts Payable,ATTENTI LTD,EC2R,28/12/2023,"2,360.00"
118673233,Social Care,Children & Families,Practise Development,Employees,Temporary / Agency - by Accounts Payable,ATTENTI LTD,EC2R,22/12/2023,"1,416.00"
117703233,Social Care,Children & Families,Practise Development,Employees,Temporary / Agency - by Accounts Payable,ATTENTI LTD,EC2R,18/12/2023,"2,400.00"
117144233,Social Care,Children & Families,Practise Development,Employees,Temporary / Agency - by Accounts Payable,ATTENTI LTD,EC2R,15/12/2023,"2,360.00"
117513256,Physical Support,Adults,Physical Support 65 and over,Income,Client Contribution - Residential,AURA CARE LIVING CIRENCESTER LTD,GL7 ,18/12/2023,"-1,021.48"
117513256,Physical Support,Adults,Physical Support 65 and over,3rd Party Payments,Nursing Care,AURA CARE LIVING CIRENCESTER LTD,GL7 ,18/12/2023,"5,886.00"
117513256,Physical Support,Adults,Physical Support 65 and over,Income,Client Contribution - Nursing,AURA CARE LIVING CIRENCESTER LTD,GL7 ,18/12/2023,-735.64
117513256,Mental Health,Adults,Mental Health 18-64,3rd Party Payments,Residential Care,AURA CARE LIVING CIRENCESTER LTD,GL7 ,18/12/2023,"11,734.00"
117513256,Mental Health,Adults,Mental Health 65 and over,3rd Party Payments,Residential Care,AURA CARE LIVING CIRENCESTER LTD,GL7 ,18/12/2023,"6,104.00"
117513256,Physical Support,Adults,Physical Support 65 and over,Income,Client Contribution - Nursing,AURA CARE LIVING CIRENCESTER LTD,GL7 ,18/12/2023,-608.00
117513256,Mental Health,Adults,Mental Health 18-64,3rd Party Payments,Nursing Care,AURA CARE LIVING CIRENCESTER LTD,GL7 ,18/12/2023,"12,606.00"
117513256,Physical Support,Adults,Physical Support 65 and over,3rd Party Payments,Nursing Care,AURA CARE LIVING CIRENCESTER LTD,GL7 ,18/12/2023,"4,796.00"
117513256,Physical Support,Adults,Physical Support 65 and over,3rd Party Payments,Residential Care,AURA CARE LIVING CIRENCESTER LTD,GL7 ,18/12/2023,"4,142.00"
117513256,Physical Support,Adults,Physical Support 65 and over,Income,Client Contribution - Nursing,AURA CARE LIVING CIRENCESTER LTD,GL7 ,18/12/2023,-691.20
115873233,Museums & Heritage,Culture & Heritage,Steam:Income Generation,Supplies and Services,Publicity,AUTOMOBILE ASSOCIATION LTD,RG21,01/12/2023,670.00
117513243,Learning Disabilities,Adults,Learning Disability 18 - 64,3rd Party Payments,Residential Care,AUTONOMY LIFE LIMITED,SN12,18/12/2023,"10,027.60"
117513243,Learning Disabilities,Adults,Learning Disability 18 - 64,Income,Client Contribution - Residential,AUTONOMY LIFE LIMITED,SN12,18/12/2023,-628.56
117508250,Learning Disabilities,Adults,Learning Disability 18 - 64,3rd Party Payments,Residential Care,AVON AUTISTIC FOUNDATION LTD,BS11,18/12/2023,"7,668.32"
117508249,Learning Disabilities,Adults,Learning Disability 18 - 64,Income,Client Contribution - Residential,AVON AUTISTIC FOUNDATION LTD,BS11,18/12/2023,-438.80
117508249,Learning Disabilities,Adults,Learning Disability 18 - 64,3rd Party Payments,Residential Care,AVON AUTISTIC FOUNDATION LTD,BS11,18/12/2023,"5,482.04"
117508250,Learning Disabilities,Adults,Learning Disability 18 - 64,Income,Client Contribution - Residential,AVON AUTISTIC FOUNDATION LTD,BS11,18/12/2023,-483.20
117344268,Homelessness and Travellers,Housing Services,Private Sector Landlords,Transfer Payments,Payment of Costs,AVONPARK PROPERTIES LTD,SN3 ,20/12/2023,615.00
117344356,Homelessness and Travellers,Housing Services,Private Sector Landlords,Transfer Payments,Payment of Costs,AVONPARK PROPERTIES LTD,SN3 ,20/12/2023,550.00
117256242,Social Care,Children & Families,Placement Adoption Service,3rd Party Payments,Special Guardianship Orders,REDACTED PERSONAL DATA,SN2 ,18/12/2023,594.29
117966234,Children's Community Health,Community Health,Public Health 0 - 5 years,Supplies and Services,Materials,BACK CARE SOLUTIONS LTD,PR5 ,20/12/2023,"1,394.95"
118064233,Customer Strategy & Operations,"People, Culture and Organisational Resilience",Customer Services,Supplies and Services,Equipment,BACK CARE SOLUTIONS LTD,PR5 ,20/12/2023,825.00
117029234,Heritage,Culture,Lydiard House & Hotel Improvements,Capital,Contractor Payments,BAILEY PARTNERSHIP (CONSULTANTS) LLP,PL1 ,13/12/2023,"2,080.43"
115891233,Social Care,Children & Families,Childrens Homefinding Team,Employees,Temporary / Agency - by Accounts Payable,REDACTED PERSONAL DATA,BS1 ,01/12/2023,"3,125.00"
116709233,Social Care,Children & Families,Childrens Homefinding Team,Employees,Temporary / Agency - by Accounts Payable,REDACTED PERSONAL DATA,BS1 ,11/12/2023,"3,125.00"
116710233,Social Care,Children & Families,Childrens Homefinding Team,Employees,Temporary / Agency - by Accounts Payable,REDACTED PERSONAL DATA,BS1 ,11/12/2023,"2,500.00"
115852235,Social Care,Children & Families,Childrens Homefinding Team,Employees,Temporary / Agency - by Accounts Payable,REDACTED PERSONAL DATA,BS1 ,01/12/2023,"2,500.00"
118089417,Physical Support,Adults,Physical Support 65 and over,Transfer Payments,Personal Budget - Direct Payments - Domiciliary Care,REDACTED PERSONAL DATA,2969,20/12/2023,"1,428.84"
118089417,Physical Support,Adults,Physical Support 65 and over,Income,Client Contribution - Personal Budget - DP,REDACTED PERSONAL DATA,2969,20/12/2023,-324.24
118089417,Physical Support,Adults,Physical Support 65 and over,Transfer Payments,Personal Budget - Direct Payments - Domiciliary Care,REDACTED PERSONAL DATA,2969,20/12/2023,11.04
117003258,Early Years Block,Dedicated Schools Grant (DSG),Free Nursery Education Commissioning - three & four  year olds,3rd Party Payments,Contracts - Child Care,BARN OWL PRE-SCHOOL,SN25,13/12/2023,778.68
118042233,Early Years Block,Dedicated Schools Grant (DSG),Free Nursery Education Commissioning - three & four  year olds,3rd Party Payments,Contracts - Child Care,BARN OWL PRE-SCHOOL,SN25,20/12/2023,"1,135.06"
117003259,Early Years Block,Dedicated Schools Grant (DSG),Free Nursery Education Commissioning - three & four  year olds,3rd Party Payments,Contracts - Child Care,BARN OWL PRE-SCHOOL,SN25,13/12/2023,"5,753.52"
118722233,Highways & Transport,Highways & Transport,Traffic Management & Road Safety,3rd Party Payments,Contract Payments,BASEMAP LTD,GU2 ,22/12/2023,"3,950.00"
117201272,High Needs Block,Dedicated Schools Grant (DSG),SEN Resourcing Assessment Panel,3rd Party Payments,Top up funding - Maintained providers Pre 16,BEECHCROFT INFANT SCHOOL,SN2 ,15/12/2023,"3,190.50"
117215239,Schools - Primary,Dedicated Schools Grant (DSG),Primary School Budgets,3rd Party Payments,Mainstream Delegated Funding,BEECHCROFT INFANT SCHOOL,SN2 ,15/12/2023,"96,891.00"
117216253,DSG Other Funding,Dedicated Schools Grant (DSG),DFE Additional Grants,3rd Party Payments,Payment of Pupil Premium to school,BEECHCROFT INFANT SCHOOL,SN2 ,15/12/2023,"8,347.00"
117508295,Learning Disabilities,Adults,Learning Disability 18 - 64,Income,Client Contribution - Residential,BEECHWOOD COURT LTD,CF10,18/12/2023,-322.56
117508295,Learning Disabilities,Adults,Learning Disability 18 - 64,3rd Party Payments,Residential Care,BEECHWOOD COURT LTD,CF10,18/12/2023,"29,947.84"
117508295,Learning Disabilities,Adults,Learning Disability 18 - 64,3rd Party Payments,Residential Care,BEECHWOOD COURT LTD,CF10,18/12/2023,"20,830.56"
116448233,Homelessness and Travellers,Housing Services,Bed and Breakfast Accommodation,Transfer Payments,Payment of Costs,BELLE MASION LIMITED T/A PARAMOUNT APARTMENTS BY STAYSERVE,SN5 ,08/12/2023,"2,080.00"
116450233,Homelessness and Travellers,Housing Services,Bed and Breakfast Accommodation,Transfer Payments,Payment of Costs,BELLE MASION LIMITED T/A PARAMOUNT APARTMENTS BY STAYSERVE,SN5 ,08/12/2023,"1,820.00"
116449233,Homelessness and Travellers,Housing Services,Bed and Breakfast Accommodation,Transfer Payments,Payment of Costs,BELLE MASION LIMITED T/A PARAMOUNT APARTMENTS BY STAYSERVE,SN5 ,08/12/2023,"2,080.00"
116448233,Homelessness and Travellers,Housing Services,Bed and Breakfast Accommodation,Transfer Payments,Payment of Costs,BELLE MASION LIMITED T/A PARAMOUNT APARTMENTS BY STAYSERVE,SN5 ,08/12/2023,"1,820.00"
116449233,Homelessness and Travellers,Housing Services,Bed and Breakfast Accommodation,Transfer Payments,Payment of Costs,BELLE MASION LIMITED T/A PARAMOUNT APARTMENTS BY STAYSERVE,SN5 ,08/12/2023,"1,820.00"
116450233,Homelessness and Travellers,Housing Services,Bed and Breakfast Accommodation,Transfer Payments,Payment of Costs,BELLE MASION LIMITED T/A PARAMOUNT APARTMENTS BY STAYSERVE,SN5 ,08/12/2023,"2,080.00"
116971233,Homelessness and Travellers,Housing Services,Bed and Breakfast Accommodation,Transfer Payments,Payment of Costs,BELLE MASION LIMITED T/A PARAMOUNT APARTMENTS BY STAYSERVE,SN5 ,13/12/2023,"3,900.00"
116972233,Homelessness and Travellers,Housing Services,Bed and Breakfast Accommodation,Transfer Payments,Payment of Costs,BELLE MASION LIMITED T/A PARAMOUNT APARTMENTS BY STAYSERVE,SN5 ,13/12/2023,"3,900.00"
117357234,Completed Schemes (GF),Completed Schemes (GF & HRA),Link Centre Soft Play,Capital,Contractor Payments,BEN WOOD CONTRACTS LTD,SN12,15/12/2023,"9,030.00"
117356233,Completed Schemes (GF),Completed Schemes (GF & HRA),Link Centre Soft Play,Capital,Contractor Payments,BEN WOOD CONTRACTS LTD,SN12,15/12/2023,"4,780.00"
117170256,Social Care,Children & Families,Placement Adoption Service,3rd Party Payments,Special Guardianship Orders,REDACTED PERSONAL DATA,SN3 ,18/12/2023,872.86
117370233,Social Care,Children & Families,Children's Resource and Home Finding Team,3rd Party Payments,Residential Care,BENJAMIN UK LIMITED,LU7 ,18/12/2023,"17,692.01"
116192233,Social Care,Children & Families,CP & CIN Social Work - South,3rd Party Payments,Personal Needs,BEST - BE A BETTER YOU,SN3 ,04/12/2023,500.00
117170260,Social Care,Children & Families,Placement Adoption Service,3rd Party Payments,Special Guardianship Orders,REDACTED PERSONAL DATA,SN5 ,18/12/2023,"2,608.73"
118655233,Lydiard Park,Culture & Heritage,Lydiard : Hotel Operations,Supplies and Services,Materials,BFS GROUP LTD T/A BIDFOOD,NP16,22/12/2023,168.85
118655233,Lydiard Park,Culture & Heritage,Lydiard : Hotel Operations,Supplies and Services,Food,BFS GROUP LTD T/A BIDFOOD,NP16,22/12/2023,334.44
118993233,Learning Disabilities,Adults,LD Day Services (OK4U),Premises Costs,Waste,BIFFA WASTE SERVICES LTD,HP12,28/12/2023,657.15
117216246,DSG Other Funding,Dedicated Schools Grant (DSG),DFE Additional Grants,3rd Party Payments,Payment of Pupil Premium to school,BISHOPSTONE C E PRIMARY SCHOOL,SN6 ,15/12/2023,"1,618.00"
117214233,Schools - Primary,Dedicated Schools Grant (DSG),Primary School Budgets,3rd Party Payments,Mainstream Delegated Funding,BISHOPSTONE C E PRIMARY SCHOOL,SN6 ,15/12/2023,"27,037.00"
Corporate Card Transaction,Homelessness and Travellers,Housing Services,Homelessness Prevention,Transfer Payments,Payment of Costs,Bkg*hotel At Booking.C,,27/12/2023,725
Corporate Card Transaction,Homelessness and Travellers,Housing Services,Homelessness Prevention,Transfer Payments,Payment of Costs,Bkg*hotel At Booking.C,,19/12/2023,815
Corporate Card Transaction,Homelessness and Travellers,Housing Services,Homelessness Prevention,Transfer Payments,Payment of Costs,Bkg*hotel At Booking.C,,12/12/2023,725
Corporate Card Transaction,Homelessness and Travellers,Housing Services,Homelessness Prevention,Transfer Payments,Payment of Costs,Bkg*hotel At Booking.C,,06/12/2023,725
Corporate Card Transaction,Homelessness and Travellers,Housing Services,Bed and Breakfast Accommodation,Transfer Payments,Payment of Costs,Bkg*hotel At Booking.C,,22/12/2023,870.15
Corporate Card Transaction,Homelessness and Travellers,Housing Services,Bed and Breakfast Accommodation,Transfer Payments,Payment of Costs,Bkg*hotel At Booking.C,,28/11/2023,760
Corporate Card Transaction,Homelessness and Travellers,Housing Services,Bed and Breakfast Accommodation,Transfer Payments,Payment of Costs,Bkg*hotel At Booking.C,,01/12/2023,523.69
118901233,Landscaping & Open Space,Culture & Heritage & Art,Moredon Recreation - Multi Sports Hub,Capital,Professional Fees,BLB KILMINSTER BEER LLP,SN1 ,28/12/2023,"8,210.00"
115715233,Town Centre,"Economy, Growth and Place",Kimmerfields enabling works,Capital,Professional Fees,BLUE HORIZON VENTURES LIMITED,KT8 ,01/12/2023,476.67
117387233,Social Care,Children & Families,Children's Resource and Home Finding Team,3rd Party Payments,Independent Fostering Agency Placements,BLUE SKY,HA1 ,18/12/2023,"2,052.00"
116539233,Mental Health,Adults,Mental Health 18-64,3rd Party Payments,Personal Budget - Domiciliary care,BLUEBIRD CARE (SWINDON),SN25,08/12/2023,138.24
116539233,Learning Disabilities,Adults,Learning Disability 18 - 64,3rd Party Payments,Personal Budget - Domiciliary care,BLUEBIRD CARE (SWINDON),SN25,08/12/2023,-101.00
116539233,Learning Disabilities,Adults,Learning Disability 18 - 64,3rd Party Payments,Personal Budget - Domiciliary care,BLUEBIRD CARE (SWINDON),SN25,08/12/2023,"1,105.92"
116539233,Learning Disabilities,Adults,Learning Disability 18 - 64,3rd Party Payments,Personal Budget - Domiciliary care,BLUEBIRD CARE (SWINDON),SN25,08/12/2023,-215.76
116539233,Learning Disabilities,Adults,Learning Disability 18 - 64,3rd Party Payments,Personal Budget - Domiciliary care,BLUEBIRD CARE (SWINDON),SN25,08/12/2023,"2,534.40"
116539233,Physical Support,Adults,Physical Support 65 and over,3rd Party Payments,Personal Budget - Domiciliary care,BLUEBIRD CARE (SWINDON),SN25,08/12/2023,"1,774.08"
116539233,Physical Support,Adults,Physical Support 18 - 64,3rd Party Payments,Personal Budget - Domiciliary care,BLUEBIRD CARE (SWINDON),SN25,08/12/2023,"1,105.92"
116539233,Physical Support,Adults,Physical Support 18 - 64,3rd Party Payments,Personal Budget - Domiciliary care,BLUEBIRD CARE (SWINDON),SN25,08/12/2023,-134.40
116539233,Learning Disabilities,Adults,Learning Disability 18 - 64,3rd Party Payments,Personal Budget - Domiciliary care,BLUEBIRD CARE (SWINDON),SN25,08/12/2023,-357.04
116539233,Learning Disabilities,Adults,Learning Disability 18 - 64,3rd Party Payments,Personal Budget - Domiciliary care,BLUEBIRD CARE (SWINDON),SN25,08/12/2023,"1,244.16"
116539233,Learning Disabilities,Adults,Learning Disability 18 - 64,3rd Party Payments,Personal Budget - Domiciliary care,BLUEBIRD CARE (SWINDON),SN25,08/12/2023,-0.20
116539233,Learning Disabilities,Adults,Learning Disability 18 - 64,3rd Party Payments,Personal Budget - Domiciliary care,BLUEBIRD CARE (SWINDON),SN25,08/12/2023,276.48
116539233,Learning Disabilities,Adults,Learning Disability 18 - 64,3rd Party Payments,Personal Budget - Domiciliary care,BLUEBIRD CARE (SWINDON),SN25,08/12/2023,967.68
116539233,Mental Health,Adults,Mental Health 18-64,3rd Party Payments,Personal Budget - Domiciliary care,BLUEBIRD CARE (SWINDON),SN25,08/12/2023,-16.80
116539233,Learning Disabilities,Adults,Learning Disability 18 - 64,3rd Party Payments,Personal Budget - Domiciliary care,BLUEBIRD CARE (SWINDON),SN25,08/12/2023,-996.16
116539233,Learning Disabilities,Adults,Learning Disability 18 - 64,3rd Party Payments,Personal Budget - Domiciliary care,BLUEBIRD CARE (SWINDON),SN25,08/12/2023,-542.64
116539233,Learning Disabilities,Adults,Learning Disability 18 - 64,3rd Party Payments,Personal Budget - Domiciliary care,BLUEBIRD CARE (SWINDON),SN25,08/12/2023,552.96
116539233,Learning Disabilities,Adults,Learning Disability 18 - 64,3rd Party Payments,Personal Budget - Domiciliary care,BLUEBIRD CARE (SWINDON),SN25,08/12/2023,-424.44
116539233,Physical Support,Adults,Physical Support 65 and over,3rd Party Payments,Personal Budget - Domiciliary care,BLUEBIRD CARE (SWINDON),SN25,08/12/2023,-210.54
117003263,Early Years Block,Dedicated Schools Grant (DSG),Free Nursery Education Commissioning - three & four  year olds,3rd Party Payments,Contracts - Child Care,REDACTED PERSONAL DATA,SN3 ,13/12/2023,"7,751.55"
117003262,Early Years Block,Dedicated Schools Grant (DSG),Free Nursery Education Commissioning - three & four  year olds,3rd Party Payments,Contracts - Child Care,REDACTED PERSONAL DATA,SN3 ,13/12/2023,649.08
117003261,Early Years Block,Dedicated Schools Grant (DSG),Free Nursery Education Commissioning - two year olds,3rd Party Payments,Contracts - Child Care,REDACTED PERSONAL DATA,SN3 ,13/12/2023,886.26
117511233,Mental Health,Adults,Mental Health 65 and over,3rd Party Payments,Residential Care,BOLEALLER HOUSE LTD,EX15,18/12/2023,"5,299.80"
116427239,Libraries,"Education, Inclusion and Skills",Library Delivery,Supplies and Services,Materials,BOLINDA UK LTD,RG14,08/12/2023,536.94
117009234,Physical Support,Adults,Fessey House,Supplies and Services,Food,BOOKER LIMITED,CH5 ,13/12/2023,461.37
117987233,Physical Support,Adults,Fessey House,Supplies and Services,Food,BOOKER LIMITED,CH5 ,20/12/2023,132.94
117987233,Physical Support,Adults,Fessey House,Supplies and Services,Food,BOOKER LIMITED,CH5 ,20/12/2023,444.46
117009234,Physical Support,Adults,Fessey House,Supplies and Services,Food,BOOKER LIMITED,CH5 ,13/12/2023,178.62
117508262,Physical Support,Adults,Physical Support 18 - 64,Income,Client Contribution - Nursing,BOTHWELLS LTD,HA6 ,18/12/2023,-425.60
117508262,Physical Support,Adults,Physical Support 18 - 64,3rd Party Payments,Nursing Care,BOTHWELLS LTD,HA6 ,18/12/2023,"2,867.32"
117508262,Physical Support,Adults,Physical Support 65 and over,3rd Party Payments,Nursing Care,BOTHWELLS LTD,HA6 ,18/12/2023,"1,739.29"
117508262,Physical Support,Adults,Physical Support 65 and over,3rd Party Payments,Nursing Care,BOTHWELLS LTD,HA6 ,18/12/2023,409.62
117508262,Physical Support,Adults,Physical Support 65 and over,3rd Party Payments,Residential Care,BOTHWELLS LTD,HA6 ,18/12/2023,"3,600.00"
117508262,Physical Support,Adults,Physical Support 65 and over,3rd Party Payments,Nursing Care,BOTHWELLS LTD,HA6 ,18/12/2023,"2,867.32"
117508262,Physical Support,Adults,Physical Support 18 - 64,Income,Client Contribution - Nursing,BOTHWELLS LTD,HA6 ,18/12/2023,-659.80
117508262,Physical Support,Adults,Physical Support 18 - 64,3rd Party Payments,Nursing Care,BOTHWELLS LTD,HA6 ,18/12/2023,"3,270.76"
117508262,Physical Support,Adults,Physical Support 65 and over,Income,Client Contribution - Nursing,BOTHWELLS LTD,HA6 ,18/12/2023,-781.40
117508262,Physical Support,Adults,Physical Support 65 and over,3rd Party Payments,Nursing Care,BOTHWELLS LTD,HA6 ,18/12/2023,"3,763.24"
117508262,Physical Support,Adults,Physical Support 65 and over,Income,Client Contribution - Nursing,BOTHWELLS LTD,HA6 ,18/12/2023,"-1,384.80"
117508262,Physical Support,Adults,Physical Support 65 and over,Income,Client Contribution - Nursing,BOTHWELLS LTD,HA6 ,18/12/2023,-691.20
117508262,Physical Support,Adults,Physical Support 65 and over,3rd Party Payments,Nursing Care,BOTHWELLS LTD,HA6 ,18/12/2023,"7,160.96"
117508262,Physical Support,Adults,Physical Support 65 and over,Income,Client Contribution - Nursing,BOTHWELLS LTD,HA6 ,18/12/2023,"-1,182.84"
117508262,Physical Support,Adults,Physical Support 65 and over,Income,Client Contribution - Nursing,BOTHWELLS LTD,HA6 ,18/12/2023,-154.99
117508262,Physical Support,Adults,Physical Support 65 and over,Income,Client Contribution - Nursing,BOTHWELLS LTD,HA6 ,18/12/2023,-909.16
117508262,Physical Support,Adults,Physical Support 65 and over,Income,Client Contribution - Nursing,BOTHWELLS LTD,HA6 ,18/12/2023,-779.00
117508262,Physical Support,Adults,Physical Support 65 and over,Income,Client Contribution - Nursing,BOTHWELLS LTD,HA6 ,18/12/2023,"-1,084.96"
115860233,Responsive Repairs,Repairs,Responsive Repairs,3rd Party Payments,Contract Payments,BOUNDARY SCAFFOLDING LTD,SN6 ,01/12/2023,960.00
115859233,Responsive Repairs,Repairs,Responsive Repairs,3rd Party Payments,Contract Payments,BOUNDARY SCAFFOLDING LTD,SN6 ,01/12/2023,"1,320.00"
115860233,Responsive Repairs,Repairs,Responsive Repairs,3rd Party Payments,Contract Payments,BOUNDARY SCAFFOLDING LTD,SN6 ,01/12/2023,660.00
115856234,Responsive Repairs,Repairs,Responsive Repairs,3rd Party Payments,Contract Payments,BOUNDARY SCAFFOLDING LTD,SN6 ,01/12/2023,660.00
115859233,Responsive Repairs,Repairs,Responsive Repairs,3rd Party Payments,Contract Payments,BOUNDARY SCAFFOLDING LTD,SN6 ,01/12/2023,580.00
115858234,Responsive Repairs,Repairs,Responsive Repairs,3rd Party Payments,Contract Payments,BOUNDARY SCAFFOLDING LTD,SN6 ,01/12/2023,"1,780.00"
115860233,Responsive Repairs,Repairs,Responsive Repairs,3rd Party Payments,Contract Payments,BOUNDARY SCAFFOLDING LTD,SN6 ,01/12/2023,"1,160.00"
115857233,Responsive Repairs,Repairs,Responsive Repairs,3rd Party Payments,Contract Payments,BOUNDARY SCAFFOLDING LTD,SN6 ,01/12/2023,"1,320.00"
116742240,Responsive Repairs,Repairs,Responsive Repairs,3rd Party Payments,Contract Payments,BOUNDARY SCAFFOLDING LTD,SN6 ,13/12/2023,660.00
115859233,Responsive Repairs,Repairs,Responsive Repairs,3rd Party Payments,Contract Payments,BOUNDARY SCAFFOLDING LTD,SN6 ,01/12/2023,890.00
117951233,Streetsmart,Streetsmart,Waste - Processing,Premises Costs,Maintenance - Buildings,BOUNDARY SCAFFOLDING LTD,SN6 ,20/12/2023,738.00
116742240,Responsive Repairs,Repairs,Responsive Repairs,3rd Party Payments,Contract Payments,BOUNDARY SCAFFOLDING LTD,SN6 ,13/12/2023,960.00
119142233,Responsive Repairs,Repairs,Responsive Repairs,3rd Party Payments,Contract Payments,BPM CONTRACTING SERVICES LTD,BA2 ,28/12/2023,"1,241.41"
119138233,Responsive Repairs,Repairs,Responsive Repairs,3rd Party Payments,Contract Payments,BPM CONTRACTING SERVICES LTD,BA2 ,28/12/2023,"1,020.60"
119147233,Responsive Repairs,Repairs,Responsive Repairs,3rd Party Payments,Contract Payments,BPM CONTRACTING SERVICES LTD,BA2 ,28/12/2023,931.58
115851234,Responsive Repairs,Repairs,Responsive Repairs,3rd Party Payments,Contract Payments,BPM CONTRACTING SERVICES LTD,BA2 ,01/12/2023,"15,684.65"
118626233,Responsive Repairs,Repairs,Responsive Repairs,3rd Party Payments,Contract Payments,BPM CONTRACTING SERVICES LTD,BA2 ,22/12/2023,"2,272.00"
119141233,Responsive Repairs,Repairs,Responsive Repairs,3rd Party Payments,Contract Payments,BPM CONTRACTING SERVICES LTD,BA2 ,28/12/2023,775.00
118203233,Social Care,Children & Families,Children's Resource and Home Finding Team,3rd Party Payments,Residential Care,BRANAS ISAF LIMITED,EN6 ,20/12/2023,"24,578.66"
117169244,Social Care,Children & Families,Placement Adoption Service,3rd Party Payments,Special Guardianship Orders,REDACTED PERSONAL DATA,SN2 ,18/12/2023,"2,608.73"
115839233,"Data, Performance and Insight",Digital & Business Change,"Performance, Intelligence and Insight",Supplies and Services,Services,BRIGHTER FUTURES FOR CHILDREN LTD,RG1 ,01/12/2023,"2,400.00"
117043233,Property Management,Property,Corporate Repairs & Maintenance Programme,Premises Costs,Maintenance - Buildings,BRISTOL FIRE,BS37,13/12/2023,438.20
116772234,Other Repairs,Repairs,Unallocated job costs from OPEN system,Premises Costs,Maintenance - Buildings,BRISTOL FIRE,BS37,13/12/2023,"4,095.80"
116771235,Property Management,Property,Corporate Repairs & Maintenance Programme,Premises Costs,Maintenance - Buildings,BRISTOL FIRE,BS37,13/12/2023,"1,079.30"
116175234,Streetsmart,Streetsmart,Waterside Depot,Premises Costs,Gas,BRITISH GAS TRADING LTD,S98 ,04/12/2023,"2,812.16"
119066233,,,Balance Sheet,Balance Sheet & Recharge,British Telecom invoices,BRITISH TELECOMMUNICATIONS PLC,NE82,28/12/2023,"21,680.85"
117945234,Corporate,Corporate Finance,Corporate Financial Management,Supplies and Services,Fees,BROADSTONE CONSULTANTS & ACTUARIES LTD,BS1 ,20/12/2023,"1,783.25"
117201330,High Needs Block,Dedicated Schools Grant (DSG),SEN Resourcing Assessment Panel,3rd Party Payments,Top up funding - Academies and Free Schools Pre 16,BRUNEL EDUCATION,SN25,15/12/2023,"12,323.37"
117201367,High Needs Block,Dedicated Schools Grant (DSG),Post 16 - New Responsibilties,3rd Party Payments,Independent Service Provider- Post 16,BRUNEL EDUCATION,SN25,15/12/2023,"107,978.24"
118690233,Disabled Children,Children & Families,Aiming High for Disabled Children,Supplies and Services,Services,BRUNEL EDUCATION,SN25,22/12/2023,"2,939.10"
115969233,Disabled Children,Children & Families,DCT Daytime Short Breaks,3rd Party Payments,Day Care,BRUNEL EDUCATION,SN5 ,01/12/2023,632.07
117201333,High Needs Block,Dedicated Schools Grant (DSG),SEN Resourcing Assessment Panel,3rd Party Payments,Top up funding - Academies and Free Schools Pre 16,REDACTED PERSONAL DATA,SN25,15/12/2023,"223,317.43"
117201332,High Needs Block,Dedicated Schools Grant (DSG),SEN Resourcing Assessment Panel,3rd Party Payments,Top up funding - Academies and Free Schools Pre 16,REDACTED PERSONAL DATA,SN25,15/12/2023,"100,901.16"
117201356,High Needs Block,Dedicated Schools Grant (DSG),SEN Resourcing Assessment Panel,3rd Party Payments,Top up funding - Academies and Free Schools Pre 16,REDACTED PERSONAL DATA,SN25,15/12/2023,"55,151.25"
118563234,Treasury,Corporate Finance,Private Finance Initiatives (PFI),Income,Discounts,REDACTED PERSONAL DATA,SN25,22/12/2023,"32,883.34"
117201358,High Needs Block,Dedicated Schools Grant (DSG),SEN Resourcing Assessment Panel,3rd Party Payments,Top up funding - Academies and Free Schools Post 16,REDACTED PERSONAL DATA,SN25,15/12/2023,"95,882.60"
117201329,High Needs Block,Dedicated Schools Grant (DSG),SEN Resourcing Assessment Panel,3rd Party Payments,Top up funding - Academies and Free Schools Pre 16,REDACTED PERSONAL DATA,SN25,15/12/2023,"8,624.31"
117216241,High Needs Block,Dedicated Schools Grant (DSG),Advisory Teacher Services,Supplies and Services,Payments to Educational Bodies,REDACTED PERSONAL DATA,SN25,15/12/2023,"11,325.00"
117216239,High Needs Block,Dedicated Schools Grant (DSG),Advisory Teacher Services,Supplies and Services,Payments to Educational Bodies,REDACTED PERSONAL DATA,SN25,15/12/2023,"7,250.00"
117201328,High Needs Block,Dedicated Schools Grant (DSG),SEN Resourcing Assessment Panel,3rd Party Payments,Top up funding - Academies and Free Schools Pre 16,REDACTED PERSONAL DATA,SN25,15/12/2023,"130,720.56"
116497233,High Needs Block,Dedicated Schools Grant (DSG),SEN Resourcing Assessment Panel,Supplies and Services,Services,REDACTED PERSONAL DATA,SN25,08/12/2023,"7,170.00"
117003597,Early Years Block,Dedicated Schools Grant (DSG),Free Nursery Education Commissioning - three & four  year olds,3rd Party Payments,Contracts - Child Care,REDACTED PERSONAL DATA,SN25,13/12/2023,"7,676.22"
117201355,High Needs Block,Dedicated Schools Grant (DSG),SEN Resourcing Assessment Panel,3rd Party Payments,Top up funding - Academies and Free Schools Pre 16,REDACTED PERSONAL DATA,SN25,15/12/2023,"13,224.24"
117201351,High Needs Block,Dedicated Schools Grant (DSG),SEN Resourcing Assessment Panel,3rd Party Payments,Top up funding - Academies and Free Schools Pre 16,REDACTED PERSONAL DATA,SN25,15/12/2023,"7,332.89"
117201313,High Needs Block,Dedicated Schools Grant (DSG),SEN Resourcing Assessment Panel,3rd Party Payments,Top up funding - Academies and Free Schools Pre 16,REDACTED PERSONAL DATA,SN25,15/12/2023,"2,041.67"
117201331,High Needs Block,Dedicated Schools Grant (DSG),SEN Resourcing Assessment Panel,3rd Party Payments,Top up funding - Academies and Free Schools Pre 16,REDACTED PERSONAL DATA,SN25,15/12/2023,"23,292.59"
117003596,Early Years Block,Dedicated Schools Grant (DSG),Free Nursery Education Commissioning - three & four  year olds,3rd Party Payments,Contracts - Child Care,REDACTED PERSONAL DATA,SN25,13/12/2023,664.20
118563234,Treasury,Corporate Finance,Private Finance Initiatives (PFI),Income,Discounts,REDACTED PERSONAL DATA,SN25,22/12/2023,"33,624.78"
117201344,High Needs Block,Dedicated Schools Grant (DSG),SEN Resourcing Assessment Panel,3rd Party Payments,Top up funding - Academies and Free Schools Pre 16,REDACTED PERSONAL DATA,SN25,15/12/2023,"65,835.83"
117201336,High Needs Block,Dedicated Schools Grant (DSG),SEN Resourcing Assessment Panel,3rd Party Payments,Top up funding - Academies and Free Schools Pre 16,REDACTED PERSONAL DATA,SN25,15/12/2023,"154,715.60"
117147233,Landscaping & Open Space,Culture & Heritage & Art,GWCF - Trees for Climate,Capital,Professional Fees,BRUNEL SURVEYS LTD,CM20,18/12/2023,"20,900.00"
118184233,Local Transport Plan Funded,Strategic Planning and Highways,Surface Water Management,Capital,Contractor Payments,BRUNEL SURVEYS LTD,CM20,20/12/2023,"7,922.88"
118764233,NEV,"Economy, Growth and Place",White Hart Junction,Capital,Consultants,BRUTON KNOWLES,GL2 ,22/12/2023,752.50
117198234,NEV,"Economy, Growth and Place",Southern Connector Road,Capital,Compensation Payments,BRUTON KNOWLES,GL2 ,15/12/2023,"1,586.00"
117205233,NEV,"Economy, Growth and Place",Southern Connector Road,Capital,Compensation Payments,BRUTON KNOWLES,GL2 ,15/12/2023,"1,253.40"
117194234,NEV,"Economy, Growth and Place",Southern Connector Road,Capital,Compensation Payments,BRUTON KNOWLES,GL2 ,15/12/2023,522.41
117354238,Property & Assets,Property & Assets,General Enhancement Works Corporate Buildings,Capital,Contractor Payments,BUILDTECH SW LIMITED,GL53,18/12/2023,582.00
117354238,Property & Assets,Property & Assets,General Enhancement Works Corporate Buildings,Capital,Contractor Payments,BUILDTECH SW LIMITED,GL53,18/12/2023,185.00
118939233,Small New Build Schemes,HRA Capital Financing,Ventnor Close,Capital,Professional Fees,BUILDTECH SW LIMITED,GL53,28/12/2023,"4,102.00"
117513265,Physical Support,Adults,Physical Support 65 and over,3rd Party Payments,Residential Care,BUPA CARE HOME (ANS) LTD,LS5 ,18/12/2023,"4,400.00"
117003271,Early Years Block,Dedicated Schools Grant (DSG),Free Nursery Education Commissioning - two year olds,3rd Party Payments,Contracts - Child Care,"BUSY BEES, BROOME MANOR",SN3 ,13/12/2023,"3,520.32"
117003273,Early Years Block,Dedicated Schools Grant (DSG),Free Nursery Education Commissioning - three & four  year olds,3rd Party Payments,Contracts - Child Care,"BUSY BEES, BROOME MANOR",SN3 ,13/12/2023,"8,595.30"
117950235,High Needs Block,Dedicated Schools Grant (DSG),SEN Resourcing Assessment Panel,3rd Party Payments,Top up funding - Maintained providers Pre 16,"BUSY BEES, PEATMOOR",SN5 ,20/12/2023,"1,260.00"
117003275,Early Years Block,Dedicated Schools Grant (DSG),Free Nursery Education Commissioning - three & four  year olds,3rd Party Payments,Contracts - Child Care,"BUSY BEES, PEATMOOR",SN5 ,13/12/2023,544.32
117003274,Early Years Block,Dedicated Schools Grant (DSG),Free Nursery Education Commissioning - two year olds,3rd Party Payments,Contracts - Child Care,"BUSY BEES, PEATMOOR",SN5 ,13/12/2023,"1,945.44"
117003276,Early Years Block,Dedicated Schools Grant (DSG),Free Nursery Education Commissioning - three & four  year olds,3rd Party Payments,Contracts - Child Care,"BUSY BEES, PEATMOOR",SN5 ,13/12/2023,"9,849.00"
117003270,Early Years Block,Dedicated Schools Grant (DSG),Free Nursery Education Commissioning - three & four  year olds,3rd Party Payments,Contracts - Child Care,"BUSY BEES, ST ANDREWS RIDGE",SN25,13/12/2023,"15,141.00"
117003268,Early Years Block,Dedicated Schools Grant (DSG),Free Nursery Education Commissioning - two year olds,3rd Party Payments,Contracts - Child Care,"BUSY BEES, ST ANDREWS RIDGE",SN25,13/12/2023,"3,427.68"
117162234,Highways Schemes,Strategic Planning and Highways,Mead Way Junction Improvements,Capital,Contractor Payments,BUTLER SIGNS,RG20,15/12/2023,"2,188.40"
117822234,Museums & Heritage,Culture & Heritage,Steam:Education & Curatorial,Supplies and Services,Discretionary Costs,REDACTED PERSONAL DATA,SO30,20/12/2023,613.53
115747233,Property & Assets,Property & Assets,General Enhancement Works Corporate Buildings,Capital,Contractor Payments,C J COOK CONTRACTORS LTD,GL53,01/12/2023,"105,737.50"
117508278,Learning Disabilities,Adults,Learning Disability 65 and over,3rd Party Payments,Residential Care,C.H.O.I.C.E LTD,RG12,18/12/2023,"9,862.32"
117508276,Learning Disabilities,Adults,Learning Disability 18 - 64,Income,Client Contribution - Residential,C.H.O.I.C.E LTD,RG12,18/12/2023,-427.20
117508279,Learning Disabilities,Adults,Learning Disability 18 - 64,Income,Client Contribution - Residential,C.H.O.I.C.E LTD,RG12,18/12/2023,-481.00
117508280,Physical Support,Adults,Physical Support 18 - 64,3rd Party Payments,Residential Care,C.H.O.I.C.E LTD,RG12,18/12/2023,"11,449.52"
117508275,Learning Disabilities,Adults,Learning Disability 18 - 64,3rd Party Payments,Residential Care,C.H.O.I.C.E LTD,RG12,18/12/2023,"9,531.52"
117508280,Learning Disabilities,Adults,Learning Disability 18 - 64,3rd Party Payments,Residential Care,C.H.O.I.C.E LTD,RG12,18/12/2023,"12,844.16"
117508279,Learning Disabilities,Adults,Learning Disability 18 - 64,3rd Party Payments,Residential Care,C.H.O.I.C.E LTD,RG12,18/12/2023,"9,797.76"
117508278,Learning Disabilities,Adults,Learning Disability 65 and over,3rd Party Payments,Residential Care,C.H.O.I.C.E LTD,RG12,18/12/2023,"10,516.64"
117508278,Learning Disabilities,Adults,Learning Disability 65 and over,Income,Client Contribution - Residential,C.H.O.I.C.E LTD,RG12,18/12/2023,-83.60
117508280,Learning Disabilities,Adults,Learning Disability 18 - 64,3rd Party Payments,Residential Care,C.H.O.I.C.E LTD,RG12,18/12/2023,"13,870.08"
117508274,Learning Disabilities,Adults,Learning Disability 18 - 64,3rd Party Payments,Residential Care,C.H.O.I.C.E LTD,RG12,18/12/2023,"13,440.00"
117508274,Learning Disabilities,Adults,Learning Disability 18 - 64,Income,Client Contribution - Residential,C.H.O.I.C.E LTD,RG12,18/12/2023,-384.56
117508279,Learning Disabilities,Adults,Learning Disability 18 - 64,3rd Party Payments,Residential Care,C.H.O.I.C.E LTD,RG12,18/12/2023,"10,380.16"
117508277,Learning Disabilities,Adults,Learning Disability 18 - 64,3rd Party Payments,Residential Care,C.H.O.I.C.E LTD,SO23,18/12/2023,"8,531.76"
117508276,Learning Disabilities,Adults,Learning Disability 18 - 64,3rd Party Payments,Residential Care,C.H.O.I.C.E LTD,RG12,18/12/2023,"13,814.08"
117508280,Learning Disabilities,Adults,Learning Disability 18 - 64,Income,Client Contribution - Residential,C.H.O.I.C.E LTD,RG12,18/12/2023,-454.80
117508279,Learning Disabilities,Adults,Learning Disability 18 - 64,Income,Client Contribution - Residential,C.H.O.I.C.E LTD,RG12,18/12/2023,-617.76
117508275,Learning Disabilities,Adults,Learning Disability 18 - 64,Income,Client Contribution - Residential,C.H.O.I.C.E LTD,RG12,18/12/2023,-511.20
117508278,Learning Disabilities,Adults,Learning Disability 65 and over,Income,Client Contribution - Residential,C.H.O.I.C.E LTD,RG12,18/12/2023,-691.20
117508278,Learning Disabilities,Adults,Learning Disability 65 and over,Income,Client Contribution - Residential,C.H.O.I.C.E LTD,RG12,18/12/2023,-773.20
117508279,Learning Disabilities,Adults,Learning Disability 18 - 64,3rd Party Payments,Residential Care,C.H.O.I.C.E LTD,RG12,18/12/2023,"9,887.36"
117508280,Physical Support,Adults,Physical Support 18 - 64,Income,Client Contribution - Residential,C.H.O.I.C.E LTD,RG12,18/12/2023,-483.20
117508279,Learning Disabilities,Adults,Learning Disability 18 - 64,Income,Client Contribution - Residential,C.H.O.I.C.E LTD,RG12,18/12/2023,-639.20
117508280,Learning Disabilities,Adults,Learning Disability 18 - 64,Income,Client Contribution - Residential,C.H.O.I.C.E LTD,RG12,18/12/2023,-276.60
117969234,Social Care,Children & Families,Children's Resource and Home Finding Team,3rd Party Payments,Residential Care,CALCOT SERVICES FOR CHILDREN LTD,RG7 ,20/12/2023,"29,361.34"
117969235,Social Care,Children & Families,Children's Resource and Home Finding Team,3rd Party Payments,Residential Care,CALCOT SERVICES FOR CHILDREN LTD,RG7 ,20/12/2023,"29,892.68"
116638280,Social Care,Children & Families,Children's Resource and Home Finding Team,3rd Party Payments,Independent Fostering Agency Placements,CALDECOTT FOSTERING LTD,TN25,13/12/2023,"6,915.99"
116638281,Social Care,Children & Families,Children's Resource and Home Finding Team,3rd Party Payments,Independent Fostering Agency Placements,CALDECOTT FOSTERING LTD,TN25,13/12/2023,"7,146.52"
117652233,Social Care,Children & Families,Placement Adoption Service,3rd Party Payments,Special Guardianship Orders,REDACTED PERSONAL DATA,SN2 ,18/12/2023,552.00
118154250,Learning Disabilities,Adults,Learning Disability 18 - 64,Income,Client Contribution - Personal Budget - DP,REDACTED PERSONAL DATA,SP11,20/12/2023,-27.12
118154250,Learning Disabilities,Adults,Learning Disability 18 - 64,Income,Client Contribution - Personal Budget - DP,REDACTED PERSONAL DATA,SP11,20/12/2023,-4.92
118154250,Learning Disabilities,Adults,Learning Disability 18 - 64,Income,Client Contribution - Personal Budget - DP,REDACTED PERSONAL DATA,SP11,20/12/2023,-10.36
118154250,Learning Disabilities,Adults,Learning Disability 18 - 64,Transfer Payments,Personal Budget - Direct Payments - Domiciliary Care,REDACTED PERSONAL DATA,SP11,20/12/2023,94.80
118154250,Learning Disabilities,Adults,Learning Disability 18 - 64,Transfer Payments,Personal Budget - Direct Payments - Domiciliary Care,REDACTED PERSONAL DATA,SP11,20/12/2023,198.32
118154250,Learning Disabilities,Adults,Learning Disability 18 - 64,Transfer Payments,Personal Budget - Direct Payments - Domiciliary Care,REDACTED PERSONAL DATA,SP11,20/12/2023,821.76
118154250,Learning Disabilities,Adults,Learning Disability 18 - 64,Transfer Payments,Personal Budget - Direct Payments - Domiciliary Care,REDACTED PERSONAL DATA,SP11,20/12/2023,360.48
118154250,Learning Disabilities,Adults,Learning Disability 18 - 64,Income,Client Contribution - Personal Budget - DP,REDACTED PERSONAL DATA,SP11,20/12/2023,-18.76
118154250,Learning Disabilities,Adults,Learning Disability 18 - 64,Transfer Payments,Personal Budget - Direct Payments - Domiciliary Care,REDACTED PERSONAL DATA,SP11,20/12/2023,520.96
118154250,Learning Disabilities,Adults,Learning Disability 18 - 64,Income,Client Contribution - Personal Budget - DP,REDACTED PERSONAL DATA,SP11,20/12/2023,-42.80
117169246,Social Care,Children & Families,Placement Adoption Service,3rd Party Payments,Special Guardianship Orders,REDACTED PERSONAL DATA,SN2 ,18/12/2023,872.86
118154312,Learning Disabilities,Adults,Learning Disability 18 - 64,Transfer Payments,Personal Budget - Direct Payments - Domiciliary Care,REDACTED PERSONAL DATA,SP11,20/12/2023,651.20
118553233,Lydiard Park,Culture & Heritage,Lydiard : Hotel Operations,Premises Costs,Gas,CALOR GAS LTD,CV34,22/12/2023,"1,655.55"
118089295,Physical Support,Adults,Physical Support 18 - 64,Transfer Payments,Personal Budget - Direct Payments - Domiciliary Care,REDACTED PERSONAL DATA,SN25,20/12/2023,408.24
118089295,Physical Support,Adults,Physical Support 18 - 64,Income,Client Contribution - Personal Budget - DP,REDACTED PERSONAL DATA,SN25,20/12/2023,-52.72
118089295,Physical Support,Adults,Physical Support 18 - 64,Transfer Payments,Personal Budget - Direct Payments - Domiciliary Care,REDACTED PERSONAL DATA,SN25,20/12/2023,586.08
118089295,Physical Support,Adults,Physical Support 18 - 64,Income,Client Contribution - Personal Budget - DP,REDACTED PERSONAL DATA,SN25,20/12/2023,-75.68
118059233,Void Repairs,Supervision & Management,Void Property Repairs,3rd Party Payments,Contract Payments,CANTILLON GROUP LTD,SN25,20/12/2023,"8,625.54"
116741233,Void Properties,HRA Capital Financing,Voids - Central Heating,Capital,Contractor Payments,CANTILLON GROUP LTD,SN25,13/12/2023,"6,801.77"
118059233,Void Properties,HRA Capital Financing,Voids - Kitchens,Capital,Contractor Payments,CANTILLON GROUP LTD,SN25,20/12/2023,"5,028.06"
116741233,Void Properties,HRA Capital Financing,Voids - Bathrooms,Capital,Contractor Payments,CANTILLON GROUP LTD,SN25,13/12/2023,"1,951.45"
118059233,Void Properties,HRA Capital Financing,Voids - Central Heating,Capital,Contractor Payments,CANTILLON GROUP LTD,SN25,20/12/2023,"5,382.98"
116741233,Void Properties,HRA Capital Financing,Voids - Central Heating,Capital,Contractor Payments,CANTILLON GROUP LTD,SN25,13/12/2023,"-50,000.00"
118059233,Void Repairs,Supervision & Management,Void Property Repairs,3rd Party Payments,Contract Payments,CANTILLON GROUP LTD,SN25,20/12/2023,372.43
118059233,Void Repairs,Supervision & Management,Void Property Repairs,3rd Party Payments,Contract Payments,CANTILLON GROUP LTD,SN25,20/12/2023,21.93
116741233,Void Repairs,Supervision & Management,Void Property Repairs,3rd Party Payments,Contract Payments,CANTILLON GROUP LTD,SN25,13/12/2023,330.00
118059233,Void Properties,HRA Capital Financing,Voids - Kitchens,Capital,Contractor Payments,CANTILLON GROUP LTD,SN25,20/12/2023,"4,437.03"
116741233,Void Properties,HRA Capital Financing,"Voids - Fencing, Concreting & Environmental Works",Capital,Contractor Payments,CANTILLON GROUP LTD,SN25,13/12/2023,"5,757.23"
116741233,Void Properties,HRA Capital Financing,"Voids - Fencing, Concreting & Environmental Works",Capital,Contractor Payments,CANTILLON GROUP LTD,SN25,13/12/2023,"5,475.22"
116741233,Void Properties,HRA Capital Financing,"Voids - Fencing, Concreting & Environmental Works",Capital,Contractor Payments,CANTILLON GROUP LTD,SN25,13/12/2023,"10,826.86"
118059233,Void Properties,HRA Capital Financing,Voids - Kitchens,Capital,Contractor Payments,CANTILLON GROUP LTD,SN25,20/12/2023,"5,750.50"
116741233,Void Properties,HRA Capital Financing,"Voids - Fencing, Concreting & Environmental Works",Capital,Contractor Payments,CANTILLON GROUP LTD,SN25,13/12/2023,"2,321.41"
117149244,Other Repairs,Repairs,Cyclical Maintenance,Supplies and Services,Testing / Inspection,CANTILLON GROUP LTD,SN25,15/12/2023,88.30
117149242,Other Repairs,Repairs,Cyclical Maintenance,Supplies and Services,Testing / Inspection,CANTILLON GROUP LTD,SN25,15/12/2023,539.91
117149237,Other Repairs,Repairs,Cyclical Maintenance,Supplies and Services,Testing / Inspection,CANTILLON GROUP LTD,SN25,15/12/2023,88.30
118059233,Void Repairs,Supervision & Management,Void Property Repairs,3rd Party Payments,Contract Payments,CANTILLON GROUP LTD,SN25,20/12/2023,"6,966.16"
118059233,Void Repairs,Supervision & Management,Void Property Repairs,3rd Party Payments,Contract Payments,CANTILLON GROUP LTD,SN25,20/12/2023,"7,578.22"
116741233,Void Repairs,Supervision & Management,Void Property Repairs,3rd Party Payments,Contract Payments,CANTILLON GROUP LTD,SN25,13/12/2023,"10,580.69"
116741233,Void Repairs,Supervision & Management,Void Property Repairs,3rd Party Payments,Contract Payments,CANTILLON GROUP LTD,SN25,13/12/2023,"12,882.50"
117354233,Other Repairs,Repairs,Cyclical Maintenance,Supplies and Services,Testing / Inspection,CANTILLON GROUP LTD,SN25,18/12/2023,88.30
117149242,Other Repairs,Repairs,Cyclical Maintenance,Supplies and Services,Testing / Inspection,CANTILLON GROUP LTD,SN25,15/12/2023,88.30
117149239,Other Repairs,Repairs,Cyclical Maintenance,Supplies and Services,Testing / Inspection,CANTILLON GROUP LTD,SN25,15/12/2023,662.48
117149239,Other Repairs,Repairs,Cyclical Maintenance,Supplies and Services,Testing / Inspection,CANTILLON GROUP LTD,SN25,15/12/2023,88.30
116741233,Void Properties,HRA Capital Financing,Voids - Central Heating,Capital,Contractor Payments,CANTILLON GROUP LTD,SN25,13/12/2023,"50,000.00"
118059233,Void Properties,HRA Capital Financing,Voids - Central Heating,Capital,Contractor Payments,CANTILLON GROUP LTD,SN25,20/12/2023,"6,862.29"
116741233,Void Repairs,Supervision & Management,Void Property Repairs,3rd Party Payments,Contract Payments,CANTILLON GROUP LTD,SN25,13/12/2023,"4,280.80"
116741233,Void Properties,HRA Capital Financing,Voids - Kitchens,Capital,Contractor Payments,CANTILLON GROUP LTD,SN25,13/12/2023,"6,924.16"
116741233,Void Properties,HRA Capital Financing,Voids - Bathrooms,Capital,Contractor Payments,CANTILLON GROUP LTD,SN25,13/12/2023,"2,816.10"
118059233,Void Properties,HRA Capital Financing,"Voids - Fencing, Concreting & Environmental Works",Capital,Contractor Payments,CANTILLON GROUP LTD,SN25,20/12/2023,"9,558.27"
118059233,Void Properties,HRA Capital Financing,"Voids - Fencing, Concreting & Environmental Works",Capital,Contractor Payments,CANTILLON GROUP LTD,SN25,20/12/2023,"11,361.60"
118059233,Void Properties,HRA Capital Financing,"Voids - Fencing, Concreting & Environmental Works",Capital,Contractor Payments,CANTILLON GROUP LTD,SN25,20/12/2023,"7,166.74"
116741233,Void Properties,HRA Capital Financing,"Voids - Fencing, Concreting & Environmental Works",Capital,Contractor Payments,CANTILLON GROUP LTD,SN25,13/12/2023,"15,043.83"
117149244,Other Repairs,Repairs,Cyclical Maintenance,Supplies and Services,Testing / Inspection,CANTILLON GROUP LTD,SN25,15/12/2023,570.46
118059233,Acquisitions,HRA Capital Financing,HRA Acquisitions Programme,Capital,Contractor Payments,CANTILLON GROUP LTD,SN25,20/12/2023,"4,561.59"
118059233,Void Repairs,Supervision & Management,Void Property Repairs,3rd Party Payments,Contract Payments,CANTILLON GROUP LTD,SN25,20/12/2023,"7,311.54"
116741233,Void Repairs,Supervision & Management,Void Property Repairs,3rd Party Payments,Contract Payments,CANTILLON GROUP LTD,SN25,13/12/2023,"6,608.32"
118059233,Void Properties,HRA Capital Financing,Voids - Bathrooms,Capital,Contractor Payments,CANTILLON GROUP LTD,SN25,20/12/2023,"1,991.69"
118059233,Void Properties,HRA Capital Financing,"Voids - Fencing, Concreting & Environmental Works",Capital,Contractor Payments,CANTILLON GROUP LTD,SN25,20/12/2023,"4,767.24"
117149237,Other Repairs,Repairs,Cyclical Maintenance,Supplies and Services,Testing / Inspection,CANTILLON GROUP LTD,SN25,15/12/2023,530.42
117149233,Other Repairs,Repairs,Cyclical Maintenance,Supplies and Services,Testing / Inspection,CANTILLON GROUP LTD,SN25,15/12/2023,"2,561.33"
116741233,Acquisitions,HRA Capital Financing,HRA Acquisitions Programme,Capital,Contractor Payments,CANTILLON GROUP LTD,SN25,13/12/2023,"1,664.77"
118059233,Void Repairs,Supervision & Management,Void Property Repairs,3rd Party Payments,Contract Payments,CANTILLON GROUP LTD,SN25,20/12/2023,"40,000.00"
118059233,Void Repairs,Supervision & Management,Void Property Repairs,3rd Party Payments,Contract Payments,CANTILLON GROUP LTD,SN25,20/12/2023,"-40,000.00"
116741233,Void Repairs,Supervision & Management,Void Property Repairs,3rd Party Payments,Contract Payments,CANTILLON GROUP LTD,SN25,13/12/2023,"3,000.42"
116741233,Void Properties,HRA Capital Financing,"Voids - Fencing, Concreting & Environmental Works",Capital,Contractor Payments,CANTILLON GROUP LTD,SN25,13/12/2023,"2,457.87"
116741233,Void Properties,HRA Capital Financing,"Voids - Fencing, Concreting & Environmental Works",Capital,Contractor Payments,CANTILLON GROUP LTD,SN25,13/12/2023,"10,615.69"
116741233,Void Repairs,Supervision & Management,Void Property Repairs,3rd Party Payments,Contract Payments,CANTILLON GROUP LTD,SN25,13/12/2023,440.00
118059233,Void Properties,HRA Capital Financing,Voids - Bathrooms,Capital,Contractor Payments,CANTILLON GROUP LTD,SN25,20/12/2023,"2,355.71"
116741233,Void Properties,HRA Capital Financing,"Voids - Fencing, Concreting & Environmental Works",Capital,Contractor Payments,CANTILLON GROUP LTD,SN25,13/12/2023,715.56
117354233,Other Repairs,Repairs,Cyclical Maintenance,Supplies and Services,Testing / Inspection,CANTILLON GROUP LTD,SN25,18/12/2023,675.31
117353233,Other Repairs,Repairs,Cyclical Maintenance,Supplies and Services,Testing / Inspection,CANTILLON GROUP LTD,SN25,18/12/2023,"2,926.33"
116741233,Void Repairs,Supervision & Management,Void Property Repairs,3rd Party Payments,Contract Payments,CANTILLON GROUP LTD,SN25,13/12/2023,"5,137.43"
116519233,Digital & Business Change,Digital & Business Change,IT Operations,3rd Party Payments,Strategic Partnership Service Charges,CAPITA BUSINESS SERVICES LTD,DL1 ,08/12/2023,"14,238.23"
118536233,Education,"Education, Inclusion and Skills",Premature Retirement and Redundancy Costs,Employees,Pension - Added Years,CAPITA PENSION SOLUTIONS LTD,EC2V,22/12/2023,"3,525.83"
116638279,Social Care,Children & Families,Children's Resource and Home Finding Team,3rd Party Payments,Independent Fostering Agency Placements,CAPSTONE FOSTER CARE (SOUTH WEST) LTD,GL13,13/12/2023,"7,881.75"
116638278,Social Care,Children & Families,Children's Resource and Home Finding Team,3rd Party Payments,Independent Fostering Agency Placements,CAPSTONE FOSTER CARE (SOUTH WEST) LTD,GL13,13/12/2023,"7,627.50"
116638276,Social Care,Children & Families,Children's Resource and Home Finding Team,3rd Party Payments,Independent Fostering Agency Placements,CAPSTONE FOSTER CARE (SOUTH WEST) LTD,GL13,13/12/2023,"3,608.25"
116638277,Social Care,Children & Families,Children's Resource and Home Finding Team,3rd Party Payments,Independent Fostering Agency Placements,CAPSTONE FOSTER CARE (SOUTH WEST) LTD,GL13,13/12/2023,"3,728.53"
118905233,Streetsmart,Streetsmart,Waterside Fleet Workshops,Supplies and Services,Materials,CAR AND TRUCK SERVICES (SWINDON) LTD,SN1 ,28/12/2023,439.58
115927246,Streetsmart,Streetsmart,Waterside Fleet Workshops,Supplies and Services,Materials,CAR AND TRUCK SERVICES (SWINDON) LTD,SN1 ,01/12/2023,"2,362.83"
115926247,Streetsmart,Streetsmart,Waterside Fleet Workshops,Supplies and Services,Equipment,CAR AND TRUCK SERVICES (SWINDON) LTD,SN1 ,01/12/2023,"2,403.15"
115928235,Streetsmart,Streetsmart,Waterside Fleet Workshops,Supplies and Services,Materials,CAR AND TRUCK SERVICES (SWINDON) LTD,SN1 ,01/12/2023,"-1,421.07"
118983233,Treasury,Corporate Finance,Treasury,Supplies and Services,Bank Charges,CARD PROCESSING ADVISORY SERVICES LTD (CPRAS),W1W ,28/12/2023,"1,221.65"
117953234,Human Resources and Organisational Development,"People, Culture and Organisational Resilience",HR Operations,Employees,Employee Related Schemes,CARE FIRST,GL3 ,20/12/2023,"3,063.57"
118037233,Learning Disabilities,Adults,Learning Disability 18 - 64,3rd Party Payments,Supported Lodgings (Childrens)/Supported Living (Adults),CAREFORYOU LTD,N13 ,20/12/2023,"4,882.00"
117394233,Social Care,Children & Families,Placement - Care Leaver Team,3rd Party Payments,Semi Independent,CARING FOR COMMUNITIES AND PEOPLE (CCP),GL50,18/12/2023,"2,630.00"
117396233,Social Care,Children & Families,Unaccompanied Asylum Seeking Children (UASC),3rd Party Payments,Semi Independent,CARING FOR COMMUNITIES AND PEOPLE (CCP),GL50,18/12/2023,"3,650.00"
117398233,Social Care,Children & Families,Placement - Care Leaver Team,3rd Party Payments,Semi Independent,CARING FOR COMMUNITIES AND PEOPLE (CCP),GL50,18/12/2023,"1,310.00"
117392233,Social Care,Children & Families,Children's Resource and Home Finding Team,3rd Party Payments,Semi Independent,CARING FOR COMMUNITIES AND PEOPLE (CCP),GL50,18/12/2023,"5,250.00"
119094233,Disabled Children,Children & Families,DCT Daytime Short Breaks,3rd Party Payments,Respite Care,CARING FOR COMMUNITIES AND PEOPLE (CCP),GL50,28/12/2023,840.40
117397233,Social Care,Children & Families,Placement - Care Leaver Team,3rd Party Payments,Semi Independent,CARING FOR COMMUNITIES AND PEOPLE (CCP),GL50,18/12/2023,"2,150.00"
117395233,Social Care,Children & Families,Placement - Care Leaver Team,3rd Party Payments,Semi Independent,CARING FOR COMMUNITIES AND PEOPLE (CCP),GL50,18/12/2023,"2,630.00"
117393233,Social Care,Children & Families,Placement - Care Leaver Team,3rd Party Payments,Semi Independent,CARING FOR COMMUNITIES AND PEOPLE (CCP),GL50,18/12/2023,"2,630.00"
116354233,Physical Support,Adults,Physical Support 65 and over,3rd Party Payments,Personal Budget - Domiciliary care,CARING HEART CARERS LIMITED,SN25,06/12/2023,-184.32
116354233,Physical Support,Adults,Physical Support 65 and over,3rd Party Payments,Personal Budget - Domiciliary care,CARING HEART CARERS LIMITED,SN25,06/12/2023,"1,244.16"
116354233,Physical Support,Adults,Physical Support 18 - 64,3rd Party Payments,Personal Budget - Domiciliary care,CARING HEART CARERS LIMITED,SN25,06/12/2023,"1,290.24"
116354233,Physical Support,Adults,Physical Support 18 - 64,3rd Party Payments,Personal Budget - Domiciliary care,CARING HEART CARERS LIMITED,SN25,06/12/2023,-80.64
118089265,Learning Disabilities,Adults,Learning Disability 18 - 64,Income,Client Contribution - Personal Budget - DP,REDACTED PERSONAL DATA,SN2 ,20/12/2023,-4.72
118089265,Learning Disabilities,Adults,Learning Disability 18 - 64,Transfer Payments,Personal Budget - Direct Payments - Domiciliary Care,REDACTED PERSONAL DATA,SN2 ,20/12/2023,736.16
118089265,Learning Disabilities,Adults,Learning Disability 18 - 64,Transfer Payments,Personal Budget - Direct Payments - Domiciliary Care,REDACTED PERSONAL DATA,SN2 ,20/12/2023,651.20
118089265,Learning Disabilities,Adults,Learning Disability 18 - 64,Transfer Payments,Personal Budget - Direct Payments - Domiciliary Care,REDACTED PERSONAL DATA,SN2 ,20/12/2023,359.52
118089265,Learning Disabilities,Adults,Learning Disability 18 - 64,Income,Client Contribution - Personal Budget - DP,REDACTED PERSONAL DATA,SN2 ,20/12/2023,-2.48
118089265,Learning Disabilities,Adults,Learning Disability 18 - 64,Income,Client Contribution - Personal Budget - DP,REDACTED PERSONAL DATA,SN2 ,20/12/2023,-5.08
118089265,Learning Disabilities,Adults,Learning Disability 18 - 64,Income,Client Contribution - Personal Budget - DP,REDACTED PERSONAL DATA,SN2 ,20/12/2023,-4.52
118089265,Learning Disabilities,Adults,Learning Disability 18 - 64,Transfer Payments,Personal Budget - Direct Payments - Domiciliary Care,REDACTED PERSONAL DATA,SN2 ,20/12/2023,683.76
117169238,Social Care,Children & Families,Placement Adoption Service,3rd Party Payments,Special Guardianship Orders,REDACTED PERSONAL DATA,SN3 ,18/12/2023,"2,302.86"
117169239,Social Care,Children & Families,Placement Adoption Service,3rd Party Payments,Special Guardianship Orders,REDACTED PERSONAL DATA,SN3 ,18/12/2023,"2,302.86"
117169242,Social Care,Children & Families,Placement Adoption Service,3rd Party Payments,Special Guardianship Orders,REDACTED PERSONAL DATA,SN3 ,18/12/2023,"2,608.73"
117167250,Social Care,Children & Families,Placement Adoption Service,3rd Party Payments,Special Guardianship Orders,REDACTED PERSONAL DATA,SN2 ,18/12/2023,594.29
117201238,High Needs Block,Dedicated Schools Grant (DSG),SEN Resourcing Assessment Panel,Supplies and Services,Services,REDACTED PERSONAL DATA,SN3 ,15/12/2023,"1,076.68"
117201240,High Needs Block,Dedicated Schools Grant (DSG),SEN Resourcing Assessment Panel,Supplies and Services,Services,REDACTED PERSONAL DATA,SN3 ,15/12/2023,"1,557.82"
118089321,Learning Disabilities,Adults,Learning Disability 18 - 64,Transfer Payments,Personal Budget - Direct Payments - Other,REDACTED PERSONAL DATA,SN2 ,20/12/2023,96.00
118089321,Learning Disabilities,Adults,Learning Disability 18 - 64,Income,Client Contribution - Personal Budget - DP,REDACTED PERSONAL DATA,SN2 ,20/12/2023,-5.64
118089321,Learning Disabilities,Adults,Learning Disability 18 - 64,Transfer Payments,Personal Budget - Direct Payments - Other,REDACTED PERSONAL DATA,SN2 ,20/12/2023,157.92
118089321,Learning Disabilities,Adults,Learning Disability 18 - 64,Transfer Payments,Personal Budget - Direct Payments - Other,REDACTED PERSONAL DATA,SN2 ,20/12/2023,60.16
118089321,Learning Disabilities,Adults,Learning Disability 18 - 64,Income,Client Contribution - Personal Budget - DP,REDACTED PERSONAL DATA,SN2 ,20/12/2023,-3.76
118089321,Learning Disabilities,Adults,Learning Disability 18 - 64,Transfer Payments,Personal Budget - Direct Payments - Other,REDACTED PERSONAL DATA,SN2 ,20/12/2023,151.20
118089321,Learning Disabilities,Adults,Learning Disability 18 - 64,Transfer Payments,Personal Budget - Direct Payments - Other,REDACTED PERSONAL DATA,SN2 ,20/12/2023,45.08
118089321,Learning Disabilities,Adults,Learning Disability 18 - 64,Income,Client Contribution - Personal Budget - DP,REDACTED PERSONAL DATA,SN2 ,20/12/2023,-2.20
118089321,Learning Disabilities,Adults,Learning Disability 18 - 64,Income,Client Contribution - Personal Budget - DP,REDACTED PERSONAL DATA,SN2 ,20/12/2023,-19.48
118089321,Learning Disabilities,Adults,Learning Disability 18 - 64,Income,Client Contribution - Personal Budget - DP,REDACTED PERSONAL DATA,SN2 ,20/12/2023,-1.64
118089321,Learning Disabilities,Adults,Learning Disability 18 - 64,Transfer Payments,Personal Budget - Direct Payments - Other,REDACTED PERSONAL DATA,SN2 ,20/12/2023,94.80
118089321,Learning Disabilities,Adults,Learning Disability 18 - 64,Transfer Payments,Personal Budget - Direct Payments - Other,REDACTED PERSONAL DATA,SN2 ,20/12/2023,405.72
118089321,Learning Disabilities,Adults,Learning Disability 18 - 64,Income,Client Contribution - Personal Budget - DP,REDACTED PERSONAL DATA,SN2 ,20/12/2023,-2.08
118089321,Learning Disabilities,Adults,Learning Disability 18 - 64,Income,Client Contribution - Personal Budget - DP,REDACTED PERSONAL DATA,SN2 ,20/12/2023,-0.64
118089321,Learning Disabilities,Adults,Learning Disability 18 - 64,Transfer Payments,Personal Budget - Direct Payments - Other,REDACTED PERSONAL DATA,SN2 ,20/12/2023,118.80
118089321,Learning Disabilities,Adults,Learning Disability 18 - 64,Transfer Payments,Personal Budget - Direct Payments - Other,REDACTED PERSONAL DATA,SN2 ,20/12/2023,360.96
118089321,Learning Disabilities,Adults,Learning Disability 18 - 64,Income,Client Contribution - Personal Budget - DP,REDACTED PERSONAL DATA,SN2 ,20/12/2023,-0.84
118089321,Learning Disabilities,Adults,Learning Disability 18 - 64,Income,Client Contribution - Personal Budget - DP,REDACTED PERSONAL DATA,SN2 ,20/12/2023,-5.68
118089321,Learning Disabilities,Adults,Learning Disability 18 - 64,Income,Client Contribution - Personal Budget - DP,REDACTED PERSONAL DATA,SN2 ,20/12/2023,-5.00
118089321,Learning Disabilities,Adults,Learning Disability 18 - 64,Income,Client Contribution - Personal Budget - DP,REDACTED PERSONAL DATA,SN2 ,20/12/2023,-1.32
118089321,Learning Disabilities,Adults,Learning Disability 18 - 64,Income,Client Contribution - Personal Budget - DP,REDACTED PERSONAL DATA,SN2 ,20/12/2023,-1.96
118089321,Learning Disabilities,Adults,Learning Disability 18 - 64,Transfer Payments,Personal Budget - Direct Payments - Other,REDACTED PERSONAL DATA,SN2 ,20/12/2023,142.20
118089321,Learning Disabilities,Adults,Learning Disability 18 - 64,Transfer Payments,Personal Budget - Direct Payments - Domiciliary Care,REDACTED PERSONAL DATA,SN2 ,20/12/2023,"1,408.50"
118089321,Learning Disabilities,Adults,Learning Disability 18 - 64,Transfer Payments,Personal Budget - Direct Payments - Other,REDACTED PERSONAL DATA,SN2 ,20/12/2023,405.76
118089321,Learning Disabilities,Adults,Learning Disability 18 - 64,Transfer Payments,Personal Budget - Direct Payments - Other,REDACTED PERSONAL DATA,SN2 ,20/12/2023,410.80
118089321,Learning Disabilities,Adults,Learning Disability 18 - 64,Transfer Payments,Personal Budget - Direct Payments - Other,REDACTED PERSONAL DATA,SN2 ,20/12/2023,270.48
116131254,Social Care,Children & Families,Placement Fostering Service,3rd Party Payments,Carers Skills Payments - Advanced,REDACTED PERSONAL DATA,SN2 ,04/12/2023,370.00
116131254,Social Care,Children & Families,Placement Fostering Service,3rd Party Payments,Festival Payment,REDACTED PERSONAL DATA,SN2 ,04/12/2023,300.00
116131254,Social Care,Children & Families,Placement Fostering Service,3rd Party Payments,Foster Care Basic Payments,REDACTED PERSONAL DATA,SN2 ,04/12/2023,600.00
117733233,Social Care,Children & Families,Placement Fostering Service,3rd Party Payments,Carers Skills Payments - Advanced,REDACTED PERSONAL DATA,SN2 ,18/12/2023,370.00
117733233,Social Care,Children & Families,Placement Fostering Service,3rd Party Payments,Foster Care Basic Payments,REDACTED PERSONAL DATA,SN2 ,18/12/2023,600.00
Corporate Card Transaction,Social Care,"Children, Families and Community Health Services",Placement - Care Leaver Team,Transfer Payments,Grants to Individuals,Carpet Warehouse Swind,,04/12/2023,710
116771233,Responsive Repairs,Repairs,Responsive Repairs,3rd Party Payments,Contract Payments,CARPET WAREHOUSE SWINDON LTD,SN2 ,13/12/2023,800.00
116771233,Responsive Repairs,Repairs,Responsive Repairs,3rd Party Payments,Contract Payments,CARPET WAREHOUSE SWINDON LTD,SN2 ,13/12/2023,457.31
116771233,Responsive Repairs,Repairs,Responsive Repairs,3rd Party Payments,Contract Payments,CARPET WAREHOUSE SWINDON LTD,SN2 ,13/12/2023,"1,206.55"
116771233,Responsive Repairs,Repairs,Responsive Repairs,3rd Party Payments,Contract Payments,CARPET WAREHOUSE SWINDON LTD,SN2 ,13/12/2023,"1,111.46"
116771233,Responsive Repairs,Repairs,Responsive Repairs,3rd Party Payments,Contract Payments,CARPET WAREHOUSE SWINDON LTD,SN2 ,13/12/2023,800.00
116771233,Responsive Repairs,Repairs,Responsive Repairs,3rd Party Payments,Contract Payments,CARPET WAREHOUSE SWINDON LTD,SN2 ,13/12/2023,708.75
116771233,Responsive Repairs,Repairs,Responsive Repairs,3rd Party Payments,Contract Payments,CARPET WAREHOUSE SWINDON LTD,SN2 ,13/12/2023,823.51
115992233,Streetsmart,Streetsmart,Waterside Fleet Workshops,Transport Costs,Repairs & Maintenance - Vehicles,CARY UK LTD T/A NATIONAL WINDSCREENS,NG16,01/12/2023,676.74
115994233,Streetsmart,Streetsmart,Waterside Fleet Workshops,Supplies and Services,Materials,CARY UK LTD T/A NATIONAL WINDSCREENS,NG16,01/12/2023,674.00
118089334,Learning Disabilities,Adults,Learning Disability 18 - 64,Income,Client Contribution - Personal Budget - DP,REDACTED PERSONAL DATA,SN6 ,20/12/2023,-12.08
118089334,Learning Disabilities,Adults,Learning Disability 18 - 64,Income,Client Contribution - Personal Budget - DP,REDACTED PERSONAL DATA,SN6 ,20/12/2023,-25.28
118089334,Learning Disabilities,Adults,Learning Disability 18 - 64,Income,Client Contribution - Personal Budget - DP,REDACTED PERSONAL DATA,SN6 ,20/12/2023,-22.96
118089334,Learning Disabilities,Adults,Learning Disability 18 - 64,Transfer Payments,Personal Budget - Direct Payments - Other,REDACTED PERSONAL DATA,SN6 ,20/12/2023,198.32
118089334,Learning Disabilities,Adults,Learning Disability 18 - 64,Income,Client Contribution - Personal Budget - DP,REDACTED PERSONAL DATA,SN6 ,20/12/2023,-26.16
118089334,Learning Disabilities,Adults,Learning Disability 18 - 64,Income,Client Contribution - Personal Budget - DP,REDACTED PERSONAL DATA,SN6 ,20/12/2023,-19.16
118089334,Learning Disabilities,Adults,Learning Disability 18 - 64,Transfer Payments,Personal Budget - Direct Payments - Other,REDACTED PERSONAL DATA,SN6 ,20/12/2023,150.40
118089334,Learning Disabilities,Adults,Learning Disability 18 - 64,Income,Client Contribution - Personal Budget - DP,REDACTED PERSONAL DATA,SN6 ,20/12/2023,-18.80
118089334,Learning Disabilities,Adults,Learning Disability 18 - 64,Transfer Payments,Personal Budget - Direct Payments - Other,REDACTED PERSONAL DATA,SN6 ,20/12/2023,94.80
118089334,Learning Disabilities,Adults,Learning Disability 18 - 64,Transfer Payments,Personal Budget - Direct Payments - Domiciliary Care,REDACTED PERSONAL DATA,SN6 ,20/12/2023,205.44
118089334,Learning Disabilities,Adults,Learning Disability 18 - 64,Transfer Payments,Personal Budget - Direct Payments - Domiciliary Care,REDACTED PERSONAL DATA,SN6 ,20/12/2023,180.36
118089334,Learning Disabilities,Adults,Learning Disability 18 - 64,Transfer Payments,Personal Budget - Direct Payments - Other,REDACTED PERSONAL DATA,SN6 ,20/12/2023,147.60
116359233,Traded Services,"Education, Inclusion and Skills",Plas Pencelli Outdoor Education Centre,Supplies and Services,Materials,CASTELL HOWELL FOODS LIMITED,SA14,06/12/2023,568.71
115710233,Traded Services,"Education, Inclusion and Skills",Plas Pencelli Outdoor Education Centre,Supplies and Services,Materials,CASTELL HOWELL FOODS LIMITED,SA14,01/12/2023,313.95
116359233,Traded Services,"Education, Inclusion and Skills",Plas Pencelli Outdoor Education Centre,Supplies and Services,Materials,CASTELL HOWELL FOODS LIMITED,SA14,06/12/2023,227.59
115710233,Traded Services,"Education, Inclusion and Skills",Plas Pencelli Outdoor Education Centre,Supplies and Services,Materials,CASTELL HOWELL FOODS LIMITED,SA14,01/12/2023,725.00
118014233,Learning Disabilities,Adults,Learning Disability 18 - 64,Income,Client Contribution - Supported Living,CATHEDRAL HOMES,GL1 ,20/12/2023,-118.40
118014233,Learning Disabilities,Adults,Learning Disability 18 - 64,3rd Party Payments,Supported Lodgings (Childrens)/Supported Living (Adults),CATHEDRAL HOMES,GL1 ,20/12/2023,"1,706.28"
118014233,Learning Disabilities,Adults,Learning Disability 18 - 64,3rd Party Payments,Supported Lodgings (Childrens)/Supported Living (Adults),CATHEDRAL HOMES,GL1 ,20/12/2023,"2,325.00"
118014233,Learning Disabilities,Adults,Learning Disability 18 - 64,Income,Client Contribution - Supported Living,CATHEDRAL HOMES,GL1 ,20/12/2023,-45.28
118014233,Learning Disabilities,Adults,Learning Disability 18 - 64,3rd Party Payments,Supported Lodgings (Childrens)/Supported Living (Adults),CATHEDRAL HOMES,GL1 ,20/12/2023,"3,225.00"
118014233,Learning Disabilities,Adults,Learning Disability 18 - 64,Income,Client Contribution - Supported Living,CATHEDRAL HOMES,GL1 ,20/12/2023,-17.92
118014233,Learning Disabilities,Adults,Learning Disability 18 - 64,3rd Party Payments,Supported Lodgings (Childrens)/Supported Living (Adults),CATHEDRAL HOMES,GL1 ,20/12/2023,675.00
118014233,Learning Disabilities,Adults,Learning Disability 18 - 64,3rd Party Payments,Supported Lodgings (Childrens)/Supported Living (Adults),CATHEDRAL HOMES,GL1 ,20/12/2023,"4,462.52"
117240233,Learning Disabilities,Adults,Learning Disability 18 - 64,3rd Party Payments,Supported Accommodation Scheme,REDACTED PERSONAL DATA,SN6 ,20/12/2023,"2,850.00"
117240233,Learning Disabilities,Adults,Learning Disability 18 - 64,3rd Party Payments,Supported Accommodation Scheme,REDACTED PERSONAL DATA,SN6 ,20/12/2023,"1,850.00"
Corporate Card Transaction,Digital & Business Change,Digital & Business Change,IT Operations,Supplies and Services,License Costs,Cba*tenable,,01/12/2023,3083.04
116419233,Physical Support,Adults,Physical Support 65 and over,3rd Party Payments,Personal Budget - Domiciliary care,CELTIC CARE SERVICES LTD,SN15,06/12/2023,"1,612.80"
116419233,Physical Support,Adults,Physical Support 65 and over,3rd Party Payments,Personal Budget - Domiciliary care,CELTIC CARE SERVICES LTD,SN15,06/12/2023,"1,632.70"
116419233,Mental Health,Adults,Mental Health 18-64,3rd Party Payments,Personal Budget - Domiciliary care,CELTIC CARE SERVICES LTD,SN15,06/12/2023,184.32
116419233,Mental Health,Adults,Mental Health 18-64,3rd Party Payments,Personal Budget - Domiciliary care,CELTIC CARE SERVICES LTD,SN15,06/12/2023,-92.16
116419233,Mental Health,Adults,Mental Health 65 and over,3rd Party Payments,Personal Budget - Domiciliary care,CELTIC CARE SERVICES LTD,SN15,06/12/2023,653.08
116419233,Mental Health,Adults,Mental Health 65 and over,3rd Party Payments,Personal Budget - Domiciliary care,CELTIC CARE SERVICES LTD,SN15,06/12/2023,645.12
117052234,Streetsmart,Streetsmart,Waste - Disposal,Supplies and Services,Materials,CENTRAL CONVEYOR BELTING SERVICES LTD,RG19,13/12/2023,"2,174.74"
117003284,Early Years Block,Dedicated Schools Grant (DSG),Free Nursery Education Commissioning - three & four  year olds,3rd Party Payments,Contracts - Child Care,CENTRAL PRE-SCHOOL,SN1 ,13/12/2023,"1,415.88"
117003285,Early Years Block,Dedicated Schools Grant (DSG),Free Nursery Education Commissioning - three & four  year olds,3rd Party Payments,Contracts - Child Care,CENTRAL PRE-SCHOOL,SN1 ,13/12/2023,"15,030.23"
119105233,Revenues & Benefits,Revenues & Benefits,Swindon Emergency Assistance Fund,Supplies and Services,Services,CENTRE FOR SUSTAINABLE ENERGY,BS1 ,28/12/2023,"7,300.00"
117109233,Public Health,Public Health,Disabled Facilities Grants,Capital,"Equipment, Fixtures & Fittings",CHANNEL 3 CONSULTING LIMITED,CF10,15/12/2023,"96,040.00"
115934233,Streetsmart,Streetsmart,Waterside Canteen,Supplies and Services,Confectionary,CHAPPLE & JENKINS LTD,BS15,01/12/2023,834.40
115954233,Streetsmart,Streetsmart,Waterside Canteen,Supplies and Services,Confectionary,CHAPPLE & JENKINS LTD,BS15,01/12/2023,761.27
115954233,Streetsmart,Streetsmart,Waterside Canteen,Supplies and Services,Confectionary,CHAPPLE & JENKINS LTD,BS15,01/12/2023,14.65
115934233,Streetsmart,Streetsmart,Waterside Canteen,Supplies and Services,Food,CHAPPLE & JENKINS LTD,BS15,01/12/2023,7.99
118631233,Streetsmart,Streetsmart,Waterside Canteen,Supplies and Services,Confectionary,CHAPPLE & JENKINS LTD,BS15,22/12/2023,971.13
117044234,Other Repairs,Repairs,Unallocated job costs from OPEN system,Premises Costs,Maintenance - Buildings,CHARLES HARDING ESTATE AGENTS LIMITED,SN1 ,13/12/2023,30.00
117779233,Homelessness and Travellers,Housing Services,Ukrainian Support Scheme,Supplies and Services,Discretionary Costs,CHARLES HARDING LETTINGS AND PROPERTY MANAGEMENT,SN1 ,20/12/2023,"1,660.00"
116176233,Homelessness and Travellers,Housing Services,Bed and Breakfast Accommodation,Transfer Payments,Payment of Costs,CHARLES HOPES HOLDINGS LIMITED,SO15,06/12/2023,"-6,000.00"
116169233,Homelessness and Travellers,Housing Services,Bed and Breakfast Accommodation,Transfer Payments,Payment of Costs,CHARLES HOPES HOLDINGS LIMITED,SO15,06/12/2023,"-2,775.00"
115965237,Homelessness and Travellers,Housing Services,Private Sector Landlords,Transfer Payments,Payment of Costs,CHARLES HOPES HOLDINGS LIMITED,SO15,01/12/2023,818.90
116174233,Homelessness and Travellers,Housing Services,Bed and Breakfast Accommodation,Transfer Payments,Payment of Costs,CHARLES HOPES HOLDINGS LIMITED,SO15,06/12/2023,"-2,400.00"
116171233,Homelessness and Travellers,Housing Services,Bed and Breakfast Accommodation,Transfer Payments,Payment of Costs,CHARLES HOPES HOLDINGS LIMITED,SO15,06/12/2023,"-3,150.00"
116175233,Homelessness and Travellers,Housing Services,Bed and Breakfast Accommodation,Transfer Payments,Payment of Costs,CHARLES HOPES HOLDINGS LIMITED,SO15,06/12/2023,"-3,375.00"
116425233,Homelessness and Travellers,Housing Services,Bed and Breakfast Accommodation,Transfer Payments,Payment of Costs,CHARLES HOPES HOLDINGS LIMITED,SO15,06/12/2023,"77,865.00"
116172233,Homelessness and Travellers,Housing Services,Bed and Breakfast Accommodation,Transfer Payments,Payment of Costs,CHARLES HOPES HOLDINGS LIMITED,SO15,06/12/2023,"-1,875.00"
116177233,Homelessness and Travellers,Housing Services,Bed and Breakfast Accommodation,Transfer Payments,Payment of Costs,CHARLES HOPES HOLDINGS LIMITED,SO15,06/12/2023,"-3,300.00"
116173233,Homelessness and Travellers,Housing Services,Bed and Breakfast Accommodation,Transfer Payments,Payment of Costs,CHARLES HOPES HOLDINGS LIMITED,SO15,06/12/2023,"-2,175.00"
117967234,Lydiard Park,Culture & Heritage,Lydiard House & Park,Supplies and Services,Materials,CHARLES SAUNDERS LTD,BS37,20/12/2023,472.04
117003561,Early Years Block,Dedicated Schools Grant (DSG),Free Nursery Education Commissioning - three & four  year olds,3rd Party Payments,Contracts - Child Care,CHEEKY CHIMPS,SN2 ,13/12/2023,"8,961.75"
117003560,Early Years Block,Dedicated Schools Grant (DSG),Free Nursery Education Commissioning - three & four  year olds,3rd Party Payments,Contracts - Child Care,CHEEKY CHIMPS,SN2 ,13/12/2023,583.20
117003559,Early Years Block,Dedicated Schools Grant (DSG),Free Nursery Education Commissioning - two year olds,3rd Party Payments,Contracts - Child Care,CHEEKY CHIMPS,SN2 ,13/12/2023,"5,183.21"
118047233,Early Years Block,Dedicated Schools Grant (DSG),Free Nursery Education Commissioning - three & four  year olds,3rd Party Payments,Contracts - Child Care,REDACTED PERSONAL DATA,SN4 ,20/12/2023,945.00
119089233,Public Health,Public Health,Sexual Health & Health Protection Budget,3rd Party Payments,Contract Payments,CHELSEA & WESTMINSTER HOSPITAL NHS FOUNDATION TRUST,SW10,28/12/2023,"1,214.50"
117167289,Social Care,Children & Families,Placement Adoption Service,3rd Party Payments,Special Guardianship Orders,REDACTED PERSONAL DATA,RG30,18/12/2023,594.29
117167288,Social Care,Children & Families,Placement Adoption Service,3rd Party Payments,Special Guardianship Orders,REDACTED PERSONAL DATA,RG30,18/12/2023,594.29
117003603,Early Years Block,Dedicated Schools Grant (DSG),Free Nursery Education Commissioning - two year olds,3rd Party Payments,Contracts - Child Care,CHILD BASE NURSERIES,MK16,13/12/2023,"2,401.69"
117003604,Early Years Block,Dedicated Schools Grant (DSG),Free Nursery Education Commissioning - three & four  year olds,3rd Party Payments,Contracts - Child Care,CHILD BASE NURSERIES,MK16,13/12/2023,"10,497.46"
115856233,Responsive Repairs,Repairs,Responsive Repairs,3rd Party Payments,Contract Payments,CHILD SCAFFOLDING LTD,SN1 ,01/12/2023,216.00
115855233,Responsive Repairs,Repairs,Responsive Repairs,3rd Party Payments,Contract Payments,CHILD SCAFFOLDING LTD,SN1 ,01/12/2023,340.00
115855233,Responsive Repairs,Repairs,Responsive Repairs,3rd Party Payments,Contract Payments,CHILD SCAFFOLDING LTD,SN1 ,01/12/2023,"1,640.00"
118744233,Void Repairs,Supervision & Management,Void Property Repairs,3rd Party Payments,Contract Payments,CHILD SCAFFOLDING LTD,SN1 ,22/12/2023,440.00
115855233,Responsive Repairs,Repairs,Responsive Repairs,3rd Party Payments,Contract Payments,CHILD SCAFFOLDING LTD,SN1 ,01/12/2023,820.00
115856233,Responsive Repairs,Repairs,Responsive Repairs,3rd Party Payments,Contract Payments,CHILD SCAFFOLDING LTD,SN1 ,01/12/2023,416.00
115856233,Responsive Repairs,Repairs,Responsive Repairs,3rd Party Payments,Contract Payments,CHILD SCAFFOLDING LTD,SN1 ,01/12/2023,725.00
115856233,Responsive Repairs,Repairs,Responsive Repairs,3rd Party Payments,Contract Payments,CHILD SCAFFOLDING LTD,SN1 ,01/12/2023,738.00
115856233,Responsive Repairs,Repairs,Responsive Repairs,3rd Party Payments,Contract Payments,CHILD SCAFFOLDING LTD,SN1 ,01/12/2023,552.00
119084233,Parking & Bus lanes,Highway Operations and Car Parking,Street Parking,Supplies and Services,Fees,CHIPSIDE LTD,SN15,28/12/2023,933.94
117215233,Schools - Primary,Dedicated Schools Grant (DSG),Primary School Budgets,3rd Party Payments,Mainstream Delegated Funding,CHISELDON PRIMARY SCHOOL,SN4 ,15/12/2023,"71,288.00"
117003286,Early Years Block,Dedicated Schools Grant (DSG),Free Nursery Education Commissioning - two year olds,3rd Party Payments,Contracts - Child Care,CHISELDON PRIMARY SCHOOL,SN4 ,13/12/2023,"5,303.64"
117201260,High Needs Block,Dedicated Schools Grant (DSG),SEN Resourcing Assessment Panel,3rd Party Payments,Top up funding - Maintained providers Pre 16,CHISELDON PRIMARY SCHOOL,SN4 ,15/12/2023,"1,231.25"
117216247,DSG Other Funding,Dedicated Schools Grant (DSG),DFE Additional Grants,3rd Party Payments,Payment of Pupil Premium to school,CHISELDON PRIMARY SCHOOL,SN4 ,15/12/2023,"5,441.00"
117003288,Early Years Block,Dedicated Schools Grant (DSG),Free Nursery Education Commissioning - three & four  year olds,3rd Party Payments,Contracts - Child Care,CHISELDON PRIMARY SCHOOL,SN4 ,13/12/2023,"11,304.15"
117508263,Learning Disabilities,Adults,Learning Disability 18 - 64,3rd Party Payments,Residential Care,CHOSEN CARE LTD,GL3 ,18/12/2023,"7,639.52"
117508263,Learning Disabilities,Adults,Learning Disability 18 - 64,3rd Party Payments,Residential Care,CHOSEN CARE LTD,GL3 ,18/12/2023,"7,802.16"
117508263,Learning Disabilities,Adults,Learning Disability 18 - 64,3rd Party Payments,Residential Care,CHOSEN CARE LTD,GL3 ,18/12/2023,"7,631.68"
117508263,Learning Disabilities,Adults,Learning Disability 18 - 64,Income,Client Contribution - Residential,CHOSEN CARE LTD,GL3 ,18/12/2023,-779.20
117508263,Learning Disabilities,Adults,Learning Disability 18 - 64,Income,Client Contribution - Residential,CHOSEN CARE LTD,GL3 ,18/12/2023,-400.48
119150233,Responsive Repairs,Repairs,Responsive Repairs,3rd Party Payments,Contract Payments,CHRIS WHEELER CONSTRUCTION LTD,SN8 ,28/12/2023,437.40
118610233,Responsive Repairs,Repairs,Responsive Repairs,3rd Party Payments,Contract Payments,CHRIS WHEELER CONSTRUCTION LTD,SN8 ,22/12/2023,664.23
118603234,Responsive Repairs,Repairs,Responsive Repairs,3rd Party Payments,Contract Payments,CHRIS WHEELER CONSTRUCTION LTD,SN8 ,22/12/2023,484.11
119149233,Responsive Repairs,Repairs,Responsive Repairs,3rd Party Payments,Contract Payments,CHRIS WHEELER CONSTRUCTION LTD,SN8 ,28/12/2023,533.24
118089358,Physical Support,Adults,Physical Support 18 - 64,Transfer Payments,Personal Budget - Direct Payments - Domiciliary Care,REDACTED PERSONAL DATA,SN25,20/12/2023,952.56
118089358,Physical Support,Adults,Physical Support 18 - 64,Income,Client Contribution - Personal Budget - DP,REDACTED PERSONAL DATA,SN25,20/12/2023,-147.40
118358233,Social Care,Children & Families,Placement Adoption Service,3rd Party Payments,Adoption Allowances,REDACTED PERSONAL DATA,SN6 ,20/12/2023,514.12
117582233,Social Care,Children & Families,Placement Adoption Service,3rd Party Payments,Adoption Allowances,REDACTED PERSONAL DATA,SN6 ,18/12/2023,541.52
117581233,Social Care,Children & Families,Placement Adoption Service,3rd Party Payments,Adoption Allowances,REDACTED PERSONAL DATA,SN6 ,18/12/2023,525.32
116134337,Social Care,Children & Families,Placement Adoption Service,3rd Party Payments,Adoption Allowances,REDACTED PERSONAL DATA,SN6 ,04/12/2023,699.84
116134338,Social Care,Children & Families,Placement Adoption Service,3rd Party Payments,Adoption Allowances,REDACTED PERSONAL DATA,SN6 ,04/12/2023,"1,055.64"
117167234,Social Care,Children & Families,Placement Adoption Service,3rd Party Payments,Special Guardianship Orders,CHRISTINE AND ANTHONY CARLTON,CF44,18/12/2023,594.29
117181237,Social Care,Children & Families,Children's Resource and Home Finding Team,3rd Party Payments,Independent Fostering Agency Placements,CHRYSALISCARE LTD,DA7 ,18/12/2023,"5,881.01"
117181236,Social Care,Children & Families,Children's Resource and Home Finding Team,3rd Party Payments,Independent Fostering Agency Placements,CHRYSALISCARE LTD,DA7 ,18/12/2023,"6,589.67"
117508298,Physical Support,Adults,Physical Support 65 and over,Income,Client Contribution - Nursing,CHURCH VIEW,SN3 ,18/12/2023,-741.88
117508298,Memory & Cognition,Adults,Support for Memory and Cognition 65 and over,3rd Party Payments,Nursing Care,CHURCH VIEW,SN3 ,18/12/2023,"3,746.16"
117508298,Memory & Cognition,Adults,Support for Memory and Cognition 65 and over,3rd Party Payments,Nursing Care,CHURCH VIEW,SN3 ,18/12/2023,802.75
117508298,Physical Support,Adults,Physical Support 65 and over,3rd Party Payments,Nursing Care,CHURCH VIEW,SN3 ,18/12/2023,"2,809.62"
117508298,Physical Support,Adults,Physical Support 65 and over,Income,Client Contribution - Nursing,CHURCH VIEW,SN3 ,18/12/2023,-691.20
117508298,Physical Support,Adults,Physical Support 18 - 64,3rd Party Payments,Nursing Care,CHURCH VIEW,SN3 ,18/12/2023,"2,988.96"
117508298,Physical Support,Adults,Physical Support 18 - 64,3rd Party Payments,Nursing Care,CHURCH VIEW,SN3 ,18/12/2023,"2,867.32"
117508298,Physical Support,Adults,Physical Support 65 and over,Income,Client Contribution - Nursing,CHURCH VIEW,SN3 ,18/12/2023,-172.80
117508298,Physical Support,Adults,Physical Support 65 and over,3rd Party Payments,Nursing Care,CHURCH VIEW,SN3 ,18/12/2023,"5,863.96"
117508298,Physical Support,Adults,Physical Support 65 and over,Income,Client Contribution - Nursing,CHURCH VIEW,SN3 ,18/12/2023,"-2,867.32"
117508298,Physical Support,Adults,Physical Support 65 and over,Income,Client Contribution - Nursing,CHURCH VIEW,SN3 ,18/12/2023,-984.92
117508298,Physical Support,Adults,Physical Support 65 and over,Income,Client Contribution - Nursing,CHURCH VIEW,SN3 ,18/12/2023,-491.76
117508298,Mental Health,Adults,Mental Health 65 and over,3rd Party Payments,Nursing Care,CHURCH VIEW,SN3 ,18/12/2023,"5,000.00"
117508298,Physical Support,Adults,Physical Support 65 and over,3rd Party Payments,Nursing Care,CHURCH VIEW,SN3 ,18/12/2023,"2,988.96"
117508298,Physical Support,Adults,Physical Support 65 and over,Income,Client Contribution - Nursing,CHURCH VIEW,SN3 ,18/12/2023,-709.76
117508298,Physical Support,Adults,Physical Support 65 and over,3rd Party Payments,Nursing Care,CHURCH VIEW,SN3 ,18/12/2023,"2,408.25"
117508298,Physical Support,Adults,Physical Support 65 and over,3rd Party Payments,Nursing Care,CHURCH VIEW,SN3 ,18/12/2023,"6,496.00"
117508298,Physical Support,Adults,Physical Support 65 and over,Income,Client Contribution - Nursing,CHURCH VIEW,SN3 ,18/12/2023,-930.44
117508298,Memory & Cognition,Adults,Support for Memory and Cognition 65 and over,Income,Client Contribution - Nursing,CHURCH VIEW,SN3 ,18/12/2023,-493.71
117508298,Physical Support,Adults,Physical Support 18 - 64,Income,Client Contribution - Nursing,CHURCH VIEW,SN3 ,18/12/2023,-744.56
117508298,Physical Support,Adults,Physical Support 65 and over,3rd Party Payments,Nursing Care,CHURCH VIEW,SN3 ,18/12/2023,"3,746.16"
117508298,Physical Support,Adults,Physical Support 65 and over,Income,Client Contribution - Nursing,CHURCH VIEW,SN3 ,18/12/2023,-800.96
117508298,Physical Support,Adults,Physical Support 18 - 64,Income,Client Contribution - Nursing,CHURCH VIEW,SN3 ,18/12/2023,-552.52
117508298,Physical Support,Adults,Physical Support 65 and over,3rd Party Payments,Nursing Care,CHURCH VIEW,SN3 ,18/12/2023,"2,867.32"
117508298,Physical Support,Adults,Physical Support 65 and over,Income,Client Contribution - Nursing,CHURCH VIEW,SN3 ,18/12/2023,-763.24
117508298,Physical Support,Adults,Physical Support 65 and over,Income,Client Contribution - Nursing,CHURCH VIEW,SN3 ,18/12/2023,-979.88
117513235,Learning Disabilities,Adults,Learning Disability 18 - 64,Income,Client Contribution - Residential,CIDERSTONE HOUSE,SN25,18/12/2023,-483.20
117513235,Learning Disabilities,Adults,Learning Disability 18 - 64,Income,Client Contribution - Residential,CIDERSTONE HOUSE,SN25,18/12/2023,-788.80
117513235,Learning Disabilities,Adults,Learning Disability 18 - 64,Income,Client Contribution - Residential,CIDERSTONE HOUSE,SN25,18/12/2023,-60.71
117513235,Learning Disabilities,Adults,Learning Disability 18 - 64,Income,Client Contribution - Residential,CIDERSTONE HOUSE,SN25,18/12/2023,-438.80
117513235,Learning Disabilities,Adults,Learning Disability 18 - 64,Income,Client Contribution - Residential,CIDERSTONE HOUSE,SN25,18/12/2023,-60.20
117513235,Learning Disabilities,Adults,Learning Disability 18 - 64,3rd Party Payments,Residential Care,CIDERSTONE HOUSE,SN25,18/12/2023,"12,163.20"
117513235,Learning Disabilities,Adults,Learning Disability 18 - 64,3rd Party Payments,Residential Care,CIDERSTONE HOUSE,SN25,18/12/2023,"11,782.40"
117201370,High Needs Block,Dedicated Schools Grant (DSG),Post 16 - New Responsibilties,3rd Party Payments,FE Colleges,CIRENCESTER COLLEGE,GL7 ,15/12/2023,"4,602.00"
117201365,High Needs Block,Dedicated Schools Grant (DSG),Out of Borough School Fees,3rd Party Payments,Other Local Authority Mainstream Schools- Pre 16,CIRENCESTER KINGSHILL SCHOOL,GL7 ,15/12/2023,609.58
117201366,High Needs Block,Dedicated Schools Grant (DSG),Out of Borough School Fees,3rd Party Payments,Other Local Authority Mainstream Schools- Pre 16,CIRENCESTER KINGSHILL SCHOOL,GL7 ,15/12/2023,609.58
117329233,Homelessness and Travellers,Housing Services,Private Sector Landlords,Transfer Payments,Payment of Costs,REDACTED PERSONAL DATA,SN5 ,20/12/2023,575.00
117947233,Elections & Democracy,Elections and Democracy,Register of Electors,Supplies and Services,Post,CIVICA ELECTION SERVICES LIMITED,N8 0,20/12/2023,"1,205.99"
117947233,Elections & Democracy,Elections and Democracy,Register of Electors,Supplies and Services,Materials,CIVICA ELECTION SERVICES LIMITED,N8 0,20/12/2023,802.79
116537233,Elections & Democracy,Elections and Democracy,Register of Electors,Supplies and Services,Materials,CIVICA ELECTION SERVICES LIMITED,N8 0,08/12/2023,188.02
117824234,Elections & Democracy,Elections and Democracy,Register of Electors,Supplies and Services,Post,CIVICA ELECTION SERVICES LIMITED,N8 0,20/12/2023,"24,244.67"
117824234,Elections & Democracy,Elections and Democracy,Register of Electors,Supplies and Services,Materials,CIVICA ELECTION SERVICES LIMITED,N8 0,20/12/2023,"4,928.74"
116537233,Elections & Democracy,Elections and Democracy,Register of Electors,Supplies and Services,Post,CIVICA ELECTION SERVICES LIMITED,N8 0,08/12/2023,"1,469.30"
116191233,Libraries,"Education, Inclusion and Skills",Library Delivery,Supplies and Services,Services,CIVICA UK LTD,SE1 ,04/12/2023,625.00
117809233,Planning & Regulatory,Strategic Planning,Economy & Development Management,Employees,Temporary / Agency - by Accounts Payable,REDACTED PERSONAL DATA,BS37,20/12/2023,"13,071.70"
117003290,Early Years Block,Dedicated Schools Grant (DSG),Free Nursery Education Commissioning - three & four  year olds,3rd Party Payments,Contracts - Child Care,REDACTED PERSONAL DATA,SN6 ,13/12/2023,"1,411.30"
117663233,Social Care,Children & Families,Placement Adoption Service,3rd Party Payments,Special Guardianship Orders,REDACTED PERSONAL DATA,SA1 ,18/12/2023,560.61
117003291,Early Years Block,Dedicated Schools Grant (DSG),Free Nursery Education Commissioning - two year olds,3rd Party Payments,Contracts - Child Care,REDACTED PERSONAL DATA,SN2 ,13/12/2023,810.60
117169243,Social Care,Children & Families,Placement Adoption Service,3rd Party Payments,Special Guardianship Orders,REDACTED PERSONAL DATA,SN6 ,18/12/2023,"2,302.86"
116521233,Care Management & Safeguarding,Adults,Swindon Safeguarding Partnershiph,Supplies and Services,Fees,CLARK WARD ASSOCIATES LTD,SN1 ,08/12/2023,615.00
118933233,Education,"Education, Inclusion and Skills",Inclusion and Achievement Senior Management Team,Supplies and Services,Fees,CLARKE WILLMOTT LLP,TA1 ,28/12/2023,"4,837.20"
117003294,Early Years Block,Dedicated Schools Grant (DSG),Free Nursery Education Commissioning - three & four  year olds,3rd Party Payments,Contracts - Child Care,CLIFTON ST PRE-SCHOOL,SN1 ,13/12/2023,"6,968.49"
117972236,Early Years Block,Dedicated Schools Grant (DSG),Free Nursery Education Commissioning - three & four  year olds,3rd Party Payments,Contracts - Child Care,CLIFTON ST PRE-SCHOOL,SN1 ,20/12/2023,750.00
119036233,Public Health,Public Health,Disabled Facilities Grants,Capital,Grant Payments,CLOSOMAT LIMITED,M33 ,28/12/2023,"4,848.00"
118569233,Public Health,Public Health,Disabled Facilities Grants,Capital,Grant Payments,CLOSOMAT LIMITED,M33 ,22/12/2023,"4,650.00"
117508291,Mental Health,Adults,Mental Health 65 and over,3rd Party Payments,Residential Care,COATE WATER CARE CO LTD,SN3 ,18/12/2023,"2,867.32"
117226239,Physical Support,Adults,Physical Support 65 and over,3rd Party Payments,Personal Budget - Respite Care,COATE WATER CARE CO LTD,SN3 ,15/12/2023,"3,857.14"
117508291,Memory & Cognition,Adults,Support for Memory and Cognition 65 and over,3rd Party Payments,Residential Care,COATE WATER CARE CO LTD,SN3 ,18/12/2023,"2,867.32"
117508291,Physical Support,Adults,Physical Support 65 and over,Income,Client Contribution - Residential,COATE WATER CARE CO LTD,SN3 ,18/12/2023,"-1,434.76"
117508291,Physical Support,Adults,Physical Support 65 and over,Income,Client Contribution - Residential,COATE WATER CARE CO LTD,SN3 ,18/12/2023,"-1,175.40"
118492233,Physical Support,Adults,Physical Support 65 and over,3rd Party Payments,Residential Care,COATE WATER CARE CO LTD,SN3 ,22/12/2023,614.43
117508291,Physical Support,Adults,Physical Support 18 - 64,Income,Client Contribution - Residential,COATE WATER CARE CO LTD,SN3 ,18/12/2023,-416.56
117508291,Mental Health,Adults,Mental Health 65 and over,3rd Party Payments,Residential Care,COATE WATER CARE CO LTD,SN3 ,18/12/2023,"3,480.00"
117508291,Physical Support,Adults,Physical Support 65 and over,Income,Client Contribution - Residential,COATE WATER CARE CO LTD,SN3 ,18/12/2023,"-2,280.92"
117508291,Physical Support,Adults,Physical Support 65 and over,3rd Party Payments,Residential Care,COATE WATER CARE CO LTD,SN3 ,18/12/2023,"1,945.68"
117508291,Physical Support,Adults,Physical Support 65 and over,Income,Client Contribution - Residential,COATE WATER CARE CO LTD,SN3 ,18/12/2023,-123.42
117508291,Physical Support,Adults,Physical Support 65 and over,Income,Client Contribution - Residential,COATE WATER CARE CO LTD,SN3 ,18/12/2023,-691.20
117508291,Physical Support,Adults,Physical Support 65 and over,Income,Client Contribution - Residential,COATE WATER CARE CO LTD,SN3 ,18/12/2023,-847.96
117508291,Physical Support,Adults,Physical Support 65 and over,3rd Party Payments,Residential Care,COATE WATER CARE CO LTD,SN3 ,18/12/2023,"2,867.32"
117508291,Physical Support,Adults,Physical Support 65 and over,3rd Party Payments,Residential Care,COATE WATER CARE CO LTD,SN3 ,18/12/2023,"4,400.00"
117508291,Physical Support,Adults,Physical Support 65 and over,3rd Party Payments,Residential Care,COATE WATER CARE CO LTD,SN3 ,18/12/2023,"2,988.96"
117508291,Physical Support,Adults,Physical Support 65 and over,Income,Client Contribution - Residential,COATE WATER CARE CO LTD,SN3 ,18/12/2023,-895.60
117508291,Physical Support,Adults,Physical Support 65 and over,Income,Client Contribution - Residential,COATE WATER CARE CO LTD,SN3 ,18/12/2023,"-1,395.32"
117508291,Physical Support,Adults,Physical Support 65 and over,Income,Client Contribution - Residential,COATE WATER CARE CO LTD,SN3 ,18/12/2023,-727.20
117508291,Physical Support,Adults,Physical Support 65 and over,Income,Client Contribution - Residential,COATE WATER CARE CO LTD,SN3 ,18/12/2023,-760.96
117508291,Physical Support,Adults,Physical Support 65 and over,Income,Client Contribution - Residential,COATE WATER CARE CO LTD,SN3 ,18/12/2023,"-1,040.80"
117508291,Physical Support,Adults,Physical Support 65 and over,3rd Party Payments,Residential Care,COATE WATER CARE CO LTD,SN3 ,18/12/2023,"3,900.00"
117508291,Memory & Cognition,Adults,Support for Memory and Cognition 65 and over,Income,Client Contribution - Residential,COATE WATER CARE CO LTD,SN3 ,18/12/2023,-691.20
117508291,Memory & Cognition,Adults,Support for Memory and Cognition 65 and over,Income,Client Contribution - Residential,COATE WATER CARE CO LTD,SN3 ,18/12/2023,-493.71
117508291,Physical Support,Adults,Physical Support 18 - 64,3rd Party Payments,Residential Care,COATE WATER CARE CO LTD,SN3 ,18/12/2023,"2,867.32"
117508291,Mental Health,Adults,Mental Health 65 and over,Income,Client Contribution - Residential,COATE WATER CARE CO LTD,SN3 ,18/12/2023,-691.20
117508291,Mental Health,Adults,Mental Health 65 and over,3rd Party Payments,Residential Care,COATE WATER CARE CO LTD,SN3 ,18/12/2023,"2,764.92"
117508291,Physical Support,Adults,Physical Support 65 and over,Income,Client Contribution - Residential,COATE WATER CARE CO LTD,SN3 ,18/12/2023,"-1,328.68"
117508291,Physical Support,Adults,Physical Support 65 and over,Income,Client Contribution - Residential,COATE WATER CARE CO LTD,SN3 ,18/12/2023,-713.24
117508291,Physical Support,Adults,Physical Support 65 and over,Income,Client Contribution - Residential,COATE WATER CARE CO LTD,SN3 ,18/12/2023,-675.20
117508291,Mental Health,Adults,Mental Health 65 and over,Income,Client Contribution - Residential,COATE WATER CARE CO LTD,SN3 ,18/12/2023,-271.54
117508291,Physical Support,Adults,Physical Support 65 and over,Income,Client Contribution - Residential,COATE WATER CARE CO LTD,SN3 ,18/12/2023,-933.04
117508291,Physical Support,Adults,Physical Support 65 and over,Income,Client Contribution - Residential,COATE WATER CARE CO LTD,SN3 ,18/12/2023,-644.56
118492233,Physical Support,Adults,Physical Support 65 and over,3rd Party Payments,Residential Care,COATE WATER CARE CO LTD,SN3 ,22/12/2023,"2,867.32"
117508291,Memory & Cognition,Adults,Support for Memory and Cognition 65 and over,3rd Party Payments,Residential Care,COATE WATER CARE CO LTD,SN3 ,18/12/2023,"1,228.85"
117508256,Learning Disabilities,Adults,Learning Disability 18 - 64,3rd Party Payments,Residential Care,COCKLEBURY FARMHOUSE,SN15,18/12/2023,"10,364.00"
117508256,Learning Disabilities,Adults,Learning Disability 18 - 64,Income,Client Contribution - Residential,COCKLEBURY FARMHOUSE,SN15,18/12/2023,-425.60
117278233,Town Centre,"Economy, Growth and Place",Fleming Way Improvement Scheme,Capital,Contractor Payments,COLAS LTD,B37 ,15/12/2023,"411,794.83"
118181233,Town Centre,"Economy, Growth and Place",Fleming Way Improvement Scheme,Capital,Contractor Payments,COLAS LTD,B37 ,20/12/2023,"446,619.95"
116151237,Highways Inspections & Maintenance,Highway Operations and Car Parking,Highway Maintenance,Supplies and Services,Materials,COLAS LTD,B37 ,04/12/2023,828.00
117003296,Early Years Block,Dedicated Schools Grant (DSG),Free Nursery Education Commissioning - three & four  year olds,3rd Party Payments,Contracts - Child Care,COLEVIEW PRE-SCHOOL,SN3 ,13/12/2023,"6,444.90"
117972237,Early Years Block,Dedicated Schools Grant (DSG),Free Nursery Education Commissioning - three & four  year olds,3rd Party Payments,Contracts - Child Care,COLEVIEW PRE-SCHOOL,SN3 ,20/12/2023,"1,672.00"
117985233,Disabled Children,Children & Families,DCT Daytime Short Breaks,3rd Party Payments,Respite Care,COLLABORATIVE CARE SERVICES LTD,SN2 ,20/12/2023,"27,936.00"
118012233,Learning Disabilities,Adults,Learning Disability 18 - 64,3rd Party Payments,Supported Lodgings (Childrens)/Supported Living (Adults),COMMUNITY ACCESS NETWORK LTD,SN25,20/12/2023,"1,503.88"
118012233,Learning Disabilities,Adults,Learning Disability 18 - 64,3rd Party Payments,Supported Lodgings (Childrens)/Supported Living (Adults),COMMUNITY ACCESS NETWORK LTD,SN25,20/12/2023,"4,120.00"
118012233,Learning Disabilities,Adults,Learning Disability 18 - 64,3rd Party Payments,Supported Lodgings (Childrens)/Supported Living (Adults),COMMUNITY ACCESS NETWORK LTD,SN25,20/12/2023,24.00
118517234,Physical Support,Adults,Physical Support 18 - 64,3rd Party Payments,Support for Social Isolation,COMMUNITY ACCESS NETWORK LTD,SN25,22/12/2023,645.12
118012233,Learning Disabilities,Adults,Learning Disability 18 - 64,3rd Party Payments,Supported Lodgings (Childrens)/Supported Living (Adults),COMMUNITY ACCESS NETWORK LTD,SN25,20/12/2023,"1,360.00"
118517234,Physical Support,Adults,Physical Support 18 - 64,3rd Party Payments,Support for Social Isolation,COMMUNITY ACCESS NETWORK LTD,SN25,22/12/2023,-10.08
118011233,Learning Disabilities,Adults,Learning Disability 65 and over,3rd Party Payments,Supported Lodgings (Childrens)/Supported Living (Adults),COMMUNITY ACCESS NETWORK LTD,SN25,20/12/2023,907.60
117508247,Learning Disabilities,Adults,Learning Disability 18 - 64,Income,Client Contribution - Residential,COMMUNITY ACCESS NETWORK LTD,SN25,18/12/2023,-483.20
118012233,Learning Disabilities,Adults,Learning Disability 18 - 64,3rd Party Payments,Supported Lodgings (Childrens)/Supported Living (Adults),COMMUNITY ACCESS NETWORK LTD,SN25,20/12/2023,560.00
118012233,Learning Disabilities,Adults,Learning Disability 18 - 64,3rd Party Payments,Supported Lodgings (Childrens)/Supported Living (Adults),COMMUNITY ACCESS NETWORK LTD,SN25,20/12/2023,27.76
118012233,Learning Disabilities,Adults,Learning Disability 18 - 64,Income,Client Contribution - Supported Living,COMMUNITY ACCESS NETWORK LTD,SN25,20/12/2023,-37.84
118012233,Learning Disabilities,Adults,Learning Disability 18 - 64,Income,Client Contribution - Supported Living,COMMUNITY ACCESS NETWORK LTD,SN25,20/12/2023,-0.68
118012233,Learning Disabilities,Adults,Learning Disability 18 - 64,Income,Client Contribution - Supported Living,COMMUNITY ACCESS NETWORK LTD,SN25,20/12/2023,-103.68
118012233,Learning Disabilities,Adults,Learning Disability 18 - 64,Income,Client Contribution - Supported Living,COMMUNITY ACCESS NETWORK LTD,SN25,20/12/2023,-0.60
117508247,Learning Disabilities,Adults,Learning Disability 18 - 64,3rd Party Payments,Residential Care,COMMUNITY ACCESS NETWORK LTD,SN25,18/12/2023,"7,036.52"
116368233,Social Care,Children & Families,Children's Resource and Home Finding Team,3rd Party Payments,Independent Fostering Agency Placements,COMMUNITY FOSTER CARE,GL1 ,06/12/2023,"10,416.62"
116366233,Social Care,Children & Families,Children's Resource and Home Finding Team,3rd Party Payments,Independent Fostering Agency Placements,COMMUNITY FOSTER CARE,GL1 ,06/12/2023,"4,058.21"
116367233,Social Care,Children & Families,Children's Resource and Home Finding Team,3rd Party Payments,Independent Fostering Agency Placements,COMMUNITY FOSTER CARE,GL1 ,06/12/2023,"3,927.30"
116369233,Social Care,Children & Families,Children's Resource and Home Finding Team,3rd Party Payments,Independent Fostering Agency Placements,COMMUNITY FOSTER CARE,GL1 ,06/12/2023,"10,080.60"
117508292,Learning Disabilities,Adults,Learning Disability 18 - 64,3rd Party Payments,Residential Care,COMMUNITY THERAPEUTIC SERVICES LTD,BS22,18/12/2023,"12,423.92"
118191233,Social Care,Children & Families,Children's Resource and Home Finding Team,3rd Party Payments,Residential Care,COMPASS CHILDREN'S HOMES LTD,LE7 ,20/12/2023,"21,157.50"
116046257,Social Care,Children & Families,Children's Resource and Home Finding Team,3rd Party Payments,Residential Care,COMPASS CHILDREN'S HOMES LTD,LE7 ,04/12/2023,"20,475.00"
118192233,Social Care,Children & Families,Children's Resource and Home Finding Team,3rd Party Payments,Residential Care,COMPASS CHILDREN'S HOMES LTD,LE7 ,20/12/2023,"31,276.83"
116046251,Social Care,Children & Families,Children's Resource and Home Finding Team,3rd Party Payments,Independent Fostering Agency Placements,COMPASS FOSTERING WEST LTD,LE7 ,04/12/2023,"5,822.73"
116046238,Social Care,Children & Families,Children's Resource and Home Finding Team,3rd Party Payments,Independent Fostering Agency Placements,COMPASS FOSTERING WEST LTD,LE7 ,04/12/2023,"-2,684.33"
116046237,Social Care,Children & Families,Children's Resource and Home Finding Team,3rd Party Payments,Independent Fostering Agency Placements,COMPASS FOSTERING WEST LTD,LE7 ,04/12/2023,"3,618.01"
116046253,Social Care,Children & Families,Children's Resource and Home Finding Team,3rd Party Payments,Independent Fostering Agency Placements,COMPASS FOSTERING WEST LTD,LE7 ,04/12/2023,"6,016.17"
116046246,Social Care,Children & Families,Children's Resource and Home Finding Team,3rd Party Payments,Independent Fostering Agency Placements,COMPASS FOSTERING WEST LTD,LE7 ,04/12/2023,"3,666.60"
116046241,Social Care,Children & Families,Children's Resource and Home Finding Team,3rd Party Payments,Independent Fostering Agency Placements,COMPASS FOSTERING WEST LTD,LE7 ,04/12/2023,"3,222.45"
116046248,Social Care,Children & Families,Children's Resource and Home Finding Team,3rd Party Payments,Independent Fostering Agency Placements,COMPASS FOSTERING WEST LTD,LE7 ,04/12/2023,"3,501.30"
116046234,Social Care,Children & Families,Placement - Care Leaver Team,3rd Party Payments,Staying Put,COMPASS FOSTERING WEST LTD,LE7 ,04/12/2023,"2,137.50"
116046244,Social Care,Children & Families,Children's Resource and Home Finding Team,3rd Party Payments,Independent Fostering Agency Placements,COMPASS FOSTERING WEST LTD,LE7 ,04/12/2023,"3,341.10"
116046249,Social Care,Children & Families,Children's Resource and Home Finding Team,3rd Party Payments,Independent Fostering Agency Placements,COMPASS FOSTERING WEST LTD,LE7 ,04/12/2023,"3,401.63"
116046247,Social Care,Children & Families,Children's Resource and Home Finding Team,3rd Party Payments,Independent Fostering Agency Placements,COMPASS FOSTERING WEST LTD,LE7 ,04/12/2023,"3,618.01"
116046233,Social Care,Children & Families,Placement - Care Leaver Team,3rd Party Payments,Staying Put,COMPASS FOSTERING WEST LTD,LE7 ,04/12/2023,"2,208.75"
116046256,Social Care,Children & Families,Children's Resource and Home Finding Team,3rd Party Payments,Independent Fostering Agency Placements,COMPASS FOSTERING WEST LTD,LE7 ,04/12/2023,"3,728.70"
116046245,Social Care,Children & Families,Children's Resource and Home Finding Team,3rd Party Payments,Independent Fostering Agency Placements,COMPASS FOSTERING WEST LTD,LE7 ,04/12/2023,"3,788.82"
116046235,Social Care,Children & Families,Children's Resource and Home Finding Team,3rd Party Payments,Independent Fostering Agency Placements,COMPASS FOSTERING WEST LTD,LE7 ,04/12/2023,"3,401.63"
116046254,Social Care,Children & Families,Children's Resource and Home Finding Team,3rd Party Payments,Independent Fostering Agency Placements,COMPASS FOSTERING WEST LTD,LE7 ,04/12/2023,"5,822.10"
116046239,Social Care,Children & Families,Children's Resource and Home Finding Team,3rd Party Payments,Independent Fostering Agency Placements,COMPASS FOSTERING WEST LTD,LE7 ,04/12/2023,"3,222.45"
116046243,Social Care,Children & Families,Children's Resource and Home Finding Team,3rd Party Payments,Independent Fostering Agency Placements,COMPASS FOSTERING WEST LTD,LE7 ,04/12/2023,"3,452.47"
116046240,Social Care,Children & Families,Children's Resource and Home Finding Team,3rd Party Payments,Independent Fostering Agency Placements,COMPASS FOSTERING WEST LTD,LE7 ,04/12/2023,"3,118.50"
116046252,Social Care,Children & Families,Children's Resource and Home Finding Team,3rd Party Payments,Independent Fostering Agency Placements,COMPASS FOSTERING WEST LTD,LE7 ,04/12/2023,"5,634.90"
116046255,Social Care,Children & Families,Children's Resource and Home Finding Team,3rd Party Payments,Independent Fostering Agency Placements,COMPASS FOSTERING WEST LTD,LE7 ,04/12/2023,"3,852.99"
116046236,Social Care,Children & Families,Children's Resource and Home Finding Team,3rd Party Payments,Independent Fostering Agency Placements,COMPASS FOSTERING WEST LTD,LE7 ,04/12/2023,"3,291.90"
116046250,Social Care,Children & Families,Children's Resource and Home Finding Team,3rd Party Payments,Independent Fostering Agency Placements,COMPASS FOSTERING WEST LTD,LE7 ,04/12/2023,"3,291.90"
116046242,Social Care,Children & Families,Children's Resource and Home Finding Team,3rd Party Payments,Independent Fostering Agency Placements,COMPASS FOSTERING WEST LTD,LE7 ,04/12/2023,"3,118.50"
118089329,Learning Disabilities,Adults,Learning Disability 18 - 64,Income,Client Contribution - Personal Budget - DP,REDACTED PERSONAL DATA,GL2 ,20/12/2023,-68.32
118089329,Learning Disabilities,Adults,Learning Disability 18 - 64,Income,Client Contribution - Personal Budget - DP,REDACTED PERSONAL DATA,GL2 ,20/12/2023,-0.48
118089329,Learning Disabilities,Adults,Learning Disability 18 - 64,Transfer Payments,Personal Budget - Direct Payments - Other,REDACTED PERSONAL DATA,GL2 ,20/12/2023,"4,560.00"
118089329,Learning Disabilities,Adults,Learning Disability 18 - 64,Transfer Payments,Personal Budget - Direct Payments - Other,REDACTED PERSONAL DATA,GL2 ,20/12/2023,32.32
116742243,Responsive Repairs,Repairs,Responsive Repairs,3rd Party Payments,Contract Payments,REDACTED PERSONAL DATA,SN2 ,13/12/2023,"2,800.00"
118825233,Responsive Repairs,Repairs,Responsive Repairs,3rd Party Payments,Contract Payments,REDACTED PERSONAL DATA,SN2 ,28/12/2023,"1,300.00"
118822233,Responsive Repairs,Repairs,Responsive Repairs,3rd Party Payments,Contract Payments,REDACTED PERSONAL DATA,SN2 ,28/12/2023,"1,600.00"
118822233,Responsive Repairs,Repairs,Responsive Repairs,3rd Party Payments,Contract Payments,REDACTED PERSONAL DATA,SN2 ,28/12/2023,"2,200.00"
118826233,Responsive Repairs,Repairs,Responsive Repairs,3rd Party Payments,Contract Payments,REDACTED PERSONAL DATA,SN2 ,28/12/2023,350.00
116742244,Responsive Repairs,Repairs,Responsive Repairs,3rd Party Payments,Contract Payments,REDACTED PERSONAL DATA,SN2 ,13/12/2023,"1,200.00"
118826233,Responsive Repairs,Repairs,Responsive Repairs,3rd Party Payments,Contract Payments,REDACTED PERSONAL DATA,SN2 ,28/12/2023,600.00
118827233,Responsive Repairs,Repairs,Responsive Repairs,3rd Party Payments,Contract Payments,REDACTED PERSONAL DATA,SN2 ,28/12/2023,"1,100.00"
118821233,Responsive Repairs,Repairs,Responsive Repairs,3rd Party Payments,Contract Payments,REDACTED PERSONAL DATA,SN2 ,28/12/2023,400.00
118821233,Responsive Repairs,Repairs,Responsive Repairs,3rd Party Payments,Contract Payments,REDACTED PERSONAL DATA,SN2 ,28/12/2023,650.00
118994233,Responsive Repairs,Repairs,Responsive Repairs,3rd Party Payments,Contract Payments,REDACTED PERSONAL DATA,SN2 ,28/12/2023,"1,200.00"
116742244,Responsive Repairs,Repairs,Responsive Repairs,3rd Party Payments,Contract Payments,REDACTED PERSONAL DATA,SN2 ,13/12/2023,"2,800.00"
118824233,Responsive Repairs,Repairs,Responsive Repairs,3rd Party Payments,Contract Payments,REDACTED PERSONAL DATA,SN2 ,28/12/2023,600.00
118825233,Responsive Repairs,Repairs,Responsive Repairs,3rd Party Payments,Contract Payments,REDACTED PERSONAL DATA,SN2 ,28/12/2023,950.00
118994233,Responsive Repairs,Repairs,Responsive Repairs,3rd Party Payments,Contract Payments,REDACTED PERSONAL DATA,SN2 ,28/12/2023,"2,300.00"
118630233,Responsive Repairs,Repairs,Responsive Repairs,3rd Party Payments,Contract Payments,REDACTED PERSONAL DATA,SN2 ,22/12/2023,600.00
118824233,Responsive Repairs,Repairs,Responsive Repairs,3rd Party Payments,Contract Payments,REDACTED PERSONAL DATA,SN2 ,28/12/2023,400.00
118827233,Responsive Repairs,Repairs,Responsive Repairs,3rd Party Payments,Contract Payments,REDACTED PERSONAL DATA,SN2 ,28/12/2023,400.00
116752233,Streetsmart,Streetsmart,Waste - Disposal,Supplies and Services,Materials,CORGIN LTD,ST16,13/12/2023,764.00
116134257,Social Care,Children & Families,Placement Adoption Service,3rd Party Payments,Adoption Allowances,REDACTED PERSONAL DATA,BA15,04/12/2023,860.00
117508266,Learning Disabilities,Adults,Learning Disability 18 - 64,3rd Party Payments,Residential Care,CORNERSTONES UK LTD,SN9 ,18/12/2023,"7,337.52"
117508266,Learning Disabilities,Adults,Learning Disability 18 - 64,Income,Client Contribution - Residential,CORNERSTONES UK LTD,SN9 ,18/12/2023,-438.80
117508266,Learning Disabilities,Adults,Learning Disability 18 - 64,Income,Client Contribution - Residential,CORNERSTONES UK LTD,SN9 ,18/12/2023,-483.20
117508266,Learning Disabilities,Adults,Learning Disability 18 - 64,Income,Client Contribution - Residential,CORNERSTONES UK LTD,SN9 ,18/12/2023,-487.80
117508266,Learning Disabilities,Adults,Learning Disability 18 - 64,Income,Client Contribution - Residential,CORNERSTONES UK LTD,SN9 ,18/12/2023,-381.00
117508266,Learning Disabilities,Adults,Learning Disability 18 - 64,3rd Party Payments,Residential Care,CORNERSTONES UK LTD,SN9 ,18/12/2023,"9,501.40"
117508266,Learning Disabilities,Adults,Learning Disability 18 - 64,3rd Party Payments,Residential Care,CORNERSTONES UK LTD,SN9 ,18/12/2023,"8,650.40"
117508266,Learning Disabilities,Adults,Learning Disability 18 - 64,3rd Party Payments,Residential Care,CORNERSTONES UK LTD,SN9 ,18/12/2023,"6,626.24"
117508266,Learning Disabilities,Adults,Learning Disability 18 - 64,3rd Party Payments,Residential Care,CORNERSTONES UK LTD,SN9 ,18/12/2023,"8,465.28"
117508266,Learning Disabilities,Adults,Learning Disability 18 - 64,Income,Client Contribution - Residential,CORNERSTONES UK LTD,SN9 ,18/12/2023,-423.00
118439233,Streetsmart,Streetsmart,Waterside Fleet Hires,Transport Costs,Vehicle Hire / Contract,COTSWOLD RECYCLING COMPANY LTD,GL12,22/12/2023,"2,375.00"
118437233,Streetsmart,Streetsmart,Waterside Fleet Hires,Transport Costs,Vehicle Hire / Contract,COTSWOLD RECYCLING COMPANY LTD,GL12,22/12/2023,"1,900.00"
118438234,Streetsmart,Streetsmart,Waterside Fleet Hires,Transport Costs,Vehicle Hire / Contract,COTSWOLD RECYCLING COMPANY LTD,GL12,22/12/2023,"1,900.00"
118789233,Streetsmart,Streetsmart,Waste - Processing,Supplies and Services,Services,COTSWOLD RECYCLING COMPANY LTD,GL12,28/12/2023,"7,480.00"
117957233,Streetsmart,Streetsmart,StreetSmart Contracts & Strategic Planning,Supplies and Services,Services,COTSWOLD RECYCLING COMPANY LTD,GL12,20/12/2023,"7,000.00"
118440233,Streetsmart,Streetsmart,Waterside Fleet Hires,Transport Costs,Vehicle Hire / Contract,COTSWOLD RECYCLING COMPANY LTD,GL12,22/12/2023,"2,375.00"
115748233,Homelessness and Travellers,Housing Services,Homelessness Prevention,Transfer Payments,Payment of Costs,REDACTED PERSONAL DATA,OX28,01/12/2023,"1,116.00"
118149233,Learning Disabilities,Adults,Learning Disability 18 - 64,Transfer Payments,Personal Budget - Direct Payments - Domiciliary Care,REDACTED PERSONAL DATA,SP11,20/12/2023,37.76
118149233,Learning Disabilities,Adults,Learning Disability 18 - 64,Transfer Payments,Personal Budget - Direct Payments - Domiciliary Care,REDACTED PERSONAL DATA,SP11,20/12/2023,"1,302.40"
118149233,Learning Disabilities,Adults,Learning Disability 18 - 64,Income,Client Contribution - Personal Budget - DP,REDACTED PERSONAL DATA,SP11,20/12/2023,-38.52
118149233,Learning Disabilities,Adults,Learning Disability 18 - 64,Transfer Payments,Personal Budget - Direct Payments - Domiciliary Care,REDACTED PERSONAL DATA,SP11,20/12/2023,82.00
118149233,Learning Disabilities,Adults,Learning Disability 18 - 64,Income,Client Contribution - Personal Budget - DP,REDACTED PERSONAL DATA,SP11,20/12/2023,-3.52
118149233,Learning Disabilities,Adults,Learning Disability 18 - 64,Income,Client Contribution - Personal Budget - DP,REDACTED PERSONAL DATA,SP11,20/12/2023,-7.68
118149233,Learning Disabilities,Adults,Learning Disability 18 - 64,Transfer Payments,Personal Budget - Direct Payments - Domiciliary Care,REDACTED PERSONAL DATA,SP11,20/12/2023,410.88
118149233,Learning Disabilities,Adults,Learning Disability 18 - 64,Income,Client Contribution - Personal Budget - DP,REDACTED PERSONAL DATA,SP11,20/12/2023,-122.00
118185233,Streetsmart,Streetsmart,Waste - Processing,Supplies and Services,Repairs & Maintenance,COVEYA LTD,BS30,20/12/2023,"1,201.20"
118002233,Early Years Block,Dedicated Schools Grant (DSG),Free Nursery Education Commissioning - three & four  year olds,3rd Party Payments,Contracts - Child Care,COVINGHAM KINGFISHER PRE-SCHOOL,SN3 ,20/12/2023,858.92
117003298,Early Years Block,Dedicated Schools Grant (DSG),Free Nursery Education Commissioning - three & four  year olds,3rd Party Payments,Contracts - Child Care,COVINGHAM KINGFISHER PRE-SCHOOL,SN3 ,13/12/2023,"3,232.68"
117972256,Early Years Block,Dedicated Schools Grant (DSG),Free Nursery Education Commissioning - three & four  year olds,3rd Party Payments,Contracts - Child Care,COVINGHAM KINGFISHER PRE-SCHOOL,SN3 ,20/12/2023,"2,280.00"
117201261,High Needs Block,Dedicated Schools Grant (DSG),SEN Resourcing Assessment Panel,3rd Party Payments,Top up funding - Maintained providers Pre 16,COVINGHAM PARK PRIMARY SCHOOL,SN3 ,15/12/2023,"4,247.92"
117003301,Early Years Block,Dedicated Schools Grant (DSG),Free Nursery Education Commissioning - three & four  year olds,3rd Party Payments,Contracts - Child Care,COVINGHAM ROUNDABOUT PLAYGROUP,SN3 ,13/12/2023,"9,841.26"
117972243,Early Years Block,Dedicated Schools Grant (DSG),Free Nursery Education Commissioning - three & four  year olds,3rd Party Payments,Contracts - Child Care,COVINGHAM ROUNDABOUT PLAYGROUP,SN3 ,20/12/2023,"2,280.00"
117003300,Early Years Block,Dedicated Schools Grant (DSG),Free Nursery Education Commissioning - three & four  year olds,3rd Party Payments,Contracts - Child Care,COVINGHAM ROUNDABOUT PLAYGROUP,SN3 ,13/12/2023,"1,188.00"
117513246,Physical Support,Adults,Physical Support 65 and over,Income,Client Contribution - Residential,COXWELL HALL AND MEWS NURSING HOME,TW20,18/12/2023,-610.00
117513246,Physical Support,Adults,Physical Support 65 and over,3rd Party Payments,Residential Care,COXWELL HALL AND MEWS NURSING HOME,TW20,18/12/2023,"6,000.00"
117513246,Memory & Cognition,Adults,Support for Memory and Cognition 65 and over,3rd Party Payments,Residential Care,COXWELL HALL AND MEWS NURSING HOME,TW20,18/12/2023,"5,968.24"
117513246,Physical Support,Adults,Physical Support 65 and over,3rd Party Payments,Residential Care,COXWELL HALL AND MEWS NURSING HOME,TW20,18/12/2023,"6,480.00"
117508252,Learning Disabilities,Adults,Learning Disability 18 - 64,3rd Party Payments,Residential Care,CRAEGMOOR HEALTHCARE,BA14,18/12/2023,"9,158.28"
117508252,Learning Disabilities,Adults,Learning Disability 18 - 64,Income,Client Contribution - Residential,CRAEGMOOR HEALTHCARE,BA14,18/12/2023,-483.20
116267233,Streetsmart,Streetsmart,Waste - Disposal,3rd Party Payments,Contract Payments,CRAPPER & SONS LANDFILL LTD,SN4 ,06/12/2023,"1,688.94"
116478233,Streetsmart,Streetsmart,Waste - Disposal,3rd Party Payments,Contract Payments,CRAPPER & SONS LANDFILL LTD,SN4 ,08/12/2023,834.60
116268233,Streetsmart,Streetsmart,Waste - Disposal,3rd Party Payments,Contract Payments,CRAPPER & SONS LANDFILL LTD,SN4 ,06/12/2023,"6,205.64"
116034233,Streetsmart,Streetsmart,StreetSmart Contracts & Strategic Planning,3rd Party Payments,Contract Payments,CRAPPER & SONS LANDFILL LTD,SN4 ,01/12/2023,"3,808.00"
117051234,Streetsmart,Streetsmart,Waste - Disposal,3rd Party Payments,Contract Payments,CRAPPER & SONS LANDFILL LTD,SN4 ,13/12/2023,855.40
116477233,Streetsmart,Streetsmart,Waste - Disposal,3rd Party Payments,Contract Payments,CRAPPER & SONS LANDFILL LTD,SN4 ,08/12/2023,613.60
116620233,Streetsmart,Streetsmart,Waste - Disposal,3rd Party Payments,Contract Payments,CRAPPER & SONS LANDFILL LTD,SN4 ,08/12/2023,613.60
117049233,Streetsmart,Streetsmart,Waste - Disposal,3rd Party Payments,Contract Payments,CRAPPER & SONS LANDFILL LTD,SN4 ,13/12/2023,860.60
116474233,Streetsmart,Streetsmart,Waste - Disposal,3rd Party Payments,Contract Payments,CRAPPER & SONS LANDFILL LTD,SN4 ,08/12/2023,631.80
117050233,Streetsmart,Streetsmart,Waste - Disposal,3rd Party Payments,Contract Payments,CRAPPER & SONS LANDFILL LTD,SN4 ,13/12/2023,993.20
116035233,Streetsmart,Streetsmart,StreetSmart Contracts & Strategic Planning,3rd Party Payments,Contract Payments,CRAPPER & SONS LANDFILL LTD,SN4 ,01/12/2023,"1,624.00"
116033233,Streetsmart,Streetsmart,StreetSmart Contracts & Strategic Planning,3rd Party Payments,Contract Payments,CRAPPER & SONS LANDFILL LTD,SN4 ,01/12/2023,"2,648.80"
116266233,Streetsmart,Streetsmart,Waste - Disposal,3rd Party Payments,Contract Payments,CRAPPER & SONS LANDFILL LTD,SN4 ,06/12/2023,"2,938.34"
116269233,Streetsmart,Streetsmart,Waste - Disposal,3rd Party Payments,Contract Payments,CRAPPER & SONS LANDFILL LTD,SN4 ,06/12/2023,"1,121.80"
117051233,Streetsmart,Streetsmart,Waste - Disposal,3rd Party Payments,Contract Payments,CRAPPER & SONS LANDFILL LTD,SN4 ,13/12/2023,598.00
116470233,Streetsmart,Streetsmart,Waste - Disposal,3rd Party Payments,Contract Payments,CRAPPER & SONS LANDFILL LTD,SN4 ,08/12/2023,910.00
117052233,Streetsmart,Streetsmart,Waste - Disposal,3rd Party Payments,Contract Payments,CRAPPER & SONS LANDFILL LTD,SN4 ,13/12/2023,"2,592.20"
116618233,"Data, Performance and Insight",Digital & Business Change,"Performance, Intelligence and Insight",Supplies and Services,Services,CRAYON DRAGONS LTD,SL6 ,08/12/2023,"11,750.00"
119048233,Community Health & Wellbeing,Public Health,Community Health and Wellbeing Management,Supplies and Services,Services,CREATE STUDIOS DIGITAL MEDIA LTD,SN1 ,28/12/2023,"1,000.00"
118396234,Town Centre,"Economy, Growth and Place",Economic Development,Supplies and Services,Publicity,CREATE STUDIOS DIGITAL MEDIA LTD,SN1 ,22/12/2023,500.00
116341233,Heritage,Culture,SMAG relocation,Capital,Contractor Payments,CREATIVE CONSTRUCTION SOUTH WEST LTD,BS48,06/12/2023,"71,185.08"
117996233,Physical Support,Adults,Fessey House,Supplies and Services,Food,CREED CATERING SUPPLIES LTD,GL51,20/12/2023,168.98
117006233,Physical Support,Adults,Fessey House,Supplies and Services,Food,CREED CATERING SUPPLIES LTD,GL51,13/12/2023,111.48
117996233,Physical Support,Adults,Fessey House,Supplies and Services,Food,CREED CATERING SUPPLIES LTD,GL51,20/12/2023,592.82
115976233,Physical Support,Adults,Fessey House,Supplies and Services,Food,CREED CATERING SUPPLIES LTD,GL51,01/12/2023,79.37
117006233,Physical Support,Adults,Fessey House,Supplies and Services,Food,CREED CATERING SUPPLIES LTD,GL51,13/12/2023,650.71
115976233,Physical Support,Adults,Fessey House,Supplies and Services,Food,CREED CATERING SUPPLIES LTD,GL51,01/12/2023,581.71
118554233,Organisational Resilience,"People, Culture and Organisational Resilience",Security,Employees,Casual Staff - Basic,CROCSEC LIMITED,SN25,22/12/2023,"7,293.00"
117003302,Early Years Block,Dedicated Schools Grant (DSG),Free Nursery Education Commissioning - two year olds,3rd Party Payments,Contracts - Child Care,CROFT PLAYGROUP,SN3 ,13/12/2023,694.80
117003304,Early Years Block,Dedicated Schools Grant (DSG),Free Nursery Education Commissioning - three & four  year olds,3rd Party Payments,Contracts - Child Care,CROFT PLAYGROUP,SN3 ,13/12/2023,"18,849.49"
117003303,Early Years Block,Dedicated Schools Grant (DSG),Free Nursery Education Commissioning - three & four  year olds,3rd Party Payments,Contracts - Child Care,CROFT PLAYGROUP,SN3 ,13/12/2023,842.40
117972238,Early Years Block,Dedicated Schools Grant (DSG),Free Nursery Education Commissioning - three & four  year olds,3rd Party Payments,Contracts - Child Care,CROFT PLAYGROUP,SN3 ,20/12/2023,"2,280.00"
118986233,Licencing,Regulatory Services,Taxis & Private Hire,Supplies and Services,Testing / Inspection,CROSS STREET GARAGE (SWINDON) LTD,SN1 ,28/12/2023,"1,155.00"
118072233,School Transport,"Education, Inclusion and Skills",Special Educational Needs Transport,Transport Costs,Home to School Transport,CROSS STREET RADIO CARS,SN1 ,20/12/2023,"3,300.00"
118073233,School Transport,"Education, Inclusion and Skills",Special Educational Needs Transport,Transport Costs,Home to School Transport,CROSS STREET RADIO CARS,SN1 ,20/12/2023,"2,730.00"
117105233,School Transport,"Education, Inclusion and Skills",Special Educational Needs Transport,Transport Costs,Home to School Transport,CROSS STREET RADIO CARS,SN1 ,15/12/2023,"2,405.00"
118071233,School Transport,"Education, Inclusion and Skills",Special Educational Needs Transport,Transport Costs,Home to School Transport,CROSS STREET RADIO CARS,SN1 ,20/12/2023,"3,740.00"
117201284,High Needs Block,Dedicated Schools Grant (DSG),SEN Resourcing Assessment Panel,3rd Party Payments,Top up funding - Maintained providers Post 16,CROWDYS HILL SCHOOL,SN2 ,15/12/2023,"79,410.51"
117215241,High Needs Block,Dedicated Schools Grant (DSG),Special School Place,3rd Party Payments,HNB- Place Funding post 16,CROWDYS HILL SCHOOL,SN2 ,15/12/2023,"38,333.00"
117201280,High Needs Block,Dedicated Schools Grant (DSG),SEN Resourcing Assessment Panel,3rd Party Payments,Top up funding - Maintained providers Pre 16,CROWDYS HILL SCHOOL,SN2 ,15/12/2023,"25,095.00"
117201278,High Needs Block,Dedicated Schools Grant (DSG),SEN Resourcing Assessment Panel,3rd Party Payments,Top up funding - Maintained providers Pre 16,CROWDYS HILL SCHOOL,SN2 ,15/12/2023,"71,343.31"
117216255,DSG Other Funding,Dedicated Schools Grant (DSG),DFE Additional Grants,3rd Party Payments,Payment of Pupil Premium to school,CROWDYS HILL SCHOOL,SN2 ,15/12/2023,"10,281.00"
117215242,High Needs Block,Dedicated Schools Grant (DSG),Special School Place,3rd Party Payments,HNB- Place Funding pre 16,CROWDYS HILL SCHOOL,SN2 ,15/12/2023,"170,000.00"
117201279,High Needs Block,Dedicated Schools Grant (DSG),SEN Resourcing Assessment Panel,3rd Party Payments,Top up funding - Maintained providers Pre 16,CROWDYS HILL SCHOOL,SN2 ,15/12/2023,"154,271.07"
116353233,Physical Support,Adults,Physical Support 65 and over,3rd Party Payments,Personal Budget - Domiciliary care,CRYSTAL CARING LIMITED,SN2 ,06/12/2023,"1,474.56"
116353233,Physical Support,Adults,Physical Support 65 and over,3rd Party Payments,Personal Budget - Domiciliary care,CRYSTAL CARING LIMITED,SN2 ,06/12/2023,"2,903.04"
118547233,Other Repairs,Repairs,Unallocated job costs from OPEN system,Premises Costs,Repairs - Buildings,CRYSTAL ELECTRONICS LTD,NN6 ,22/12/2023,"3,273.23"
Corporate Card Transaction,Community Health & Wellbeing,Public Health,Community Health and Wellbeing Management,Supplies and Services,Food,Cs* Tesco Stores Gc,,20/12/2023,1950
Corporate Card Transaction,Homelessness and Travellers,Housing Services,Warm Welcome Project,Supplies and Services,Equipment,Currys Online,,29/11/2023,673.33
117003307,Early Years Block,Dedicated Schools Grant (DSG),Free Nursery Education Commissioning - three & four  year olds,3rd Party Payments,Contracts - Child Care,CURIOUS LEARNERS CHILDCARE LTD,SN5 ,13/12/2023,"3,076.50"
117003305,Early Years Block,Dedicated Schools Grant (DSG),Free Nursery Education Commissioning - two year olds,3rd Party Payments,Contracts - Child Care,CURIOUS LEARNERS CHILDCARE LTD,SN5 ,13/12/2023,"2,663.40"
118089234,Physical Support,Adults,Physical Support 18 - 64,Income,Client Contribution - Personal Budget - DP,REDACTED PERSONAL DATA,SN25,20/12/2023,-58.88
118089234,Physical Support,Adults,Physical Support 18 - 64,Income,Client Contribution - Personal Budget - DP,REDACTED PERSONAL DATA,SN25,20/12/2023,-88.16
118089234,Physical Support,Adults,Physical Support 18 - 64,Income,Client Contribution - Personal Budget - DP,REDACTED PERSONAL DATA,SN25,20/12/2023,-8.12
118089234,Physical Support,Adults,Physical Support 18 - 64,Transfer Payments,Personal Budget - Direct Payments - Domiciliary Care,REDACTED PERSONAL DATA,SN25,20/12/2023,547.84
118089234,Physical Support,Adults,Physical Support 18 - 64,Transfer Payments,Personal Budget - Direct Payments - Domiciliary Care,REDACTED PERSONAL DATA,SN25,20/12/2023,"2,018.72"
118089234,Physical Support,Adults,Physical Support 18 - 64,Transfer Payments,Personal Budget - Direct Payments - Other,REDACTED PERSONAL DATA,SN25,20/12/2023,820.00
118089234,Physical Support,Adults,Physical Support 18 - 64,Income,Client Contribution - Personal Budget - DP,REDACTED PERSONAL DATA,SN25,20/12/2023,-217.00
118089234,Physical Support,Adults,Physical Support 18 - 64,Transfer Payments,Personal Budget - Direct Payments - Domiciliary Care,REDACTED PERSONAL DATA,SN25,20/12/2023,75.52
118110233,Physical Support,Adults,Physical Support 18 - 64,Transfer Payments,Personal Budget - Direct Payments - Domiciliary Care,REDACTED PERSONAL DATA,SP11,20/12/2023,"1,058.20"
118110233,Physical Support,Adults,Physical Support 18 - 64,Transfer Payments,Personal Budget - Direct Payments - Domiciliary Care,REDACTED PERSONAL DATA,SP11,20/12/2023,568.80
118110233,Physical Support,Adults,Physical Support 18 - 64,Transfer Payments,Personal Budget - Direct Payments - Domiciliary Care,REDACTED PERSONAL DATA,SP11,20/12/2023,547.84
118110233,Physical Support,Adults,Physical Support 18 - 64,Transfer Payments,Personal Budget - Direct Payments - Domiciliary Care,REDACTED PERSONAL DATA,SP11,20/12/2023,650.56
118110233,Physical Support,Adults,Physical Support 18 - 64,Transfer Payments,Personal Budget - Direct Payments - Domiciliary Care,REDACTED PERSONAL DATA,SP11,20/12/2023,198.32
118110233,Physical Support,Adults,Physical Support 18 - 64,Transfer Payments,Personal Budget - Direct Payments - Domiciliary Care,REDACTED PERSONAL DATA,SP11,20/12/2023,"1,302.40"
118110233,Physical Support,Adults,Physical Support 18 - 64,Transfer Payments,Personal Budget - Direct Payments - Domiciliary Care,REDACTED PERSONAL DATA,SP11,20/12/2023,201.71
118110233,Physical Support,Adults,Physical Support 18 - 64,Transfer Payments,Personal Budget - Direct Payments - Domiciliary Care,REDACTED PERSONAL DATA,SP11,20/12/2023,60.16
118110233,Physical Support,Adults,Physical Support 18 - 64,Transfer Payments,Personal Budget - Direct Payments - Domiciliary Care,REDACTED PERSONAL DATA,SP11,20/12/2023,252.34
118541233,Landscaping & Open Space,Culture & Heritage & Art,Changing places,Capital,Contractor Payments,DANFO (UK) LIMITED,FY2 ,22/12/2023,"29,400.00"
118543233,Heritage,Culture,Lydiard House and Park Improvements,Capital,Professional Fees,DANFO (UK) LIMITED,FY2 ,22/12/2023,"2,600.00"
118541233,Landscaping & Open Space,Culture & Heritage & Art,Changing places,Capital,Contractor Payments,DANFO (UK) LIMITED,FY2 ,22/12/2023,"3,800.00"
118543233,Heritage,Culture,Lydiard House and Park Improvements,Capital,Professional Fees,DANFO (UK) LIMITED,FY2 ,22/12/2023,"30,600.00"
118089284,Physical Support,Adults,Physical Support 18 - 64,Income,Client Contribution - Personal Budget - DP,REDACTED PERSONAL DATA,SN3 ,20/12/2023,-181.60
118089284,Physical Support,Adults,Physical Support 18 - 64,Transfer Payments,Personal Budget - Direct Payments - Domiciliary Care,REDACTED PERSONAL DATA,SN3 ,20/12/2023,"2,903.04"
118089304,Learning Disabilities,Adults,Learning Disability 18 - 64,Transfer Payments,Personal Budget - Direct Payments - Domiciliary Care,REDACTED PERSONAL DATA,SN2 ,20/12/2023,"2,148.40"
118089304,Learning Disabilities,Adults,Learning Disability 18 - 64,Income,Client Contribution - Personal Budget - DP,REDACTED PERSONAL DATA,SN2 ,20/12/2023,-32.84
118089304,Learning Disabilities,Adults,Learning Disability 18 - 64,Transfer Payments,Personal Budget - Direct Payments - Domiciliary Care,REDACTED PERSONAL DATA,SN2 ,20/12/2023,"1,172.16"
118089304,Learning Disabilities,Adults,Learning Disability 18 - 64,Income,Client Contribution - Personal Budget - DP,REDACTED PERSONAL DATA,SN2 ,20/12/2023,-12.48
118089304,Learning Disabilities,Adults,Learning Disability 18 - 64,Income,Client Contribution - Personal Budget - DP,REDACTED PERSONAL DATA,SN2 ,20/12/2023,-22.88
118089304,Learning Disabilities,Adults,Learning Disability 18 - 64,Transfer Payments,Personal Budget - Direct Payments - Domiciliary Care,REDACTED PERSONAL DATA,SN2 ,20/12/2023,"3,907.20"
118089304,Learning Disabilities,Adults,Learning Disability 18 - 64,Income,Client Contribution - Personal Budget - DP,REDACTED PERSONAL DATA,SN2 ,20/12/2023,-41.64
118089304,Learning Disabilities,Adults,Learning Disability 18 - 64,Transfer Payments,Personal Budget - Direct Payments - Domiciliary Care,REDACTED PERSONAL DATA,SN2 ,20/12/2023,"3,081.60"
119079233,Property Management,Property,Property Assets,Supplies and Services,Fees,DARKE & TAYLOR LIMITED,OX29,28/12/2023,"3,449.92"
118089291,Physical Support,Adults,Physical Support 18 - 64,Transfer Payments,Personal Budget - Direct Payments - Domiciliary Care,REDACTED PERSONAL DATA,SN2 ,20/12/2023,725.76
118089291,Physical Support,Adults,Physical Support 18 - 64,Income,Client Contribution - Personal Budget - DP,REDACTED PERSONAL DATA,SN2 ,20/12/2023,-95.72
118108234,Learning Disabilities,Adults,Learning Disability 18 - 64,Income,Client Contribution - Personal Budget - DP,REDACTED PERSONAL DATA,SP11,20/12/2023,-26.44
118108234,Learning Disabilities,Adults,Learning Disability 18 - 64,Income,Client Contribution - Personal Budget - DP,REDACTED PERSONAL DATA,SP11,20/12/2023,-71.00
118108234,Learning Disabilities,Adults,Learning Disability 18 - 64,Income,Client Contribution - Personal Budget - DP,REDACTED PERSONAL DATA,SP11,20/12/2023,-371.40
118108234,Learning Disabilities,Adults,Learning Disability 18 - 64,Income,Client Contribution - Personal Budget - DP,REDACTED PERSONAL DATA,SP11,20/12/2023,-138.36
118108234,Learning Disabilities,Adults,Learning Disability 18 - 64,Transfer Payments,Personal Budget - Direct Payments - Domiciliary Care,REDACTED PERSONAL DATA,SP11,20/12/2023,136.96
118108234,Learning Disabilities,Adults,Learning Disability 18 - 64,Transfer Payments,Personal Budget - Direct Payments - Domiciliary Care,REDACTED PERSONAL DATA,SP11,20/12/2023,716.32
117256237,Social Care,Children & Families,Placement Adoption Service,3rd Party Payments,Special Guardianship Orders,REDACTED PERSONAL DATA,B35 ,18/12/2023,"2,302.86"
117178233,Streetsmart,Streetsmart,Waterside Fleet Hires,Transport Costs,Vehicle Hire / Contract,DAWSONRENTLES SWEEPERS,HD6 ,15/12/2023,"2,259.53"
117177233,Streetsmart,Streetsmart,Waterside Fleet Hires,Transport Costs,Vehicle Hire / Contract,DAWSONRENTLES SWEEPERS,HD6 ,15/12/2023,"3,324.11"
117180233,Streetsmart,Streetsmart,Waterside Fleet Hires,Transport Costs,Vehicle Hire / Contract,DAWSONRENTLES SWEEPERS,HD6 ,15/12/2023,"2,954.77"
117179233,Streetsmart,Streetsmart,Waterside Fleet Hires,Transport Costs,Vehicle Hire / Contract,DAWSONRENTLES SWEEPERS,HD6 ,15/12/2023,"2,954.77"
117180234,Streetsmart,Streetsmart,Waterside Fleet Hires,Transport Costs,Vehicle Hire / Contract,DAWSONRENTLES SWEEPERS,HD6 ,15/12/2023,"2,976.49"
117167270,Social Care,Children & Families,Placement Adoption Service,3rd Party Payments,Special Guardianship Orders,REDACTED PERSONAL DATA,SN2 ,18/12/2023,"2,302.86"
117167269,Social Care,Children & Families,Placement Adoption Service,3rd Party Payments,Special Guardianship Orders,REDACTED PERSONAL DATA,SN2 ,18/12/2023,"2,302.86"
117737233,Social Care,Children & Families,Placement Fostering Service,3rd Party Payments,Foster Care Basic Payments,REDACTED PERSONAL DATA,SN5 ,18/12/2023,600.00
116131259,Social Care,Children & Families,Placement Fostering Service,3rd Party Payments,Carers Skills Payments - Advanced,REDACTED PERSONAL DATA,SN5 ,04/12/2023,370.00
116131259,Social Care,Children & Families,Placement Fostering Service,3rd Party Payments,Festival Payment,REDACTED PERSONAL DATA,SN5 ,04/12/2023,300.00
117737233,Social Care,Children & Families,Placement Fostering Service,3rd Party Payments,Carers Skills Payments - Advanced,REDACTED PERSONAL DATA,SN5 ,18/12/2023,370.00
116131259,Social Care,Children & Families,Placement Fostering Service,3rd Party Payments,Foster Care Basic Payments,REDACTED PERSONAL DATA,SN5 ,04/12/2023,600.00
116131259,Social Care,Children & Families,Placement Fostering Service,3rd Party Payments,Foster Care Additional Allowance,REDACTED PERSONAL DATA,SN5 ,04/12/2023,100.00
117737233,Social Care,Children & Families,Placement Fostering Service,3rd Party Payments,Foster Care Additional Allowance,REDACTED PERSONAL DATA,SN5 ,18/12/2023,100.00
117167248,Social Care,Children & Families,Placement Adoption Service,3rd Party Payments,Special Guardianship Orders,REDACTED PERSONAL DATA,SN3 ,18/12/2023,872.86
118384234,Homelessness and Travellers,Housing Services,Warm Welcome Project,Supplies and Services,Food,DELTA HOTELS BY MARRIOTT SWINDON,SN3 ,22/12/2023,"2,362.50"
116617234,Homelessness and Travellers,Housing Services,Warm Welcome Project,Supplies and Services,Food,DELTA HOTELS BY MARRIOTT SWINDON,SN3 ,08/12/2023,"3,792.67"
117447233,Homelessness and Travellers,Housing Services,Warm Welcome Project,Supplies and Services,Food,DELTA HOTELS BY MARRIOTT SWINDON,SN3 ,18/12/2023,"2,556.17"
115978233,Homelessness and Travellers,Housing Services,Warm Welcome Project,Supplies and Services,Food,DELTA HOTELS BY MARRIOTT SWINDON,SN3 ,01/12/2023,"4,119.00"
117003312,Early Years Block,Dedicated Schools Grant (DSG),Free Nursery Education Commissioning - three & four  year olds,3rd Party Payments,Contracts - Child Care,REDACTED PERSONAL DATA,SN5 ,13/12/2023,617.40
117242234,Learning Disabilities,Adults,Learning Disability 18 - 64,3rd Party Payments,Supported Accommodation Scheme,REDACTED PERSONAL DATA,SN2 ,20/12/2023,"2,278.45"
117242234,Learning Disabilities,Adults,Learning Disability 18 - 64,3rd Party Payments,Supported Accommodation Scheme,REDACTED PERSONAL DATA,SN2 ,20/12/2023,"2,690.95"
117242234,Learning Disabilities,Adults,Learning Disability 18 - 64,3rd Party Payments,Supported Accommodation Scheme,REDACTED PERSONAL DATA,SN2 ,20/12/2023,"1,850.00"
115724233,Town Centre,"Economy, Growth and Place",Towns Fund,Supplies and Services,Fees,REDACTED PERSONAL DATA,GL20,01/12/2023,"1,000.00"
116132236,Social Care,Children & Families,Placement Adoption Service,3rd Party Payments,Adoption Allowances,REDACTED PERSONAL DATA,CF44,04/12/2023,500.34
116742239,Responsive Repairs,Repairs,Responsive Repairs,3rd Party Payments,Contract Payments,DIMENSIONS GARAGE DOORS (SWINDON) LTD,SN3 ,13/12/2023,820.00
115887233,Responsive Repairs,Repairs,Responsive Repairs,3rd Party Payments,Contract Payments,DIMENSIONS GARAGE DOORS (SWINDON) LTD,SN3 ,01/12/2023,675.00
117201244,High Needs Block,Dedicated Schools Grant (DSG),SEN Resourcing Assessment Panel,Supplies and Services,Services,REDACTED PERSONAL DATA,SN25,15/12/2023,"1,317.92"
116735233,DSG Other Funding,Dedicated Schools Grant (DSG),LAC pupil premium,3rd Party Payments,Education / Training,DIRECTION FOR EDUCATION LIMITED,TA8 ,13/12/2023,624.00
115943235,DSG Other Funding,Dedicated Schools Grant (DSG),LAC pupil premium,3rd Party Payments,Education / Training,DIRECTION FOR EDUCATION LIMITED,TA8 ,01/12/2023,720.00
117513239,Physical Support,Adults,Physical Support 65 and over,3rd Party Payments,Nursing Care,DIVA CARE LIMITED,GL7 ,18/12/2023,"3,471.08"
117513239,Physical Support,Adults,Physical Support 65 and over,Income,Client Contribution - Nursing,DIVA CARE LIMITED,GL7 ,18/12/2023,-268.72
118767233,Social Care,Children & Families,Looked After Children Service,3rd Party Payments,Personal Needs,DNA WORLDWIDE GROUP,BA11,22/12/2023,738.00
118154267,Physical Support,Adults,Physical Support 18 - 64,Transfer Payments,Personal Budget - Direct Payments - Domiciliary Care,REDACTED PERSONAL DATA,SP11,20/12/2023,102.72
118154267,Physical Support,Adults,Physical Support 18 - 64,Transfer Payments,Personal Budget - Direct Payments - Domiciliary Care,REDACTED PERSONAL DATA,SP11,20/12/2023,"2,767.60"
118154267,Physical Support,Adults,Physical Support 18 - 64,Transfer Payments,Personal Budget - Direct Payments - Domiciliary Care,REDACTED PERSONAL DATA,SP11,20/12/2023,"1,623.68"
118154267,Physical Support,Adults,Physical Support 18 - 64,Transfer Payments,Personal Budget - Direct Payments - Domiciliary Care,REDACTED PERSONAL DATA,SP11,20/12/2023,16.40
117716233,Social Care,Children & Families,Placement Fostering Service,3rd Party Payments,Foster Care Basic Payments,REDACTED PERSONAL DATA,SN3 ,18/12/2023,600.00
116131233,Social Care,Children & Families,Placement Fostering Service,3rd Party Payments,Festival Payment,REDACTED PERSONAL DATA,SN3 ,04/12/2023,300.00
117716233,Social Care,Children & Families,Placement Fostering Service,3rd Party Payments,Carers Skills Payments - Advanced,REDACTED PERSONAL DATA,SN3 ,18/12/2023,370.00
116131233,Social Care,Children & Families,Placement Fostering Service,3rd Party Payments,Carers Skills Payments - Advanced,REDACTED PERSONAL DATA,SN3 ,04/12/2023,370.00
116131233,Social Care,Children & Families,Placement Fostering Service,3rd Party Payments,Foster Care Basic Payments,REDACTED PERSONAL DATA,SN3 ,04/12/2023,600.00
116131265,Social Care,Children & Families,Placement Fostering Service,3rd Party Payments,Carers Skills Payments - Core,REDACTED PERSONAL DATA,SN2 ,04/12/2023,216.00
116131265,Social Care,Children & Families,Placement Fostering Service,3rd Party Payments,Foster Care Basic Payments,REDACTED PERSONAL DATA,SN2 ,04/12/2023,600.00
117742233,Social Care,Children & Families,Placement Fostering Service,3rd Party Payments,Foster Care Basic Payments,REDACTED PERSONAL DATA,SN2 ,18/12/2023,600.00
116131265,Social Care,Children & Families,Placement Fostering Service,3rd Party Payments,Festival Payment,REDACTED PERSONAL DATA,SN2 ,04/12/2023,300.00
117742233,Social Care,Children & Families,Placement Fostering Service,3rd Party Payments,Carers Skills Payments - Core,REDACTED PERSONAL DATA,SN2 ,18/12/2023,216.00
117201322,High Needs Block,Dedicated Schools Grant (DSG),SEN Resourcing Assessment Panel,3rd Party Payments,Top up funding - Academies and Free Schools Pre 16,DORCAN ACADEMY,SN3 ,15/12/2023,"8,024.50"
118154344,Physical Support,Adults,Physical Support 18 - 64,Transfer Payments,Personal Budget - Direct Payments - Domiciliary Care,REDACTED PERSONAL DATA,SP11,20/12/2023,890.24
118154344,Physical Support,Adults,Physical Support 18 - 64,Transfer Payments,Personal Budget - Direct Payments - Domiciliary Care,REDACTED PERSONAL DATA,SP11,20/12/2023,586.08
118154344,Physical Support,Adults,Physical Support 18 - 64,Transfer Payments,Personal Budget - Direct Payments - Domiciliary Care,REDACTED PERSONAL DATA,SP11,20/12/2023,65.60
118511233,Streetsmart,Streetsmart,Waste - Processing,Transport Costs,Repairs & Maintenance - Vehicles,DOYLE MACHINERY LIMITED,SL6 ,22/12/2023,"7,952.50"
117052235,Streetsmart,Streetsmart,Waste - Processing,Transport Costs,Repairs & Maintenance - Vehicles,DOYLE MACHINERY LIMITED,SL6 ,13/12/2023,550.00
117995233,Streetsmart,Streetsmart,Waste - Processing,Transport Costs,Repairs & Maintenance - Vehicles,DOYLE MACHINERY LIMITED,SL6 ,20/12/2023,480.50
117344347,Homelessness and Travellers,Housing Services,Private Sector Landlords,Transfer Payments,Payment of Costs,REDACTED PERSONAL DATA,SN6 ,20/12/2023,800.00
117344372,Homelessness and Travellers,Housing Services,Private Sector Landlords,Transfer Payments,Payment of Costs,REDACTED PERSONAL DATA,SN6 ,20/12/2023,800.00
117813234,Property Service Charged Properties,Property,Service Charged - Kendrick Close,Premises Costs,Repairs - Grounds,DRAIN DEVELOPMENTS LTD,SN5 ,20/12/2023,850.00
117513236,Physical Support,Adults,Physical Support 18 - 64,3rd Party Payments,Nursing Care,DRUMMOND GRANGE NURSING HOME,EH18,18/12/2023,"6,603.00"
117245233,Learning Disabilities,Adults,Learning Disability 18 - 64,3rd Party Payments,Supported Accommodation Scheme,REDACTED PERSONAL DATA,SN25,20/12/2023,"2,850.00"
116502233,Learning Disabilities,Adults,Learning Disability 18 - 64,3rd Party Payments,Personal Budget - Domiciliary care,DYNAMIC SUPPORT LTD,SN25,08/12/2023,-56.96
116502233,Learning Disabilities,Adults,Learning Disability 18 - 64,3rd Party Payments,Personal Budget - Domiciliary care,DYNAMIC SUPPORT LTD,SN25,08/12/2023,-72.96
118029233,Learning Disabilities,Adults,Learning Disability 18 - 64,Income,Client Contribution - Supported Living,DYNAMIC SUPPORT LTD,SN25,20/12/2023,-181.28
118029233,Learning Disabilities,Adults,Learning Disability 18 - 64,Income,Client Contribution - Supported Living,DYNAMIC SUPPORT LTD,SN25,20/12/2023,-62.28
118029233,Learning Disabilities,Adults,Learning Disability 18 - 64,Income,Client Contribution - Supported Living,DYNAMIC SUPPORT LTD,SN25,20/12/2023,-7.20
118029233,Learning Disabilities,Adults,Learning Disability 18 - 64,Income,Client Contribution - Supported Living,DYNAMIC SUPPORT LTD,SN25,20/12/2023,-203.04
118029233,Learning Disabilities,Adults,Learning Disability 18 - 64,3rd Party Payments,Supported Lodgings (Childrens)/Supported Living (Adults),DYNAMIC SUPPORT LTD,SN25,20/12/2023,"1,390.40"
118029233,Learning Disabilities,Adults,Learning Disability 18 - 64,3rd Party Payments,Supported Lodgings (Childrens)/Supported Living (Adults),DYNAMIC SUPPORT LTD,SN25,20/12/2023,"1,002.60"
118029233,Learning Disabilities,Adults,Learning Disability 18 - 64,3rd Party Payments,Supported Lodgings (Childrens)/Supported Living (Adults),DYNAMIC SUPPORT LTD,SN25,20/12/2023,"1,720.00"
118029233,Learning Disabilities,Adults,Learning Disability 18 - 64,3rd Party Payments,Supported Lodgings (Childrens)/Supported Living (Adults),DYNAMIC SUPPORT LTD,SN25,20/12/2023,"2,080.00"
118029233,Learning Disabilities,Adults,Learning Disability 18 - 64,3rd Party Payments,Supported Lodgings (Childrens)/Supported Living (Adults),DYNAMIC SUPPORT LTD,SN25,20/12/2023,"4,240.00"
118029233,Learning Disabilities,Adults,Learning Disability 18 - 64,3rd Party Payments,Supported Lodgings (Childrens)/Supported Living (Adults),DYNAMIC SUPPORT LTD,SN25,20/12/2023,"8,080.00"
118029233,Learning Disabilities,Adults,Learning Disability 18 - 64,3rd Party Payments,Supported Lodgings (Childrens)/Supported Living (Adults),DYNAMIC SUPPORT LTD,SN25,20/12/2023,600.00
118029233,Mental Health,Adults,Mental Health 18-64,3rd Party Payments,Supported Lodgings (Childrens)/Supported Living (Adults),DYNAMIC SUPPORT LTD,SN25,20/12/2023,"9,303.00"
118029233,Learning Disabilities,Adults,Learning Disability 65 and over,3rd Party Payments,Supported Lodgings (Childrens)/Supported Living (Adults),DYNAMIC SUPPORT LTD,SN25,20/12/2023,"1,860.60"
118029233,Physical Support,Adults,Physical Support 18 - 64,3rd Party Payments,Supported Lodgings (Childrens)/Supported Living (Adults),DYNAMIC SUPPORT LTD,SN25,20/12/2023,"1,002.60"
116502233,Physical Support,Adults,Physical Support 18 - 64,3rd Party Payments,Personal Budget - Domiciliary care,DYNAMIC SUPPORT LTD,SN25,08/12/2023,368.64
118029233,Learning Disabilities,Adults,Learning Disability 18 - 64,Income,Client Contribution - Supported Living,DYNAMIC SUPPORT LTD,SN25,20/12/2023,-33.04
118029233,Learning Disabilities,Adults,Learning Disability 18 - 64,Income,Client Contribution - Supported Living,DYNAMIC SUPPORT LTD,SN25,20/12/2023,-17.28
118029233,Learning Disabilities,Adults,Learning Disability 18 - 64,3rd Party Payments,Supported Lodgings (Childrens)/Supported Living (Adults),DYNAMIC SUPPORT LTD,SN25,20/12/2023,480.00
118029233,Learning Disabilities,Adults,Learning Disability 18 - 64,3rd Party Payments,Supported Lodgings (Childrens)/Supported Living (Adults),DYNAMIC SUPPORT LTD,SN25,20/12/2023,"8,400.00"
118029233,Learning Disabilities,Adults,Learning Disability 18 - 64,3rd Party Payments,Supported Lodgings (Childrens)/Supported Living (Adults),DYNAMIC SUPPORT LTD,SN25,20/12/2023,"9,303.00"
118029233,Learning Disabilities,Adults,Learning Disability 18 - 64,3rd Party Payments,Supported Lodgings (Childrens)/Supported Living (Adults),DYNAMIC SUPPORT LTD,SN25,20/12/2023,138.08
118029233,Learning Disabilities,Adults,Learning Disability 18 - 64,3rd Party Payments,Supported Lodgings (Childrens)/Supported Living (Adults),DYNAMIC SUPPORT LTD,SN25,20/12/2023,751.96
118029233,Mental Health,Adults,Mental Health 18-64,3rd Party Payments,Supported Lodgings (Childrens)/Supported Living (Adults),DYNAMIC SUPPORT LTD,SN25,20/12/2023,"2,790.92"
118029233,Physical Support,Adults,Physical Support 18 - 64,3rd Party Payments,Supported Lodgings (Childrens)/Supported Living (Adults),DYNAMIC SUPPORT LTD,SN25,20/12/2023,622.44
116502233,Physical Support,Adults,Physical Support 18 - 64,3rd Party Payments,Personal Budget - Domiciliary care,DYNAMIC SUPPORT LTD,SN25,08/12/2023,-14.24
118029233,Learning Disabilities,Adults,Learning Disability 18 - 64,Income,Client Contribution - Supported Living,DYNAMIC SUPPORT LTD,SN25,20/12/2023,-90.24
118029233,Learning Disabilities,Adults,Learning Disability 18 - 64,Income,Client Contribution - Supported Living,DYNAMIC SUPPORT LTD,SN25,20/12/2023,-43.68
118029233,Learning Disabilities,Adults,Learning Disability 18 - 64,Income,Client Contribution - Supported Living,DYNAMIC SUPPORT LTD,SN25,20/12/2023,-86.68
118029233,Learning Disabilities,Adults,Learning Disability 18 - 64,3rd Party Payments,Supported Lodgings (Childrens)/Supported Living (Adults),DYNAMIC SUPPORT LTD,SN25,20/12/2023,"5,280.00"
118029233,Learning Disabilities,Adults,Learning Disability 18 - 64,3rd Party Payments,Supported Lodgings (Childrens)/Supported Living (Adults),DYNAMIC SUPPORT LTD,SN25,20/12/2023,"1,072.00"
118029233,Learning Disabilities,Adults,Learning Disability 18 - 64,3rd Party Payments,Supported Lodgings (Childrens)/Supported Living (Adults),DYNAMIC SUPPORT LTD,SN25,20/12/2023,"2,400.00"
118029233,Learning Disabilities,Adults,Learning Disability 18 - 64,3rd Party Payments,Supported Lodgings (Childrens)/Supported Living (Adults),DYNAMIC SUPPORT LTD,SN25,20/12/2023,"6,320.00"
116502233,Learning Disabilities,Adults,Learning Disability 18 - 64,3rd Party Payments,Personal Budget - Domiciliary care,DYNAMIC SUPPORT LTD,SN25,08/12/2023,552.96
118029233,Learning Disabilities,Adults,Learning Disability 65 and over,3rd Party Payments,Supported Lodgings (Childrens)/Supported Living (Adults),DYNAMIC SUPPORT LTD,SN25,20/12/2023,"3,007.76"
118029233,Physical Support,Adults,Physical Support 65 and over,3rd Party Payments,Supported Lodgings (Childrens)/Supported Living (Adults),DYNAMIC SUPPORT LTD,SN25,20/12/2023,"5,040.00"
118029233,Learning Disabilities,Adults,Learning Disability 18 - 64,Income,Client Contribution - Supported Living,DYNAMIC SUPPORT LTD,SN25,20/12/2023,-92.88
118029233,Learning Disabilities,Adults,Learning Disability 18 - 64,Income,Client Contribution - Supported Living,DYNAMIC SUPPORT LTD,SN25,20/12/2023,-1.84
118029233,Learning Disabilities,Adults,Learning Disability 18 - 64,Income,Client Contribution - Supported Living,DYNAMIC SUPPORT LTD,SN25,20/12/2023,-125.28
118029233,Learning Disabilities,Adults,Learning Disability 18 - 64,3rd Party Payments,Supported Lodgings (Childrens)/Supported Living (Adults),DYNAMIC SUPPORT LTD,SN25,20/12/2023,"6,202.00"
118029233,Learning Disabilities,Adults,Learning Disability 18 - 64,3rd Party Payments,Supported Lodgings (Childrens)/Supported Living (Adults),DYNAMIC SUPPORT LTD,SN25,20/12/2023,"1,260.00"
118029233,Learning Disabilities,Adults,Learning Disability 18 - 64,3rd Party Payments,Supported Lodgings (Childrens)/Supported Living (Adults),DYNAMIC SUPPORT LTD,SN25,20/12/2023,"3,520.00"
118029233,Learning Disabilities,Adults,Learning Disability 18 - 64,3rd Party Payments,Supported Lodgings (Childrens)/Supported Living (Adults),DYNAMIC SUPPORT LTD,SN25,20/12/2023,"7,680.08"
116502233,Learning Disabilities,Adults,Learning Disability 18 - 64,3rd Party Payments,Personal Budget - Domiciliary care,DYNAMIC SUPPORT LTD,SN25,08/12/2023,506.88
118029233,Mental Health,Adults,Mental Health 18-64,3rd Party Payments,Supported Lodgings (Childrens)/Supported Living (Adults),DYNAMIC SUPPORT LTD,SN25,20/12/2023,"1,503.88"
118029233,Mental Health,Adults,Mental Health 18-64,3rd Party Payments,Supported Lodgings (Childrens)/Supported Living (Adults),DYNAMIC SUPPORT LTD,SN25,20/12/2023,"8,400.00"
118029233,Physical Support,Adults,Physical Support 65 and over,3rd Party Payments,Supported Lodgings (Childrens)/Supported Living (Adults),DYNAMIC SUPPORT LTD,SN25,20/12/2023,"-1,050.24"
118029233,Physical Support,Adults,Physical Support 18 - 64,3rd Party Payments,Supported Lodgings (Childrens)/Supported Living (Adults),DYNAMIC SUPPORT LTD,SN25,20/12/2023,"3,007.76"
118029233,Learning Disabilities,Adults,Learning Disability 18 - 64,Income,Client Contribution - Supported Living,DYNAMIC SUPPORT LTD,SN25,20/12/2023,-153.36
118029233,Learning Disabilities,Adults,Learning Disability 18 - 64,Income,Client Contribution - Supported Living,DYNAMIC SUPPORT LTD,SN25,20/12/2023,-121.84
118029233,Learning Disabilities,Adults,Learning Disability 18 - 64,3rd Party Payments,Supported Lodgings (Childrens)/Supported Living (Adults),DYNAMIC SUPPORT LTD,SN25,20/12/2023,120.00
118029233,Learning Disabilities,Adults,Learning Disability 18 - 64,3rd Party Payments,Supported Lodgings (Childrens)/Supported Living (Adults),DYNAMIC SUPPORT LTD,SN25,20/12/2023,"3,600.00"
118029233,Learning Disabilities,Adults,Learning Disability 18 - 64,3rd Party Payments,Supported Lodgings (Childrens)/Supported Living (Adults),DYNAMIC SUPPORT LTD,SN25,20/12/2023,"1,173.32"
118029233,Learning Disabilities,Adults,Learning Disability 18 - 64,3rd Party Payments,Supported Lodgings (Childrens)/Supported Living (Adults),DYNAMIC SUPPORT LTD,SN25,20/12/2023,"3,007.76"
118029233,Learning Disabilities,Adults,Learning Disability 18 - 64,3rd Party Payments,Supported Lodgings (Childrens)/Supported Living (Adults),DYNAMIC SUPPORT LTD,SN25,20/12/2023,"2,800.00"
118029233,Learning Disabilities,Adults,Learning Disability 18 - 64,3rd Party Payments,Supported Lodgings (Childrens)/Supported Living (Adults),DYNAMIC SUPPORT LTD,SN25,20/12/2023,"7,029.24"
118029233,Learning Disabilities,Adults,Learning Disability 18 - 64,3rd Party Payments,Supported Lodgings (Childrens)/Supported Living (Adults),DYNAMIC SUPPORT LTD,SN25,20/12/2023,"2,640.00"
118029233,Learning Disabilities,Adults,Learning Disability 18 - 64,3rd Party Payments,Supported Lodgings (Childrens)/Supported Living (Adults),DYNAMIC SUPPORT LTD,SN25,20/12/2023,"3,536.12"
118029233,Learning Disabilities,Adults,Learning Disability 18 - 64,Income,Client Contribution - Supported Living,DYNAMIC SUPPORT LTD,SN25,20/12/2023,-26.32
118029233,Learning Disabilities,Adults,Learning Disability 18 - 64,3rd Party Payments,Supported Lodgings (Childrens)/Supported Living (Adults),DYNAMIC SUPPORT LTD,SN25,20/12/2023,"5,581.80"
118029233,Learning Disabilities,Adults,Learning Disability 18 - 64,3rd Party Payments,Supported Lodgings (Childrens)/Supported Living (Adults),DYNAMIC SUPPORT LTD,SN25,20/12/2023,160.00
116502233,Learning Disabilities,Adults,Learning Disability 18 - 64,3rd Party Payments,Personal Budget - Domiciliary care,DYNAMIC SUPPORT LTD,SN25,08/12/2023,-66.88
116502233,Learning Disabilities,Adults,Learning Disability 18 - 64,3rd Party Payments,Personal Budget - Domiciliary care,DYNAMIC SUPPORT LTD,SN25,08/12/2023,"1,474.56"
118029233,Learning Disabilities,Adults,Learning Disability 65 and over,3rd Party Payments,Supported Lodgings (Childrens)/Supported Living (Adults),DYNAMIC SUPPORT LTD,SN25,20/12/2023,"3,920.00"
116502233,Physical Support,Adults,Physical Support 65 and over,3rd Party Payments,Personal Budget - Domiciliary care,DYNAMIC SUPPORT LTD,SN25,08/12/2023,"5,160.96"
118029233,Physical Support,Adults,Physical Support 18 - 64,3rd Party Payments,Supported Lodgings (Childrens)/Supported Living (Adults),DYNAMIC SUPPORT LTD,SN25,20/12/2023,"8,400.00"
118029233,Learning Disabilities,Adults,Learning Disability 18 - 64,Income,Client Contribution - Supported Living,DYNAMIC SUPPORT LTD,SN25,20/12/2023,-89.80
